Department family,Entity,Date,Expense type,Expense area,Description,Supplier,Transaction number, Amount 
Department for Education,NATIONAL COLLEGE FOR TEACHING AND LEADERSHIP AGENCY,07/05/2014,Grants,Operations Directorate,Grants to third sector organisations / not for profit organisations,KENT & MEDWAY TRAINING,1001421," 78,640.00 "
Department for Education,DEPARTMENT FOR EDUCATION,16/05/2014,Programme costs,Children's Services and Departmental Strategy Safeguarding Group,Funding to deliver policies (excluding consultancy) paid to third parties via a service delivery contract,NSPCC,1001431," 140,005.00 "
Department for Education,NATIONAL COLLEGE FOR TEACHING AND LEADERSHIP AGENCY,30/05/2014,Grants,Operations Directorate,"Grants paid to organisations including agencies, arms length bodies and educational establishments",SUFFOLK COUNTY COUNCIL,1001439," 60,000.00 "
Department for Education,TEACHERS PENSION SCHEME,07/05/2014,Funding to Pay Teachers' Pensions,Workforce Group,Funding to pay Teachers' Pensions,CAPITA TP HSBC,1002070," 372,887.00 "
Department for Education,TEACHERS PENSION SCHEME,07/05/2014,Funding to Pay Teachers' Pensions,Workforce Group,Funding to pay Teachers' Pensions,CAPITA TP HSBC,1002071," 53,115.00 "
Department for Education,TEACHERS PENSION SCHEME,08/05/2014,Funding to Pay Teachers' Pensions,Workforce Group,Funding to pay Teachers' Pensions,CAPITA TP HSBC,1002074," 153,126.00 "
Department for Education,TEACHERS PENSION SCHEME,08/05/2014,Funding to Pay Teachers' Pensions,Workforce Group,Funding to pay Teachers' Pensions,CAPITA TP NATWEST,1002075," 22,058,062.00 "
Department for Education,TEACHERS PENSION SCHEME,08/05/2014,Funding to Pay Teachers' Pensions,Workforce Group,Funding to pay Teachers' Pensions,CAPITA TP HSBC,1002076," 102,681.00 "
Department for Education,TEACHERS PENSION SCHEME,08/05/2014,Funding to Pay Teachers' Pensions,Workforce Group,Funding to pay Teachers' Pensions,CAPITA TP NATWEST,1002077," 19,096,413.00 "
Department for Education,TEACHERS PENSION SCHEME,12/05/2014,Funding to Pay Teachers' Pensions,Workforce Group,Funding to pay Teachers' Pensions,CAPITA TP HSBC,1002078," 125,487.00 "
Department for Education,TEACHERS PENSION SCHEME,12/05/2014,Funding to Pay Teachers' Pensions,Workforce Group,Funding to pay Teachers' Pensions,CAPITA TP NATWEST,1002079," 19,070,605.00 "
Department for Education,TEACHERS PENSION SCHEME,12/05/2014,Funding to Pay Teachers' Pensions,Workforce Group,Funding to pay Teachers' Pensions,CAPITA TP HSBC,1002080," 178,126.00 "
Department for Education,TEACHERS PENSION SCHEME,12/05/2014,Funding to Pay Teachers' Pensions,Workforce Group,Funding to pay Teachers' Pensions,CAPITA TP NATWEST,1002081," 55,616,620.00 "
Department for Education,TEACHERS PENSION SCHEME,14/05/2014,Funding to Pay Teachers' Pensions,Workforce Group,Funding to pay Teachers' Pensions,CAPITA TP HSBC,1002082," 102,454.00 "
Department for Education,TEACHERS PENSION SCHEME,14/05/2014,Funding to Pay Teachers' Pensions,Workforce Group,Funding to pay Teachers' Pensions,CAPITA TP NATWEST,1002083," 20,506,665.00 "
Department for Education,TEACHERS PENSION SCHEME,14/05/2014,Funding to Pay Teachers' Pensions,Workforce Group,Funding to pay Teachers' Pensions,CAPITA TP HSBC,1002084," 351,971.00 "
Department for Education,TEACHERS PENSION SCHEME,14/05/2014,Funding to Pay Teachers' Pensions,Workforce Group,Funding to pay Teachers' Pensions,CAPITA TP NATWEST,1002085," 18,953,466.00 "
Department for Education,TEACHERS PENSION SCHEME,15/05/2014,Funding to Pay Teachers' Pensions,Workforce Group,Funding to pay Teachers' Pensions,CAPITA TP HSBC,1002086," 326,095.00 "
Department for Education,TEACHERS PENSION SCHEME,15/05/2014,Funding to Pay Teachers' Pensions,Workforce Group,Funding to pay Teachers' Pensions,CAPITA TP NATWEST,1002087," 19,547,879.00 "
Department for Education,TEACHERS PENSION SCHEME,16/05/2014,Funding to Pay Teachers' Pensions,Workforce Group,Funding to pay Teachers' Pensions,CAPITA TP HSBC,1002088," 128,363.00 "
Department for Education,TEACHERS PENSION SCHEME,16/05/2014,Funding to Pay Teachers' Pensions,Workforce Group,Funding to pay Teachers' Pensions,CAPITA TP NATWEST,1002089," 19,922,416.00 "
Department for Education,TEACHERS PENSION SCHEME,19/05/2014,Funding to Pay Teachers' Pensions,Workforce Group,Funding to pay Teachers' Pensions,CAPITA TP HSBC,1002090," 230,905.00 "
Department for Education,TEACHERS PENSION SCHEME,19/05/2014,Funding to Pay Teachers' Pensions,Workforce Group,Funding to pay Teachers' Pensions,CAPITA TP NATWEST,1002091," 55,089,508.00 "
Department for Education,TEACHERS PENSION SCHEME,21/05/2014,Funding to Pay Teachers' Pensions,Workforce Group,Funding to pay Teachers' Pensions,CAPITA TP HSBC,1002092," 305,804.00 "
Department for Education,TEACHERS PENSION SCHEME,21/05/2014,Funding to Pay Teachers' Pensions,Workforce Group,Funding to pay Teachers' Pensions,CAPITA TP NATWEST,1002093," 20,692,998.00 "
Department for Education,TEACHERS PENSION SCHEME,21/05/2014,Funding to Pay Teachers' Pensions,Workforce Group,Funding to pay Teachers' Pensions,CAPITA TP HSBC,1002094," 192,983.00 "
Department for Education,TEACHERS PENSION SCHEME,21/05/2014,Funding to Pay Teachers' Pensions,Workforce Group,Funding to pay Teachers' Pensions,CAPITA TP NATWEST,1002095," 19,364,758.00 "
Department for Education,TEACHERS PENSION SCHEME,22/05/2014,Funding to Pay Teachers' Pensions,Workforce Group,Funding to pay Teachers' Pensions,CAPITA TP HSBC,1002096," 38,211.00 "
Department for Education,TEACHERS PENSION SCHEME,22/05/2014,Funding to Pay Teachers' Pensions,Workforce Group,Funding to pay Teachers' Pensions,CAPITA TP NATWEST,1002097," 108,499,386.00 "
Department for Education,TEACHERS PENSION SCHEME,22/05/2014,Funding to Pay Teachers' Pensions,Workforce Group,Funding to pay Teachers' Pensions,CAPITA TP HSBC,1002098," 41,898.00 "
Department for Education,TEACHERS PENSION SCHEME,22/05/2014,Funding to Pay Teachers' Pensions,Workforce Group,Funding to pay Teachers' Pensions,CAPITA TP NATWEST,1002099," 19,723,033.00 "
Department for Education,TEACHERS PENSION SCHEME,28/05/2014,Funding to Pay Teachers' Pensions,Workforce Group,Funding to pay Teachers' Pensions,CAPITA TP HSBC,1002100," 307,412.00 "
Department for Education,TEACHERS PENSION SCHEME,28/05/2014,Funding to Pay Teachers' Pensions,Workforce Group,Funding to pay Teachers' Pensions,CAPITA TP NATWEST,1002102," 20,691,017.00 "
Department for Education,TEACHERS PENSION SCHEME,28/05/2014,Funding to Pay Teachers' Pensions,Workforce Group,Funding to pay Teachers' Pensions,CAPITA TP NATWEST,1002103," 70,403,328.00 "
Department for Education,TEACHERS PENSION SCHEME,29/05/2014,Funding to Pay Teachers' Pensions,Workforce Group,Funding to pay Teachers' Pensions,CAPITA TP HSBC,1002104," 705,978.00 "
Department for Education,TEACHERS PENSION SCHEME,29/05/2014,Funding to Pay Teachers' Pensions,Workforce Group,Funding to pay Teachers' Pensions,CAPITA TP NATWEST,1002105," 36,143,393.00 "
Department for Education,TEACHERS PENSION SCHEME,30/05/2014,Funding to Pay Teachers' Pensions,Workforce Group,Funding to pay Teachers' Pensions,CAPITA TP HSBC,1002106," 941,748.00 "
Department for Education,TEACHERS PENSION SCHEME,30/05/2014,Funding to Pay Teachers' Pensions,Workforce Group,Funding to pay Teachers' Pensions,CAPITA TP NATWEST,1002107," 17,141,273.00 "
Department for Education,TEACHERS PENSION SCHEME,30/05/2014,Funding to Pay Teachers' Pensions,Workforce Group,Funding to pay Teachers' Pensions,CAPITA TP HSBC,1002108," 288,956.00 "
Department for Education,TEACHERS PENSION SCHEME,30/05/2014,Funding to Pay Teachers' Pensions,Workforce Group,Funding to pay Teachers' Pensions,CAPITA TP NATWEST,1002109," 46,519,816.00 "
Department for Education,DEPARTMENT FOR EDUCATION,02/05/2014,Redaction,Redacted,Funding payment to the Education Funding Agency. See Technical Notes for further information.,EDUCATION FUNDING AGENCY,2000946," 4,871,181,000.00 "
Department for Education,DEPARTMENT FOR EDUCATION,09/05/2014,Grants,System Reform Group,Current grant funding to other government departments for DfE's contribution to jointly funded programmes ,DEPARTMENT OF COMMUNITIES & LOCAL GOVERNMENT,2000947," 2,088,108.00 "
Department for Education,DEPARTMENT FOR EDUCATION,14/05/2014,Funding to Pay Teachers' Pensions,Teachers Group,Pension related payments to retired teachers where liability has transferred to SoS,TEACHERS SUPERANN,2000948," 299,991.00 "
Department for Education,DEPARTMENT FOR EDUCATION,14/05/2014,Funding to Pay Teachers' Pensions,Teachers Group,Pension related payments to retired teachers where liability has transferred to SoS,TEACHERS SUPERANN,2000948," 7,565.00 "
Department for Education,DEPARTMENT FOR EDUCATION,14/05/2014,Funding to Pay Teachers' Pensions,Teachers Group,Pension related payments to retired teachers where liability has transferred to SoS,TEACHERS SUPERANN,2000948," 721,490.00 "
Department for Education,DEPARTMENT FOR EDUCATION,16/05/2014,ICT,Chief Information Officer Group,ICT Services,SKILLS FUNDING AGENCY,2000953," 159,722.00 "
Department for Education,DEPARTMENT FOR EDUCATION,16/05/2014,ICT,Chief Information Officer Group,ICT Services,SKILLS FUNDING AGENCY,2000954," 58,804.00 "
Department for Education,DEPARTMENT FOR EDUCATION,16/05/2014,ICT,Chief Information Officer Group,ICT Services,SKILLS FUNDING AGENCY,2000955," 356,405.00 "
Department for Education,DEPARTMENT FOR EDUCATION,16/05/2014,ICT,Chief Information Officer Group,ICT Services,SKILLS FUNDING AGENCY,2000955," 119,879.00 "
Department for Education,DEPARTMENT FOR EDUCATION,21/05/2014,Miscellaneous Expenditure,Academies Delivery Group,Interest paid as a result of late payment of bills,HM REVENUE & CUSTOMS,2000957," 75,080.00 "
Department for Education,DEPARTMENT FOR EDUCATION,28/05/2014,Grants,Supporting Delivery Group,Current grant funding to arms length bodies for DfE's contribution to fund activity,OFFICE OF THE CHILDRENS COMMISSIONER,2000958," 288,228.00 "
Department for Education,TEACHERS PENSION SCHEME,19/05/2014,Funding to Pay Teachers' Pensions,Workforce Group,Funding to pay Teachers' Pensions,CAPITA TP NATWEST,6565696," 53,591,454.00 "
Department for Education,TEACHERS PENSION SCHEME,20/05/2014,Funding to Pay Teachers' Pensions,Workforce Group,Funding to pay Teachers' Pensions,CAPITA TP NATWEST,6566256," 72,030,117.00 "
Department for Education,DEPARTMENT FOR EDUCATION,01/05/2014,Grants,Free School Group,"Grants paid to organisations including agencies, arms length bodies and educational establishments",THE SASH SCHOOL,4000169342," 30,000.00 "
Department for Education,DEPARTMENT FOR EDUCATION,01/05/2014,Grants,Free School Group,"Grants paid to organisations including agencies, arms length bodies and educational establishments",COLLABORATIVE TRAINING SOLUTIONS,4000169343," 30,000.00 "
Department for Education,DEPARTMENT FOR EDUCATION,01/05/2014,Grants,Free School Group,"Grants paid to organisations including agencies, arms length bodies and educational establishments",WMG ACADEMY FOR YOUNG ENGINEERS,4000169344," 30,000.00 "
Department for Education,DEPARTMENT FOR EDUCATION,01/05/2014,Grants,Free School Group,"Grants paid to organisations including agencies, arms length bodies and educational establishments",CREATIVE INDUSTRIES UTC,4000169345," 30,000.00 "
Department for Education,DEPARTMENT FOR EDUCATION,01/05/2014,Grants,Free School Group,"Grants paid to organisations including agencies, arms length bodies and educational establishments",WEST MIDLANDS CONSTRUCTION UTC,4000169347," 30,000.00 "
Department for Education,DEPARTMENT FOR EDUCATION,01/05/2014,Grants,Children's Services and Departmental Strategy Early Years Extended Schools and Special Needs Group,Grants to third sector organisations / not for profit organisations,THE FAMILY FUND TRUST,4000169351," 2,043,000.00 "
Department for Education,DEPARTMENT FOR EDUCATION,01/05/2014,Programme costs,Families Group,Funding to deliver policies (excluding consultancy) paid to third parties via a service delivery contract,ECORYS UK LTD,4000169352," 86,684.00 "
Department for Education,DEPARTMENT FOR EDUCATION,01/05/2014,Grants,Children's Services and Departmental Strategy Safeguarding Group,"Grants paid to organisations including agencies, arms length bodies and educational establishments",THE ASSOCIATION OF INDEPENDENT LSCB CHAIRS,4000169357," 40,000.00 "
Department for Education,NATIONAL COLLEGE FOR TEACHING AND LEADERSHIP AGENCY,01/05/2014,Grants,Teaching Schools Directorate,"Grants paid to organisations including agencies, arms length bodies and educational establishments",SALTFORD COFE PRIMARY SCHOOL,4000169362," 28,000.00 "
Department for Education,DEPARTMENT FOR EDUCATION,01/05/2014,Grants,Free School Group,"Grants paid to organisations including agencies, arms length bodies and educational establishments",NORFOLK UTC,4000169366," 30,000.00 "
Department for Education,DEPARTMENT FOR EDUCATION,01/05/2014,Professional Services Other,Strategic Analysis and Research and Policy Impact Group,Research and evaluation activities,INSTITUTE OF FISCAL STUDIES,4000169369," 93,662.00 "
Department for Education,DEPARTMENT FOR EDUCATION,01/05/2014,Grants,Children's Services and Departmental Strategy Early Years Extended Schools and Special Needs Group,Grants to third sector organisations / not for profit organisations,NASEN,4000169370," 182,414.00 "
Department for Education,DEPARTMENT FOR EDUCATION,01/05/2014,Programme costs,Curriculum and General Qualifications Reform Group,Funding to deliver policies (excluding consultancy) paid to third parties via a service delivery contract,TRIBAL EDUCATION LIMITED,4000169371," 93,794.00 "
Department for Education,DEPARTMENT FOR EDUCATION,01/05/2014,Grants,System Reform Group,Grants to third sector organisations / not for profit organisations,SCHOOL GOVERNORS ONE STOP SHOP,4000169374," 177,751.00 "
Department for Education,DEPARTMENT FOR EDUCATION,01/05/2014,Grants,Free School Group,"Grants paid to organisations including agencies, arms length bodies and educational establishments",CAMBRIDGE UTC,4000169382," 30,000.00 "
Department for Education,DEPARTMENT FOR EDUCATION,01/05/2014,Grants,Free School Group,"Grants paid to organisations including agencies, arms length bodies and educational establishments",HARLOW UTC LTD,4000169384," 30,000.00 "
Department for Education,DEPARTMENT FOR EDUCATION,01/05/2014,Programme costs,Closing the Gap Group,Funding to deliver policies (excluding consultancy) paid to third parties via a service delivery contract,RURAL PAYMENTS AGENCY,4000169385," 54,375.00 "
Department for Education,NATIONAL COLLEGE FOR TEACHING AND LEADERSHIP AGENCY,01/05/2014,Professional Services Other,Licenced Provision Directorate,"Fees / expenses of professionals from the private sector, for example to implement advice or changes",TEACHING LEADERS,4000169386," 352,882.00 "
Department for Education,NATIONAL COLLEGE FOR TEACHING AND LEADERSHIP AGENCY,01/05/2014,Professional Services Other,Delivery Directorate,"Fees / expenses of professionals from the private sector, for example to implement advice or changes",MM TELEPERFORMANCE,4000169389," 63,273.00 "
Department for Education,DEPARTMENT FOR EDUCATION,01/05/2014,Grants,Free School Group,"Grants paid to organisations including agencies, arms length bodies and educational establishments",UTC SWINDON,4000169401," 30,000.00 "
Department for Education,DEPARTMENT FOR EDUCATION,01/05/2014,Grants,Academies Delivery Group,"Grants paid to organisations including agencies, arms length bodies and educational establishments",ARK SCHOOLS,4000169416," 40,000.00 "
Department for Education,DEPARTMENT FOR EDUCATION,01/05/2014,ICT,Education Strategy Performance Analysis Group,ICT Services,ATKINS LTD,4000169420," 34,830.00 "
Department for Education,DEPARTMENT FOR EDUCATION,01/05/2014,Facilities,Finance and Commercial Group - Property Asset Management,"Building maintenance and repair, including repainting, replacing flooring, etc.",INTERSERVE FACILITIES MANAGEMENT LTD,4000169425," 388,449.00 "
Department for Education,DEPARTMENT FOR EDUCATION,01/05/2014,Facilities,Finance and Commercial Group - Property Asset Management,"Building maintenance and repair, including repainting, replacing flooring, etc.",INTERSERVE FACILITIES MANAGEMENT LTD,4000169425," 5,469.00 "
Department for Education,DEPARTMENT FOR EDUCATION,01/05/2014,Facilities,Finance and Commercial Group - Property Asset Management,Property Management,INTERSERVE FACILITIES MANAGEMENT LTD,4000169425," 12,972.00 "
Department for Education,NATIONAL COLLEGE FOR TEACHING AND LEADERSHIP AGENCY,01/05/2014,Programme costs,Delivery Directorate,Funding to deliver policies (excluding consultancy) paid to third parties via a service delivery contract,Teach First Initial Teacher Development,4000169429," 1,413,965.00 "
Department for Education,DEPARTMENT FOR EDUCATION,01/05/2014,Grants,Curriculum and General Qualifications Reform Group,Grants to third sector organisations / not for profit organisations,THE BRITISH INTERPLANETARY SOCIETY,4000169430," 26,747.00 "
Department for Education,DEPARTMENT FOR EDUCATION,01/05/2014,Grants,Free School Group,"Grants paid to organisations including agencies, arms length bodies and educational establishments",LYNCH HILL SCHOOL PRIMARY ACADEMY,4000169431," 30,000.00 "
Department for Education,DEPARTMENT FOR EDUCATION,01/05/2014,Grants,Free School Group,"Grants paid to organisations including agencies, arms length bodies and educational establishments",EAST LONDON UTC LTD,4000169436," 30,000.00 "
Department for Education,DEPARTMENT FOR EDUCATION,01/05/2014,Grants,Children's Services and Departmental Strategy Early Years Extended Schools and Special Needs Group,Grants to third sector organisations / not for profit organisations,SENSE,4000169439," 27,664.00 "
Department for Education,DEPARTMENT FOR EDUCATION,01/05/2014,Grants,Free School Group,"Grants paid to organisations including agencies, arms length bodies and educational establishments",HEATHROW AVIATION ENGINEERING UTC,4000169448," 60,000.00 "
Department for Education,DEPARTMENT FOR EDUCATION,01/05/2014,ICT,Chief Information Officer Group,ICT Software,AUTOMATED INTELLIGENCE,4000169450," 68,947.00 "
Department for Education,DEPARTMENT FOR EDUCATION,01/05/2014,Grants,Academies Delivery Group,"Grants paid to organisations including agencies, arms length bodies and educational establishments",HARRIS FEDERATION,4000169451," 50,000.00 "
Department for Education,DEPARTMENT FOR EDUCATION,01/05/2014,Grants,Free School Group,"Grants paid to organisations including agencies, arms length bodies and educational establishments",LINCOLN UTC,4000169452," 30,000.00 "
Department for Education,DEPARTMENT FOR EDUCATION,01/05/2014,Grants,Free School Group,"Grants paid to organisations including agencies, arms length bodies and educational establishments",UTC BLUEWATER,4000169453," 30,000.00 "
Department for Education,DEPARTMENT FOR EDUCATION,01/05/2014,Grants,Free School Group,"Grants paid to organisations including agencies, arms length bodies and educational establishments",ENERGY COAST UTC,4000169454," 30,000.00 "
Department for Education,DEPARTMENT FOR EDUCATION,06/05/2014,Grants,Academies Delivery Group,"Grants paid to organisations including agencies, arms length bodies and educational establishments",RISE PARK INFANT SCHOOL,4000169455," 70,000.00 "
Department for Education,DEPARTMENT FOR EDUCATION,06/05/2014,Professional Services Other,Curriculum and General Qualifications Reform Group,Research and evaluation activities,CAIRNEAGLE ASSOCIATES LLP,4000169456," 60,000.00 "
Department for Education,NATIONAL COLLEGE FOR TEACHING AND LEADERSHIP AGENCY,06/05/2014,Grants,Operations Directorate,"Grants paid to organisations including agencies, arms length bodies and educational establishments",UNIVERSITY OF ROEHAMPTON,4000169461," 152,891.00 "
Department for Education,NATIONAL COLLEGE FOR TEACHING AND LEADERSHIP AGENCY,06/05/2014,Grants,Operations Directorate,"Grants paid to organisations including agencies, arms length bodies and educational establishments",UNIVERSITY OF CHESTER,4000169463," 74,913.00 "
Department for Education,NATIONAL COLLEGE FOR TEACHING AND LEADERSHIP AGENCY,06/05/2014,Grants,Operations Directorate,"Grants paid to organisations including agencies, arms length bodies and educational establishments",UNIVERSITY OF CUMBRIA,4000169464," 281,120.00 "
Department for Education,NATIONAL COLLEGE FOR TEACHING AND LEADERSHIP AGENCY,06/05/2014,Grants,Operations Directorate,"Grants paid to organisations including agencies, arms length bodies and educational establishments",UNIVERSITY OF HULL,4000169469," 137,460.00 "
Department for Education,NATIONAL COLLEGE FOR TEACHING AND LEADERSHIP AGENCY,06/05/2014,Grants,Operations Directorate,"Grants paid to organisations including agencies, arms length bodies and educational establishments",UNIVERSITY OF HULL,4000169469," 14,824.00 "
Department for Education,NATIONAL COLLEGE FOR TEACHING AND LEADERSHIP AGENCY,06/05/2014,Grants,Operations Directorate,"Grants paid to organisations including agencies, arms length bodies and educational establishments",UNIVERSITY OF BRISTOL,4000169470," 110,865.00 "
Department for Education,NATIONAL COLLEGE FOR TEACHING AND LEADERSHIP AGENCY,06/05/2014,Grants,Operations Directorate,"Grants paid to organisations including agencies, arms length bodies and educational establishments",KEELE UNIVERSITY,4000169471," 111,160.00 "
Department for Education,NATIONAL COLLEGE FOR TEACHING AND LEADERSHIP AGENCY,06/05/2014,Grants,Operations Directorate,"Grants paid to organisations including agencies, arms length bodies and educational establishments",LONDON METROPOLITAN UNIVERSITY,4000169472," 47,719.00 "
Department for Education,NATIONAL COLLEGE FOR TEACHING AND LEADERSHIP AGENCY,06/05/2014,Grants,Operations Directorate,"Grants paid to organisations including agencies, arms length bodies and educational establishments",UNIVERSITY OF GREENWICH,4000169483," 109,484.00 "
Department for Education,NATIONAL COLLEGE FOR TEACHING AND LEADERSHIP AGENCY,06/05/2014,Grants,Operations Directorate,"Grants paid to organisations including agencies, arms length bodies and educational establishments",NOTTINGHAM TRENT UNIVERSITY,4000169485," 100,940.00 "
Department for Education,NATIONAL COLLEGE FOR TEACHING AND LEADERSHIP AGENCY,06/05/2014,Grants,Operations Directorate,"Grants paid to organisations including agencies, arms length bodies and educational establishments",UNIVERSITY OF WORCESTER,4000169486," 139,118.00 "
Department for Education,DEPARTMENT FOR EDUCATION,06/05/2014,Grants,Free School Group,"Grants paid to organisations including agencies, arms length bodies and educational establishments",KINGS COLLEGE LONDON,4000169487," 80,000.00 "
Department for Education,NATIONAL COLLEGE FOR TEACHING AND LEADERSHIP AGENCY,06/05/2014,Grants,Operations Directorate,"Grants paid to organisations including agencies, arms length bodies and educational establishments",UNIVERSITY OF HERTFORDSHIRE,4000169488," 86,940.00 "
Department for Education,NATIONAL COLLEGE FOR TEACHING AND LEADERSHIP AGENCY,06/05/2014,Grants,Operations Directorate,"Grants paid to organisations including agencies, arms length bodies and educational establishments",UNIVERSITY OF BOLTON,4000169493," 51,910.00 "
Department for Education,DEPARTMENT FOR EDUCATION,06/05/2014,Grants,Academies Delivery Group,Capital grants paid to a private sector organisation,ORMISTON ACADEMIES TRUST,4000169498," 80,000.00 "
Department for Education,DEPARTMENT FOR EDUCATION,06/05/2014,Grants,Academies Delivery Group,"Grants paid to organisations including agencies, arms length bodies and educational establishments",ORMISTON ACADEMIES TRUST,4000169498," 115,000.00 "
Department for Education,NATIONAL COLLEGE FOR TEACHING AND LEADERSHIP AGENCY,06/05/2014,Grants,Operations Directorate,"Grants paid to organisations including agencies, arms length bodies and educational establishments",DEVON COUNTY COUNCIL,4000169499," 56,107.00 "
Department for Education,NATIONAL COLLEGE FOR TEACHING AND LEADERSHIP AGENCY,06/05/2014,Grants,Operations Directorate,"Grants paid to organisations including agencies, arms length bodies and educational establishments",UNIVERSITY OF NORTHUMBRIA,4000169502," 72,560.00 "
Department for Education,NATIONAL COLLEGE FOR TEACHING AND LEADERSHIP AGENCY,06/05/2014,Grants,Operations Directorate,"Grants paid to organisations including agencies, arms length bodies and educational establishments",UNIVERSITY OF EAST LONDON,4000169506," 178,000.00 "
Department for Education,NATIONAL COLLEGE FOR TEACHING AND LEADERSHIP AGENCY,06/05/2014,Grants,Operations Directorate,"Grants paid to organisations including agencies, arms length bodies and educational establishments",LEICESTERSHIRE SECONDARY SCITT,4000169509," 60,580.00 "
Department for Education,NATIONAL COLLEGE FOR TEACHING AND LEADERSHIP AGENCY,06/05/2014,Grants,Operations Directorate,"Grants paid to organisations including agencies, arms length bodies and educational establishments",UNIVERSITY OF OXFORD,4000169520," 133,585.00 "
Department for Education,NATIONAL COLLEGE FOR TEACHING AND LEADERSHIP AGENCY,06/05/2014,Grants,Operations Directorate,"Grants paid to organisations including agencies, arms length bodies and educational establishments",YORK ST JOHN UNIVERSITY,4000169521," 30,480.00 "
Department for Education,NATIONAL COLLEGE FOR TEACHING AND LEADERSHIP AGENCY,06/05/2014,Grants,Operations Directorate,"Grants paid to organisations including agencies, arms length bodies and educational establishments",UNIVERSITY OF WARWICK,4000169530," 68,880.00 "
Department for Education,NATIONAL COLLEGE FOR TEACHING AND LEADERSHIP AGENCY,06/05/2014,Grants,Operations Directorate,"Grants paid to organisations including agencies, arms length bodies and educational establishments",UNIVERSITY OF BEDFORDSHIRE,4000169531," 29,790.00 "
Department for Education,NATIONAL COLLEGE FOR TEACHING AND LEADERSHIP AGENCY,06/05/2014,Grants,Operations Directorate,"Grants paid to organisations including agencies, arms length bodies and educational establishments",LOUGHBOROUGH UNIVERSITY ENTERPRISE LTD,4000169532," 40,090.00 "
Department for Education,NATIONAL COLLEGE FOR TEACHING AND LEADERSHIP AGENCY,06/05/2014,Grants,Operations Directorate,"Grants paid to organisations including agencies, arms length bodies and educational establishments",LOUGHBOROUGH UNIVERSITY ENTERPRISE LTD,4000169532," 1,957.00 "
Department for Education,NATIONAL COLLEGE FOR TEACHING AND LEADERSHIP AGENCY,06/05/2014,Grants,Operations Directorate,"Grants paid to organisations including agencies, arms length bodies and educational establishments",MIDDLESEX UNIVERSITY,4000169537," 34,620.00 "
Department for Education,NATIONAL COLLEGE FOR TEACHING AND LEADERSHIP AGENCY,06/05/2014,Grants,Operations Directorate,"Grants paid to organisations including agencies, arms length bodies and educational establishments",UNIVERSITY OF BATH,4000169544," 31,503.00 "
Department for Education,DEPARTMENT FOR EDUCATION,06/05/2014,Grants,Academies Delivery Group,"Grants paid to organisations including agencies, arms length bodies and educational establishments",THE MARCHES SCHOOL & TECHNOLOGY COLLEGE,4000169547," 25,000.00 "
Department for Education,NATIONAL COLLEGE FOR TEACHING AND LEADERSHIP AGENCY,06/05/2014,Grants,Operations Directorate,"Grants paid to organisations including agencies, arms length bodies and educational establishments",BRADFORD COLLEGE,4000169548," 26,316.00 "
Department for Education,NATIONAL COLLEGE FOR TEACHING AND LEADERSHIP AGENCY,06/05/2014,Grants,Operations Directorate,"Grants paid to organisations including agencies, arms length bodies and educational establishments",LIVERPOOL HOPE UNIVERSITY,4000169549," 197,765.00 "
Department for Education,NATIONAL COLLEGE FOR TEACHING AND LEADERSHIP AGENCY,06/05/2014,Grants,Operations Directorate,"Grants paid to organisations including agencies, arms length bodies and educational establishments",UNIVERSITY OF GLOUCESTERSHIRE,4000169550," 56,452.00 "
Department for Education,NATIONAL COLLEGE FOR TEACHING AND LEADERSHIP AGENCY,06/05/2014,Grants,Operations Directorate,"Grants paid to organisations including agencies, arms length bodies and educational establishments",LIVERPOOL JOHN MOORES UNIVERSITY,4000169560," 41,610.00 "
Department for Education,NATIONAL COLLEGE FOR TEACHING AND LEADERSHIP AGENCY,06/05/2014,Grants,Operations Directorate,"Grants paid to organisations including agencies, arms length bodies and educational establishments",BIRMINGHAM CITY UNIVERSITY,4000169561," 126,520.00 "
Department for Education,NATIONAL COLLEGE FOR TEACHING AND LEADERSHIP AGENCY,06/05/2014,Grants,Operations Directorate,"Grants paid to organisations including agencies, arms length bodies and educational establishments",UNIVERSITY OF SHEFFIELD,4000169563," 92,350.00 "
Department for Education,DEPARTMENT FOR EDUCATION,06/05/2014,Grants,Academies Delivery Group,"Grants paid to organisations including agencies, arms length bodies and educational establishments",ST BEDE'S CATHOLIC COLLEGE,4000169564," 70,000.00 "
Department for Education,NATIONAL COLLEGE FOR TEACHING AND LEADERSHIP AGENCY,06/05/2014,Grants,Operations Directorate,"Grants paid to organisations including agencies, arms length bodies and educational establishments",THE ACADEMY AT SHOTTON HALL,4000169568," 27,200.00 "
Department for Education,NATIONAL COLLEGE FOR TEACHING AND LEADERSHIP AGENCY,06/05/2014,Grants,Operations Directorate,"Grants paid to organisations including agencies, arms length bodies and educational establishments",NEWMAN COLLEGE,4000169571," 138,240.00 "
Department for Education,NATIONAL COLLEGE FOR TEACHING AND LEADERSHIP AGENCY,06/05/2014,Grants,Operations Directorate,"Grants paid to organisations including agencies, arms length bodies and educational establishments",UNIVERSITY OF CAMBRIDGE,4000169574," 194,245.00 "
Department for Education,DEPARTMENT FOR EDUCATION,06/05/2014,Grants,Curriculum and General Qualifications Reform Group,"Grants paid to organisations including agencies, arms length bodies and educational establishments",UNIVERSITY OF CAMBRIDGE,4000169575," 77,252.00 "
Department for Education,DEPARTMENT FOR EDUCATION,06/05/2014,Grants,Children's Services and Departmental Strategy Early Years Extended Schools and Special Needs Group,Grants to third sector organisations / not for profit organisations,THE NATIONAL LITERACY TRUST,4000169577," 159,611.00 "
Department for Education,NATIONAL COLLEGE FOR TEACHING AND LEADERSHIP AGENCY,06/05/2014,Grants,Operations Directorate,"Grants paid to organisations including agencies, arms length bodies and educational establishments",UNIVERSITY OF THE WEST OF ENGLAND,4000169579," 151,688.00 "
Department for Education,DEPARTMENT FOR EDUCATION,06/05/2014,Grants,Families Group,"Grants paid to organisations including agencies, arms length bodies and educational establishments",THE SHARE FOUNDATION 3RD PARTY TRUST,4000169581," 56,200.00 "
Department for Education,NATIONAL COLLEGE FOR TEACHING AND LEADERSHIP AGENCY,06/05/2014,Grants,Operations Directorate,"Grants paid to organisations including agencies, arms length bodies and educational establishments",UNIVERSITY OF PORTSMOUTH,4000169582," 84,560.00 "
Department for Education,NATIONAL COLLEGE FOR TEACHING AND LEADERSHIP AGENCY,06/05/2014,Grants,Operations Directorate,"Grants paid to organisations including agencies, arms length bodies and educational establishments",BISHOP GROSSETESTE COLLEGE,4000169588," 44,900.00 "
Department for Education,NATIONAL COLLEGE FOR TEACHING AND LEADERSHIP AGENCY,06/05/2014,Grants,Operations Directorate,"Grants paid to organisations including agencies, arms length bodies and educational establishments",THE UNIVERSITY OF MANCHESTER,4000169591," 229,605.00 "
Department for Education,NATIONAL COLLEGE FOR TEACHING AND LEADERSHIP AGENCY,06/05/2014,Grants,Operations Directorate,"Grants paid to organisations including agencies, arms length bodies and educational establishments",UNIVERSITY OF LEICESTER,4000169593," 61,250.00 "
Department for Education,NATIONAL COLLEGE FOR TEACHING AND LEADERSHIP AGENCY,06/05/2014,Grants,Operations Directorate,"Grants paid to organisations including agencies, arms length bodies and educational establishments",EDGE HILL UNIVERSITY,4000169594," 242,680.00 "
Department for Education,NATIONAL COLLEGE FOR TEACHING AND LEADERSHIP AGENCY,06/05/2014,Grants,Operations Directorate,"Grants paid to organisations including agencies, arms length bodies and educational establishments",EDGE HILL UNIVERSITY,4000169594," 14,970.00 "
Department for Education,NATIONAL COLLEGE FOR TEACHING AND LEADERSHIP AGENCY,06/05/2014,Programme costs,Delivery Directorate,Funding to deliver policies (excluding consultancy) paid to third parties via a service delivery contract,EDGE HILL UNIVERSITY,4000169594," 45,170.00 "
Department for Education,NATIONAL COLLEGE FOR TEACHING AND LEADERSHIP AGENCY,06/05/2014,Grants,Operations Directorate,"Grants paid to organisations including agencies, arms length bodies and educational establishments",UNIVERSITY OF YORK,4000169596," 99,445.00 "
Department for Education,NATIONAL COLLEGE FOR TEACHING AND LEADERSHIP AGENCY,06/05/2014,Grants,Operations Directorate,"Grants paid to organisations including agencies, arms length bodies and educational establishments",UNIVERSITY OF NEWCASTLE UPON TYNE,4000169597," 88,064.00 "
Department for Education,NATIONAL COLLEGE FOR TEACHING AND LEADERSHIP AGENCY,06/05/2014,Grants,Operations Directorate,"Grants paid to organisations including agencies, arms length bodies and educational establishments",UNIVERSITY OF WOLVERHAMPTON,4000169598," 77,270.00 "
Department for Education,NATIONAL COLLEGE FOR TEACHING AND LEADERSHIP AGENCY,06/05/2014,Grants,Operations Directorate,"Grants paid to organisations including agencies, arms length bodies and educational establishments",UNIVERSITY OF DURHAM,4000169599," 126,963.00 "
Department for Education,NATIONAL COLLEGE FOR TEACHING AND LEADERSHIP AGENCY,06/05/2014,Grants,Operations Directorate,"Grants paid to organisations including agencies, arms length bodies and educational establishments",LEEDS TRINITY UNIVERSITY COLLEGE,4000169600," 33,640.00 "
Department for Education,NATIONAL COLLEGE FOR TEACHING AND LEADERSHIP AGENCY,06/05/2014,Grants,Operations Directorate,"Grants paid to organisations including agencies, arms length bodies and educational establishments",BATH SPA UNIVERSITY,4000169602," 173,670.00 "
Department for Education,NATIONAL COLLEGE FOR TEACHING AND LEADERSHIP AGENCY,06/05/2014,Grants,Operations Directorate,"Grants paid to organisations including agencies, arms length bodies and educational establishments",BATH SPA UNIVERSITY,4000169602," 4,403.00 "
Department for Education,NATIONAL COLLEGE FOR TEACHING AND LEADERSHIP AGENCY,06/05/2014,Grants,Operations Directorate,"Grants paid to organisations including agencies, arms length bodies and educational establishments",UNIVERSITY OF EXETER,4000169607," 194,675.00 "
Department for Education,NATIONAL COLLEGE FOR TEACHING AND LEADERSHIP AGENCY,06/05/2014,Grants,Operations Directorate,"Grants paid to organisations including agencies, arms length bodies and educational establishments",DONCASTER MBC,4000169608," 64,960.00 "
Department for Education,DEPARTMENT FOR EDUCATION,06/05/2014,Grants,Families Group,Grants to third sector organisations / not for profit organisations,BOOK TRUST,4000169610," 847,694.00 "
Department for Education,NATIONAL COLLEGE FOR TEACHING AND LEADERSHIP AGENCY,06/05/2014,Grants,Operations Directorate,"Grants paid to organisations including agencies, arms length bodies and educational establishments",UNIVERSITY OF SUNDERLAND,4000169612," 120,170.00 "
Department for Education,NATIONAL COLLEGE FOR TEACHING AND LEADERSHIP AGENCY,06/05/2014,Grants,Operations Directorate,"Grants paid to organisations including agencies, arms length bodies and educational establishments",UNIVERSITY OF SUNDERLAND,4000169612," 15,266.00 "
Department for Education,NATIONAL COLLEGE FOR TEACHING AND LEADERSHIP AGENCY,06/05/2014,Grants,Operations Directorate,"Grants paid to organisations including agencies, arms length bodies and educational establishments",THE UNIVERSITY OF LEEDS,4000169615," 114,100.00 "
Department for Education,NATIONAL COLLEGE FOR TEACHING AND LEADERSHIP AGENCY,06/05/2014,Grants,Operations Directorate,"Grants paid to organisations including agencies, arms length bodies and educational establishments",UNIVERSITY OF HUDDERSFIELD,4000169616," 33,450.00 "
Department for Education,NATIONAL COLLEGE FOR TEACHING AND LEADERSHIP AGENCY,06/05/2014,Grants,Operations Directorate,"Grants paid to organisations including agencies, arms length bodies and educational establishments",SHEFFIELD HALLAM UNIVERSITY,4000169617," 195,230.00 "
Department for Education,NATIONAL COLLEGE FOR TEACHING AND LEADERSHIP AGENCY,06/05/2014,Grants,Operations Directorate,"Grants paid to organisations including agencies, arms length bodies and educational establishments",UNIVERSITY OF BRIGHTON,4000169618," 150,100.00 "
Department for Education,NATIONAL COLLEGE FOR TEACHING AND LEADERSHIP AGENCY,06/05/2014,Grants,Operations Directorate,"Grants paid to organisations including agencies, arms length bodies and educational establishments",UNIVERSITY OF BRIGHTON,4000169618," 8,070.00 "
Department for Education,NATIONAL COLLEGE FOR TEACHING AND LEADERSHIP AGENCY,06/05/2014,Grants,Operations Directorate,"Grants paid to organisations including agencies, arms length bodies and educational establishments",UNIVERSITY OF NOTTINGHAM,4000169620," 168,936.00 "
Department for Education,NATIONAL COLLEGE FOR TEACHING AND LEADERSHIP AGENCY,06/05/2014,Grants,Operations Directorate,"Grants paid to organisations including agencies, arms length bodies and educational establishments",KINGSTON UNIVERSITY,4000169621," 76,818.00 "
Department for Education,NATIONAL COLLEGE FOR TEACHING AND LEADERSHIP AGENCY,06/05/2014,Grants,Operations Directorate,"Grants paid to organisations including agencies, arms length bodies and educational establishments",CANTERBURY CHRIST CHURCH UNIVERSITY,4000169627," 129,261.00 "
Department for Education,NATIONAL COLLEGE FOR TEACHING AND LEADERSHIP AGENCY,06/05/2014,Grants,Operations Directorate,"Grants paid to organisations including agencies, arms length bodies and educational establishments",CANTERBURY CHRIST CHURCH UNIVERSITY,4000169627," 7,415.00 "
Department for Education,NATIONAL COLLEGE FOR TEACHING AND LEADERSHIP AGENCY,06/05/2014,Grants,Operations Directorate,"Grants paid to organisations including agencies, arms length bodies and educational establishments",UNIVERSITY OF BIRMINGHAM,4000169631," 199,529.00 "
Department for Education,NATIONAL COLLEGE FOR TEACHING AND LEADERSHIP AGENCY,06/05/2014,Grants,Operations Directorate,"Grants paid to organisations including agencies, arms length bodies and educational establishments",UNIVERSITY OF BIRMINGHAM,4000169631," 12,918.00 "
Department for Education,NATIONAL COLLEGE FOR TEACHING AND LEADERSHIP AGENCY,06/05/2014,Grants,Operations Directorate,"Grants paid to organisations including agencies, arms length bodies and educational establishments",UNIVERSITY OF PLYMOUTH,4000169639," 70,720.00 "
Department for Education,NATIONAL COLLEGE FOR TEACHING AND LEADERSHIP AGENCY,06/05/2014,Grants,Operations Directorate,"Grants paid to organisations including agencies, arms length bodies and educational establishments",OXFORD BROOKES UNIVERSITY,4000169647," 40,800.00 "
Department for Education,NATIONAL COLLEGE FOR TEACHING AND LEADERSHIP AGENCY,06/05/2014,Grants,Operations Directorate,"Grants paid to organisations including agencies, arms length bodies and educational establishments",ANGLIA RUSKIN UNIVERSITY,4000169648," 179,765.00 "
Department for Education,NATIONAL COLLEGE FOR TEACHING AND LEADERSHIP AGENCY,06/05/2014,Grants,Operations Directorate,"Grants paid to organisations including agencies, arms length bodies and educational establishments",BRUNEL UNIVERSITY,4000169649," 68,950.00 "
Department for Education,NATIONAL COLLEGE FOR TEACHING AND LEADERSHIP AGENCY,06/05/2014,Grants,Operations Directorate,"Grants paid to organisations including agencies, arms length bodies and educational establishments",UNIVERSITY OF SUSSEX,4000169651," 87,012.00 "
Department for Education,NATIONAL COLLEGE FOR TEACHING AND LEADERSHIP AGENCY,06/05/2014,Grants,Operations Directorate,"Grants paid to organisations including agencies, arms length bodies and educational establishments",KINGS COLLEGE,4000169653," 194,613.00 "
Department for Education,NATIONAL COLLEGE FOR TEACHING AND LEADERSHIP AGENCY,06/05/2014,Grants,Operations Directorate,"Grants paid to organisations including agencies, arms length bodies and educational establishments",UNIVERSITY OF EAST ANGLIA,4000169656," 146,450.00 "
Department for Education,DEPARTMENT FOR EDUCATION,06/05/2014,Grants,Academies Delivery Group,"Grants paid to organisations including agencies, arms length bodies and educational establishments",WALTON PRIMARY SCHOOL,4000169659," 25,000.00 "
Department for Education,DEPARTMENT FOR EDUCATION,06/05/2014,Grants,Academies Delivery Group,"Grants paid to organisations including agencies, arms length bodies and educational establishments",SAWLEY INFANT & NURSERY SCHOOL,4000169660," 50,000.00 "
Department for Education,NATIONAL COLLEGE FOR TEACHING AND LEADERSHIP AGENCY,06/05/2014,Grants,Operations Directorate,"Grants paid to organisations including agencies, arms length bodies and educational establishments",HIBERNIA COLLEGE UK,4000169661," 37,576.00 "
Department for Education,NATIONAL COLLEGE FOR TEACHING AND LEADERSHIP AGENCY,06/05/2014,Grants,Operations Directorate,"Grants paid to organisations including agencies, arms length bodies and educational establishments",HIBERNIA COLLEGE UK,4000169661," 72,275.00 "
Department for Education,NATIONAL COLLEGE FOR TEACHING AND LEADERSHIP AGENCY,06/05/2014,Grants,Operations Directorate,"Grants paid to organisations including agencies, arms length bodies and educational establishments",MANCHESTER METROPOLITAN UNIVERSITY,4000169666," 359,550.00 "
Department for Education,NATIONAL COLLEGE FOR TEACHING AND LEADERSHIP AGENCY,06/05/2014,Grants,Operations Directorate,"Grants paid to organisations including agencies, arms length bodies and educational establishments",MANCHESTER METROPOLITAN UNIVERSITY,4000169666," 14,680.00 "
Department for Education,NATIONAL COLLEGE FOR TEACHING AND LEADERSHIP AGENCY,06/05/2014,Grants,Operations Directorate,"Grants paid to organisations including agencies, arms length bodies and educational establishments",ST MARYS UNIVERSITY COLLEGE,4000169667," 150,141.00 "
Department for Education,NATIONAL COLLEGE FOR TEACHING AND LEADERSHIP AGENCY,06/05/2014,Grants,Operations Directorate,"Grants paid to organisations including agencies, arms length bodies and educational establishments",UNIVERSITY OF NORTHAMPTON,4000169668," 48,650.00 "
Department for Education,NATIONAL COLLEGE FOR TEACHING AND LEADERSHIP AGENCY,06/05/2014,Grants,Operations Directorate,"Grants paid to organisations including agencies, arms length bodies and educational establishments",UNIVERSITY OF DERBY,4000169676," 89,830.00 "
Department for Education,NATIONAL COLLEGE FOR TEACHING AND LEADERSHIP AGENCY,06/05/2014,Grants,Operations Directorate,"Grants paid to organisations including agencies, arms length bodies and educational establishments",STAFFORDSHIRE UNIVERSITY,4000169677," 30,380.00 "
Department for Education,NATIONAL COLLEGE FOR TEACHING AND LEADERSHIP AGENCY,06/05/2014,Grants,Operations Directorate,"Grants paid to organisations including agencies, arms length bodies and educational establishments",LEEDS METROPOLITAN UNIVERSITY,4000169678," 26,865.00 "
Department for Education,DEPARTMENT FOR EDUCATION,06/05/2014,Grants,Academies Delivery Group,"Grants paid to organisations including agencies, arms length bodies and educational establishments",DOVEDALE PRIMARY SCHOOL,4000169680," 25,000.00 "
Department for Education,DEPARTMENT FOR EDUCATION,06/05/2014,Grants,Academies Delivery Group,"Grants paid to organisations including agencies, arms length bodies and educational establishments",SHARDLOW PRIMARY SCHOOL,4000169681," 25,000.00 "
Department for Education,DEPARTMENT FOR EDUCATION,06/05/2014,Grants,Academies Delivery Group,"Grants paid to organisations including agencies, arms length bodies and educational establishments",MARKET HARBOROUGH CE PRIMARY SCHOOL,4000169682," 25,000.00 "
Department for Education,DEPARTMENT FOR EDUCATION,06/05/2014,Grants,Academies Delivery Group,"Grants paid to organisations including agencies, arms length bodies and educational establishments",OUR LADY OF MOUNT CARMEL CATHOLIC FIRST SCHOOL,4000169683," 25,000.00 "
Department for Education,NATIONAL COLLEGE FOR TEACHING AND LEADERSHIP AGENCY,06/05/2014,Grants,Operations Directorate,"Grants paid to organisations including agencies, arms length bodies and educational establishments",INSTITUTE OF EDUCATION U.O.L.,4000169687," 393,690.00 "
Department for Education,NATIONAL COLLEGE FOR TEACHING AND LEADERSHIP AGENCY,06/05/2014,Grants,Operations Directorate,"Grants paid to organisations including agencies, arms length bodies and educational establishments",COLCHESTER SCHOOLS SCITT CONSORTIUM,4000169693," 27,040.00 "
Department for Education,DEPARTMENT FOR EDUCATION,06/05/2014,Grants,Academies Delivery Group,"Grants paid to organisations including agencies, arms length bodies and educational establishments",ST AUGUSTINES CATHOLIC HIGH SCHOOL,4000169695," 135,000.00 "
Department for Education,DEPARTMENT FOR EDUCATION,06/05/2014,Grants,Academies Delivery Group,"Grants paid to organisations including agencies, arms length bodies and educational establishments",ST BEDES CATHOLIC MIDDLE SCHOOL,4000169696," 25,000.00 "
Department for Education,DEPARTMENT FOR EDUCATION,06/05/2014,Grants,Academies Delivery Group,"Grants paid to organisations including agencies, arms length bodies and educational establishments",ST PETERS CATHOLIC FIRST SCHOOL,4000169697," 25,000.00 "
Department for Education,DEPARTMENT FOR EDUCATION,06/05/2014,Grants,Academies Delivery Group,"Grants paid to organisations including agencies, arms length bodies and educational establishments",CUTNALL GREEN CE FIRST SCHOOL,4000169699," 25,000.00 "
Department for Education,NATIONAL COLLEGE FOR TEACHING AND LEADERSHIP AGENCY,06/05/2014,Grants,Operations Directorate,"Grants paid to organisations including agencies, arms length bodies and educational establishments",GOLDSMITH COLLEGE,4000169703," 124,940.00 "
Department for Education,NATIONAL COLLEGE FOR TEACHING AND LEADERSHIP AGENCY,06/05/2014,Grants,Operations Directorate,"Grants paid to organisations including agencies, arms length bodies and educational establishments",THE UNIVERSITY OF READING,4000169707," 106,680.00 "
Department for Education,NATIONAL COLLEGE FOR TEACHING AND LEADERSHIP AGENCY,06/05/2014,Grants,Operations Directorate,"Grants paid to organisations including agencies, arms length bodies and educational establishments",THE UNIVERSITY OF READING,4000169707," 3,705.00 "
Department for Education,NATIONAL COLLEGE FOR TEACHING AND LEADERSHIP AGENCY,06/05/2014,Grants,Operations Directorate,"Grants paid to organisations including agencies, arms length bodies and educational establishments",LONDON SOUTH BANK UNIVERSITY,4000169708," 109,479.00 "
Department for Education,NATIONAL COLLEGE FOR TEACHING AND LEADERSHIP AGENCY,06/05/2014,Grants,Operations Directorate,"Grants paid to organisations including agencies, arms length bodies and educational establishments",UNIVERSITY OF SOUTHAMPTON,4000169709," 171,760.00 "
Department for Education,NATIONAL COLLEGE FOR TEACHING AND LEADERSHIP AGENCY,06/05/2014,Grants,Operations Directorate,"Grants paid to organisations including agencies, arms length bodies and educational establishments",THAMES PRIMARY CONSORTIUM,4000169716," 26,080.00 "
Department for Education,NATIONAL COLLEGE FOR TEACHING AND LEADERSHIP AGENCY,06/05/2014,Grants,Operations Directorate,"Grants paid to organisations including agencies, arms length bodies and educational establishments",UNIVERSITY OF CHICHESTER,4000169720," 44,790.00 "
Department for Education,NATIONAL COLLEGE FOR TEACHING AND LEADERSHIP AGENCY,06/05/2014,Grants,Operations Directorate,"Grants paid to organisations including agencies, arms length bodies and educational establishments",UNIVERSITY OF WINCHESTER,4000169721," 31,780.00 "
Department for Education,DEPARTMENT FOR EDUCATION,06/05/2014,Grants,Closing the Gap Group,Grants to third sector organisations / not for profit organisations,PRINCES TRUST VOLUNTEERS PROGRAMME,4000169738," 51,146.00 "
Department for Education,DEPARTMENT FOR EDUCATION,06/05/2014,Grants,Children's Services and Departmental Strategy Safeguarding Group,Grants to local authorities within AEF/AEG (aggregate external funding/aggregate exchequer grant),DERBY CITY COUNCIL,4000169742," 31,648.00 "
Department for Education,DEPARTMENT FOR EDUCATION,06/05/2014,Grants,Free School Group,Grants to third sector organisations / not for profit organisations,BAKER DEARING EDUCATIONAL TRUST,4000169758," 27,784.00 "
Department for Education,DEPARTMENT FOR EDUCATION,06/05/2014,Professional Services Other,Strategic Analysis and Research and Policy Impact Group,Research and evaluation activities,NATIONAL CENTRE FOR SOCIAL RESEARCH,4000169762," 443,516.00 "
Department for Education,DEPARTMENT FOR EDUCATION,06/05/2014,Grants,Academies Delivery Group,"Grants paid to organisations including agencies, arms length bodies and educational establishments",WILLIAM MORRIS SIXTH FORM,4000169766," 25,000.00 "
Department for Education,DEPARTMENT FOR EDUCATION,06/05/2014,Grants,Academies Delivery Group,"Grants paid to organisations including agencies, arms length bodies and educational establishments",ROBUS MULTI ACADEMY TRUST,4000169767," 70,000.00 "
Department for Education,DEPARTMENT FOR EDUCATION,06/05/2014,Grants,Academies Delivery Group,"Grants paid to organisations including agencies, arms length bodies and educational establishments",ST JOHNS C OF E PRIMARY SCHOOL,4000169768," 25,000.00 "
Department for Education,DEPARTMENT FOR EDUCATION,06/05/2014,Grants,Academies Delivery Group,"Grants paid to organisations including agencies, arms length bodies and educational establishments",DILTON MARSH C OF E PRIMARY SCHOOL,4000169775," 25,000.00 "
Department for Education,DEPARTMENT FOR EDUCATION,06/05/2014,Grants,Academies Delivery Group,"Grants paid to organisations including agencies, arms length bodies and educational establishments",LINCOLN ANGLICAN ACADEMY TRUST,4000169778," 70,000.00 "
Department for Education,DEPARTMENT FOR EDUCATION,06/05/2014,Grants,Academies Delivery Group,"Grants paid to organisations including agencies, arms length bodies and educational establishments",PRATTS BOTTOM PRIMARY SCHOOL,4000169788," 100,000.00 "
Department for Education,DEPARTMENT FOR EDUCATION,06/05/2014,Grants,Academies Delivery Group,"Grants paid to organisations including agencies, arms length bodies and educational establishments",WAKEFIELD CITY MULTI ACADEMIES TRUST,4000169799," 70,000.00 "
Department for Education,DEPARTMENT FOR EDUCATION,06/05/2014,Grants,Academies Delivery Group,"Grants paid to organisations including agencies, arms length bodies and educational establishments",ENQUIRE LEARNING TRUST,4000169816," 25,000.00 "
Department for Education,DEPARTMENT FOR EDUCATION,06/05/2014,Professional Services Consultancy and Contingent Labour,Children's Services and Departmental Strategy Early Years Extended Schools and Special Needs Group,Costs related to temporary workers,ATKINS LTD,4000169817," 85,594.00 "
Department for Education,DEPARTMENT FOR EDUCATION,06/05/2014,Grants,Academies Delivery Group,Capital grants paid to a private sector organisation,BRISTOL CHURCH ACADEMIES TRUST,4000169824," 30,000.00 "
Department for Education,DEPARTMENT FOR EDUCATION,06/05/2014,Grants,Academies Delivery Group,"Grants paid to organisations including agencies, arms length bodies and educational establishments",BRISTOL CHURCH ACADEMIES TRUST,4000169824," 90,000.00 "
Department for Education,DEPARTMENT FOR EDUCATION,06/05/2014,Grants,Children's Services and Departmental Strategy Safeguarding Group,Grants to third sector organisations / not for profit organisations,YORKSHIRE MESMAC,4000169825," 41,684.00 "
Department for Education,DEPARTMENT FOR EDUCATION,06/05/2014,Grants,Supporting Delivery Group,"Grants paid to organisations including agencies, arms length bodies and educational establishments",AMBITION,4000169851," 190,264.00 "
Department for Education,DEPARTMENT FOR EDUCATION,06/05/2014,Grants,Children's Services and Departmental Strategy Safeguarding Group,Grants to local authorities within AEF/AEG (aggregate external funding/aggregate exchequer grant),LONDON BOROUGH OF BROMLEY COUNCIL,4000169852," 34,922.00 "
Department for Education,DEPARTMENT FOR EDUCATION,06/05/2014,Grants,Children's Services and Departmental Strategy Safeguarding Group,Grants to local authorities within AEF/AEG (aggregate external funding/aggregate exchequer grant),SHEFFIELD CITY COUNCIL,4000169860," 50,200.00 "
Department for Education,DEPARTMENT FOR EDUCATION,06/05/2014,Grants,Children's Services and Departmental Strategy Safeguarding Group,Grants to local authorities within AEF/AEG (aggregate external funding/aggregate exchequer grant),METROPOLITAN BOROUGH OF WIRRAL,4000169861," 28,374.00 "
Department for Education,DEPARTMENT FOR EDUCATION,06/05/2014,Grants,Children's Services and Departmental Strategy Safeguarding Group,Grants to local authorities within AEF/AEG (aggregate external funding/aggregate exchequer grant),LONDON BOROUGH OF HAMMERSMITH & FULHAM COUNCIL,4000169863," 36,013.00 "
Department for Education,DEPARTMENT FOR EDUCATION,07/05/2014,Facilities,School Standards Group,Business Rates,EUROPEAN SCHOOL CULHAM,4000169938," 99,506.00 "
Department for Education,NATIONAL COLLEGE FOR TEACHING AND LEADERSHIP AGENCY,07/05/2014,Office Solutions,Operations Directorate,Post and courier services,MM TELEPERFORMANCE,4000169956," 4,109.00 "
Department for Education,NATIONAL COLLEGE FOR TEACHING AND LEADERSHIP AGENCY,07/05/2014,Professional Services Other,Delivery Directorate,"Fees / expenses of professionals from the private sector, for example to implement advice or changes",MM TELEPERFORMANCE,4000169956," 352,236.00 "
Department for Education,NATIONAL COLLEGE FOR TEACHING AND LEADERSHIP AGENCY,07/05/2014,Professional Services Other,Delivery Directorate,"Fees / expenses of professionals from the private sector, for example to implement advice or changes",MM TELEPERFORMANCE,4000169956," 12,598.00 "
Department for Education,NATIONAL COLLEGE FOR TEACHING AND LEADERSHIP AGENCY,07/05/2014,Professional Services Consultancy and Contingent Labour,Delivery Directorate,"Fees / expenses of professionals from the private sector such as auditors, accountants, lawyers, etc. engaged to provide advice or opinion on how to affect something",MM TELEPERFORMANCE,4000169956," 18,864.00 "
Department for Education,DEPARTMENT FOR EDUCATION,07/05/2014,Professional Services Other,Strategic Analysis and Research and Policy Impact Group,Research and evaluation activities,RM EDUCATION,4000169962," 121,993.00 "
Department for Education,DEPARTMENT FOR EDUCATION,07/05/2014,ICT,Education Strategy Performance Analysis Group,ICT Services,RM EDUCATION,4000169962," 280,637.00 "
Department for Education,NATIONAL COLLEGE FOR TEACHING AND LEADERSHIP AGENCY,07/05/2014,Operational Goods,Operations Directorate,Learning and Development Materials,TEXUNA TECHNOLOGIES,4000169965," 28,666.00 "
Department for Education,DEPARTMENT FOR EDUCATION,07/05/2014,Programme costs,Children's Services and Departmental Strategy Early Years Extended Schools and Special Needs Group,Funding to deliver policies (excluding consultancy) paid to third parties via a service delivery contract,MOTT MACDONALD LTD,4000169970," 583,185.00 "
Department for Education,NATIONAL COLLEGE FOR TEACHING AND LEADERSHIP AGENCY,07/05/2014,Professional Services Other,Design and Development Directorate,"Fees / expenses of professionals from the private sector, for example to implement advice or changes",GOOD PRACTICE LTD,4000169987," 156,000.00 "
Department for Education,NATIONAL COLLEGE FOR TEACHING AND LEADERSHIP AGENCY,07/05/2014,Professional Services Other,Licenced Provision Directorate,"Fees / expenses of professionals from the private sector, for example to implement advice or changes",FUTURE LEADERS LTD,4000169993," 464,000.00 "
Department for Education,STANDARDS AND TESTING AGENCY,07/05/2014,Professional Services Other,Test Operation Division,"Fees / expenses of professionals from the private sector, for example to implement advice or changes",NFER TRADING LIMITED INV T,4000170022," 106,656.00 "
Department for Education,DEPARTMENT FOR EDUCATION,08/05/2014,Professional Services Consultancy and Contingent Labour,Families Group,"Advisory services including fees, travel and expenses",DELOITTE MSC LTD,4000170045," 93,617.00 "
Department for Education,DEPARTMENT FOR EDUCATION,08/05/2014,Grants,Families Group,Grants to third sector organisations / not for profit organisations,CORAM,4000170046," 68,034.00 "
Department for Education,DEPARTMENT FOR EDUCATION,08/05/2014,Grants,Children's Services and Departmental Strategy Early Years Extended Schools and Special Needs Group,Grants to third sector organisations / not for profit organisations,NATIONAL DAY NURSERIES ASSOCIATION,4000170050," 25,462.00 "
Department for Education,DEPARTMENT FOR EDUCATION,08/05/2014,Grants,Closing the Gap Group,"Grants paid to organisations including agencies, arms length bodies and educational establishments",COMMANDO JOES,4000170054," 144,624.00 "
Department for Education,STANDARDS AND TESTING AGENCY,08/05/2014,Office Solutions,Test Operation Division,Office Supplies,GRANBY MARKETING SERVICES LTD,4000170078," 410,498.00 "
Department for Education,DEPARTMENT FOR EDUCATION,08/05/2014,ICT,Children's Services and Departmental Strategy Early Years Extended Schools and Special Needs Group,ICT Services,CAPGEMINI UK PLC,4000170091," 10,800.00 "
Department for Education,DEPARTMENT FOR EDUCATION,08/05/2014,ICT,Education Strategy Performance Analysis Group,ICT Services,CAPGEMINI UK PLC,4000170091," 99,783.00 "
Department for Education,DEPARTMENT FOR EDUCATION,08/05/2014,Grants,Supporting Delivery Group,"Grants paid to organisations including agencies, arms length bodies and educational establishments",NORTH MUSIC TRUST,4000170116," 195,600.00 "
Department for Education,DEPARTMENT FOR EDUCATION,08/05/2014,Programme costs,Teachers Group,Funding to deliver policies (excluding consultancy) paid to third parties via a service delivery contract,CAPITA LIFE & PENSIONS SERVICES LTD,4000170132," 930,590.00 "
Department for Education,DEPARTMENT FOR EDUCATION,08/05/2014,Grants,Curriculum and General Qualifications Reform Group,Grants to third sector organisations / not for profit organisations,BRITISH SCIENCE ASSOCIATION,4000170135," 54,879.00 "
Department for Education,DEPARTMENT FOR EDUCATION,08/05/2014,Grants,Academies Delivery Group,"Grants paid to organisations including agencies, arms length bodies and educational establishments",SOUTHAMPTON CITY COUNCIL,4000170161," 100,000.00 "
Department for Education,DEPARTMENT FOR EDUCATION,08/05/2014,Grants,Children's Services and Departmental Strategy Safeguarding Group,Grants to third sector organisations / not for profit organisations,CSV,4000170162," 177,121.00 "
Department for Education,DEPARTMENT FOR EDUCATION,08/05/2014,Grants,Families Group,Grants to third sector organisations / not for profit organisations,AFTER ADOPTION,4000170165," 82,899.00 "
Department for Education,DEPARTMENT FOR EDUCATION,08/05/2014,Professional Services Other,Strategic Analysis and Research and Policy Impact Group,Research and evaluation activities,ISOS PARTNERSHIP LLP,4000170166," 27,528.00 "
Department for Education,DEPARTMENT FOR EDUCATION,08/05/2014,Programme costs,Education Strategy Performance Analysis Group,Funding to deliver policies (excluding consultancy) paid to third parties via a service delivery contract,RESEARCH MACHINES PLC,4000170169," 464,047.00 "
Department for Education,DEPARTMENT FOR EDUCATION,09/05/2014,Programme costs,Families Group,Funding to deliver policies (excluding consultancy) paid to third parties via a service delivery contract,FAMILY RIGHTS GROUP LTD,4000170203," 32,268.00 "
Department for Education,DEPARTMENT FOR EDUCATION,12/05/2014,Grants,Free School Group,"Grants paid to organisations including agencies, arms length bodies and educational establishments",UTC SWINDON,4000170271," 30,000.00 "
Department for Education,DEPARTMENT FOR EDUCATION,12/05/2014,Grants,Academies Delivery Group,"Grants paid to organisations including agencies, arms length bodies and educational establishments",ERNESETTLE COMMUNITY SCHOOL,4000170299," 25,000.00 "
Department for Education,DEPARTMENT FOR EDUCATION,12/05/2014,Grants,Academies Delivery Group,"Grants paid to organisations including agencies, arms length bodies and educational establishments",BLACK FIRS PRIMARY SCHOOL,4000170300," 25,000.00 "
Department for Education,DEPARTMENT FOR EDUCATION,12/05/2014,Grants,Academies Delivery Group,"Grants paid to organisations including agencies, arms length bodies and educational establishments",DERBY DIOCESAN BOARD OF EDUCATION,4000170306," 140,000.00 "
Department for Education,DEPARTMENT FOR EDUCATION,12/05/2014,Grants,Academies Delivery Group,"Grants paid to organisations including agencies, arms length bodies and educational establishments",LEICESTER DIOCESAN BOARD OG EDUCATION,4000170317," 25,000.00 "
Department for Education,DEPARTMENT FOR EDUCATION,12/05/2014,Grants,Academies Delivery Group,"Grants paid to organisations including agencies, arms length bodies and educational establishments",BATH & WELLS MULTI ACADEMY TRUST,4000170321," 50,000.00 "
Department for Education,DEPARTMENT FOR EDUCATION,12/05/2014,Grants,Office of the Schools Commissioner Group,"Grants paid to organisations including agencies, arms length bodies and educational establishments",NORTH LIVERPOOL ACADEMY,4000170328," 28,707.00 "
Department for Education,DEPARTMENT FOR EDUCATION,12/05/2014,Grants,Children's Services and Departmental Strategy Early Years Extended Schools and Special Needs Group,"Grants paid to organisations including agencies, arms length bodies and educational establishments",TREEHOUSE SCHOOL,4000170330," 176,183.00 "
Department for Education,DEPARTMENT FOR EDUCATION,12/05/2014,Grants,Children's Services and Departmental Strategy Early Years Extended Schools and Special Needs Group,Grants to third sector organisations / not for profit organisations,I CAN CHARITY,4000170331," 142,547.00 "
Department for Education,DEPARTMENT FOR EDUCATION,12/05/2014,Grants,Academies Delivery Group,"Grants paid to organisations including agencies, arms length bodies and educational establishments",THE BRUNTS SCHOOL,4000170345," 30,000.00 "
Department for Education,DEPARTMENT FOR EDUCATION,12/05/2014,Grants,Free School Group,"Grants paid to organisations including agencies, arms length bodies and educational establishments",SCHOOL PARTNERSHIP TRUST ACADEMIES,4000170350," 35,897.00 "
Department for Education,DEPARTMENT FOR EDUCATION,12/05/2014,ICT,Chief Information Officer Group,ICT Services,EDUSERV,4000170353," 174,924.00 "
Department for Education,DEPARTMENT FOR EDUCATION,13/05/2014,Programme costs,Curriculum and General Qualifications Reform Group,Funding to deliver policies (excluding consultancy) paid to third parties via a service delivery contract,IOP INSTITUTE OF PHYSICS,4000170369," 457,214.00 "
Department for Education,DEPARTMENT FOR EDUCATION,13/05/2014,Programme costs,Education Strategy Performance Analysis Group,Funding to deliver policies (excluding consultancy) paid to third parties via a service delivery contract,RESEARCH MACHINES PLC,4000170372," 464,047.00 "
Department for Education,DEPARTMENT FOR EDUCATION,13/05/2014,Programme costs,Families Group,Funding to deliver policies (excluding consultancy) paid to third parties via a service delivery contract,TAVISTOCK CENTRE FOR COUPLE RELATIONSHIPS,4000170374," 248,898.00 "
Department for Education,DEPARTMENT FOR EDUCATION,13/05/2014,Grants,Families Group,Grants to third sector organisations / not for profit organisations,TAVISTOCK CENTRE FOR COUPLE RELATIONSHIPS,4000170374," 25,000.00 "
Department for Education,DEPARTMENT FOR EDUCATION,13/05/2014,Programme costs,Families Group,Funding to deliver policies (excluding consultancy) paid to third parties via a service delivery contract,ONE PLUS ONE,4000170381," 31,682.00 "
Department for Education,DEPARTMENT FOR EDUCATION,13/05/2014,Programme costs,Curriculum and General Qualifications Reform Group,Funding to deliver policies (excluding consultancy) paid to third parties via a service delivery contract,EDGE HILL UNIVERSITY,4000170382, -   
Department for Education,NATIONAL COLLEGE FOR TEACHING AND LEADERSHIP AGENCY,13/05/2014,Programme costs,Delivery Directorate,Funding to deliver policies (excluding consultancy) paid to third parties via a service delivery contract,EDGE HILL UNIVERSITY,4000170382," 133,828.00 "
Department for Education,DEPARTMENT FOR EDUCATION,13/05/2014,Programme costs,Children's Services and Departmental Strategy Early Years Extended Schools and Special Needs Group,Funding to deliver policies (excluding consultancy) paid to third parties via a service delivery contract,I CAN CHARITY,4000170383," 426,228.00 "
Department for Education,DEPARTMENT FOR EDUCATION,13/05/2014,Grants,Closing the Gap Group,Grants to third sector organisations / not for profit organisations,CHALLENGER TROOP,4000170395," 107,526.00 "
Department for Education,DEPARTMENT FOR EDUCATION,13/05/2014,Grants,Closing the Gap Group,"Grants paid to organisations including agencies, arms length bodies and educational establishments",KNOWSLEY SKILLS ACADEMY,4000170396," 39,148.00 "
Department for Education,DEPARTMENT FOR EDUCATION,13/05/2014,Professional Services Other,System Reform Group,Legal services provided externally (excluding Treasury Solicitor) ,DLA PIPER UK LLP,4000170419," 38,360.00 "
Department for Education,STANDARDS AND TESTING AGENCY,13/05/2014,Programme costs,Test Operation Division,Funding to deliver policies (excluding consultancy) paid to third parties via a service delivery contract,PEARSON EDUCATION LTD,4000170455," 3,813,603.00 "
Department for Education,DEPARTMENT FOR EDUCATION,13/05/2014,Programme costs,Families Group,Funding to deliver policies (excluding consultancy) paid to third parties via a service delivery contract,UNIVERSITY OF ESSEX,4000170459," 30,950.00 "
Department for Education,DEPARTMENT FOR EDUCATION,13/05/2014,Professional Services Other,Finance and Commercial Group,Shared corporate accounting services,SHARED SERVICES CONNECTED LTD,4000170469," 278,909.00 "
Department for Education,NATIONAL COLLEGE FOR TEACHING AND LEADERSHIP AGENCY,13/05/2014,Programme costs,Research and Development Directorate,Funding to deliver policies (excluding consultancy) paid to third parties via a service delivery contract,CFBT EDUCATION TRUST,4000170477," 31,656.00 "
Department for Education,DEPARTMENT FOR EDUCATION,13/05/2014,Grants,Children's Services and Departmental Strategy Safeguarding Group,Grants to third sector organisations / not for profit organisations,NWG NETWORK,4000170492," 30,298.00 "
Department for Education,DEPARTMENT FOR EDUCATION,13/05/2014,Grants,Children's Services and Departmental Strategy Safeguarding Group,Grants to third sector organisations / not for profit organisations,COORDINATED ACTION AGAINST DOMESTIC ABUSE,4000170493," 97,023.00 "
Department for Education,DEPARTMENT FOR EDUCATION,13/05/2014,Grants,Children's Services and Departmental Strategy Safeguarding Group,Grants to third sector organisations / not for profit organisations,YOUTH ACCESS,4000170495," 102,067.00 "
Department for Education,NATIONAL COLLEGE FOR TEACHING AND LEADERSHIP AGENCY,13/05/2014,Communications,Operations Directorate, Marketing services,M4C,4000170500," 32,772.00 "
Department for Education,NATIONAL COLLEGE FOR TEACHING AND LEADERSHIP AGENCY,13/05/2014,Communications,Operations Directorate, Marketing services,M4C,4000170500," 2,661.00 "
Department for Education,DEPARTMENT FOR EDUCATION,13/05/2014,Programme costs,Families Group,Funding to deliver policies (excluding consultancy) paid to third parties via a service delivery contract,CORAM,4000170506," 35,902.00 "
Department for Education,DEPARTMENT FOR EDUCATION,13/05/2014,Grants,Children's Services and Departmental Strategy Safeguarding Group,Grants to third sector organisations / not for profit organisations,NSPCC,4000170515," 550,000.00 "
Department for Education,DEPARTMENT FOR EDUCATION,14/05/2014,Communications,Education Strategy Performance Analysis Group,Marketing services,SCISYS UK LTD,4000170522," 25,000.00 "
Department for Education,DEPARTMENT FOR EDUCATION,14/05/2014,Professional Services Other,System Reform Group,Legal services provided externally (excluding Treasury Solicitor) ,WILLIS GROUP,4000170538," 38,889.00 "
Department for Education,DEPARTMENT FOR EDUCATION,14/05/2014,Grants,Academies Delivery Group,"Grants paid to organisations including agencies, arms length bodies and educational establishments",NORTHERN EDUCATION TRUST,4000170544," 70,000.00 "
Department for Education,DEPARTMENT FOR EDUCATION,14/05/2014,Grants,Free School Group,"Grants paid to organisations including agencies, arms length bodies and educational establishments",NEW SCHOOLS NETWORK,4000170548," 126,485.00 "
Department for Education,DEPARTMENT FOR EDUCATION,14/05/2014,Grants,Academies Delivery Group,"Grants paid to organisations including agencies, arms length bodies and educational establishments",ST SIMON & JUDE CE PRIMARY SCHOOL,4000170549," 70,000.00 "
Department for Education,DEPARTMENT FOR EDUCATION,14/05/2014,Grants,Academies Delivery Group,"Grants paid to organisations including agencies, arms length bodies and educational establishments",THE QUEEN KATHERINE SCHOOL ACADEMY TRUST,4000170559," 80,000.00 "
Department for Education,NATIONAL COLLEGE FOR TEACHING AND LEADERSHIP AGENCY,14/05/2014,Travel,School Improvement Directorate,Business travel,NIKI THOMAS EDUCATIONAL CONSULTANCY LTD,4000170563, 482.00 
Department for Education,NATIONAL COLLEGE FOR TEACHING AND LEADERSHIP AGENCY,14/05/2014,Programme costs,School Improvement Directorate,Funding to deliver policies (excluding consultancy) paid to third parties via a service delivery contract,NIKI THOMAS EDUCATIONAL CONSULTANCY LTD,4000170563," 39,175.00 "
Department for Education,DEPARTMENT FOR EDUCATION,14/05/2014,Grants,Academies Delivery Group,"Grants paid to organisations including agencies, arms length bodies and educational establishments",AIREDALE HIGH SCHOOL,4000170567," 70,000.00 "
Department for Education,DEPARTMENT FOR EDUCATION,14/05/2014,Grants,Academies Delivery Group,"Grants paid to organisations including agencies, arms length bodies and educational establishments",MARHAM JUNIOR SCHOOL,4000170569," 25,000.00 "
Department for Education,DEPARTMENT FOR EDUCATION,14/05/2014,Grants,Academies Delivery Group,"Grants paid to organisations including agencies, arms length bodies and educational establishments",CANFORD HEATH JUNIOR SCHOOL,4000170570," 25,000.00 "
Department for Education,DEPARTMENT FOR EDUCATION,14/05/2014,Grants,Academies Delivery Group,"Grants paid to organisations including agencies, arms length bodies and educational establishments",CANFORD HEATH INFANT SCHOOL,4000170571," 25,000.00 "
Department for Education,DEPARTMENT FOR EDUCATION,14/05/2014,Grants,Academies Delivery Group,"Grants paid to organisations including agencies, arms length bodies and educational establishments",AD ASTRA INFANT SCHOOL,4000170572," 25,000.00 "
Department for Education,DEPARTMENT FOR EDUCATION,14/05/2014,Grants,Academies Delivery Group,"Grants paid to organisations including agencies, arms length bodies and educational establishments",HAYMOOR JUNIOR SCHOOL,4000170573," 135,000.00 "
Department for Education,DEPARTMENT FOR EDUCATION,14/05/2014,Grants,Academies Delivery Group,"Grants paid to organisations including agencies, arms length bodies and educational establishments",DEVONSHIRE INFANT SCHOOL,4000170574," 25,000.00 "
Department for Education,DEPARTMENT FOR EDUCATION,14/05/2014,Grants,Academies Delivery Group,"Grants paid to organisations including agencies, arms length bodies and educational establishments",DEVONSHIRE JUNIOR SCHOOL,4000170575," 25,000.00 "
Department for Education,DEPARTMENT FOR EDUCATION,14/05/2014,Grants,Academies Delivery Group,"Grants paid to organisations including agencies, arms length bodies and educational establishments",CLEVES CROSS LEARNING TRUST,4000170576," 70,000.00 "
Department for Education,DEPARTMENT FOR EDUCATION,14/05/2014,Grants,Academies Delivery Group,"Grants paid to organisations including agencies, arms length bodies and educational establishments",CHIPSTEAD VALLEY ACADEMY TRUST,4000170577," 25,000.00 "
Department for Education,DEPARTMENT FOR EDUCATION,14/05/2014,Grants,Academies Delivery Group,"Grants paid to organisations including agencies, arms length bodies and educational establishments",QUEENS CRESCENT PRIMARY SCHOOL,4000170578," 25,000.00 "
Department for Education,DEPARTMENT FOR EDUCATION,14/05/2014,Grants,Academies Delivery Group,"Grants paid to organisations including agencies, arms length bodies and educational establishments",MOORGATE COMMUNITY PRIMARY SCHOOL,4000170579," 25,000.00 "
Department for Education,DEPARTMENT FOR EDUCATION,14/05/2014,Grants,Academies Delivery Group,"Grants paid to organisations including agencies, arms length bodies and educational establishments",DOVEDALE PRIMARY SCHOOL,4000170581," 110,000.00 "
Department for Education,DEPARTMENT FOR EDUCATION,14/05/2014,Grants,Academies Delivery Group,"Grants paid to organisations including agencies, arms length bodies and educational establishments",ARCHBISHOP WAKE CE VA PRIMARY SCHOOL,4000170586," 100,000.00 "
Department for Education,DEPARTMENT FOR EDUCATION,14/05/2014,Grants,Free School Group,"Grants paid to organisations including agencies, arms length bodies and educational establishments",THE ALDRIDGE FOUNDATION,4000170589," 90,000.00 "
Department for Education,DEPARTMENT FOR EDUCATION,14/05/2014,Grants,Academies Delivery Group,"Grants paid to organisations including agencies, arms length bodies and educational establishments",CANTERBURY DIOCESAN BOARD OF FINANCE,4000170590," 140,000.00 "
Department for Education,DEPARTMENT FOR EDUCATION,14/05/2014,Grants,Academies Delivery Group,"Grants paid to organisations including agencies, arms length bodies and educational establishments",GUILDFORD EDUCATION PARTNERSHIP,4000170591," 25,000.00 "
Department for Education,DEPARTMENT FOR EDUCATION,14/05/2014,Grants,Academies Delivery Group,"Grants paid to organisations including agencies, arms length bodies and educational establishments",THE GLYN LEARNING FOUNDATION,4000170592," 25,000.00 "
Department for Education,DEPARTMENT FOR EDUCATION,14/05/2014,Grants,Academies Delivery Group,"Grants paid to organisations including agencies, arms length bodies and educational establishments",CO OP ACADEMIES,4000170593," 33,750.00 "
Department for Education,STANDARDS AND TESTING AGENCY,15/05/2014,Programme costs,Test Development Division,Funding to deliver policies (excluding consultancy) paid to third parties via a service delivery contract,NFER TRADING LIMITED INV T,4000170599," 176,495.00 "
Department for Education,NATIONAL COLLEGE FOR TEACHING AND LEADERSHIP AGENCY,15/05/2014,Programme costs,Delivery Directorate,Funding to deliver policies (excluding consultancy) paid to third parties via a service delivery contract,MYSCIENCE CO LTD,4000170600," 160,277.00 "
Department for Education,NATIONAL COLLEGE FOR TEACHING AND LEADERSHIP AGENCY,15/05/2014,Grants,Delivery Directorate,"Grants paid to organisations including agencies, arms length bodies and educational establishments",UNIVERSITY OF CHICHESTER,4000170606," 32,400.00 "
Department for Education,DEPARTMENT FOR EDUCATION,15/05/2014,ICT,Finance and Commercial Group,ICT Services,CABINET OFFICE,4000170618," 1,182.00 "
Department for Education,DEPARTMENT FOR EDUCATION,15/05/2014,Professional Services Other,Finance and Commercial Group,Shared corporate accounting services,CABINET OFFICE,4000170618," 16,432.00 "
Department for Education,DEPARTMENT FOR EDUCATION,15/05/2014,Professional Services Other,Finance and Commercial Group,Shared corporate payroll services,CABINET OFFICE,4000170618," 32,599.00 "
Department for Education,DEPARTMENT FOR EDUCATION,15/05/2014,Programme costs,Children's Services and Departmental Strategy Early Years Extended Schools and Special Needs Group,Funding to deliver policies (excluding consultancy) paid to third parties via a service delivery contract,BRITISH DYSLEXIA ASSOCIATION,4000170625," 78,297.00 "
Department for Education,DEPARTMENT FOR EDUCATION,15/05/2014,ICT,Chief Information Officer Group,ICT Services,EDUSERV,4000170647," 123,179.00 "
Department for Education,DEPARTMENT FOR EDUCATION,15/05/2014,Programme costs,Children's Services and Departmental Strategy Early Years Extended Schools and Special Needs Group,Funding to deliver policies (excluding consultancy) paid to third parties via a service delivery contract,NATIONAL AUTISTIC SOCIETY,4000170662," 248,560.00 "
Department for Education,DEPARTMENT FOR EDUCATION,15/05/2014,Programme costs,Families Group,Funding to deliver policies (excluding consultancy) paid to third parties via a service delivery contract,FAMILY LIVES,4000170670," 68,251.00 "
Department for Education,NATIONAL COLLEGE FOR TEACHING AND LEADERSHIP AGENCY,15/05/2014,Programme costs,Delivery Directorate,Funding to deliver policies (excluding consultancy) paid to third parties via a service delivery contract,EASTERN LEADERSHIP CENTRE,4000170673," 31,590.00 "
Department for Education,DEPARTMENT FOR EDUCATION,15/05/2014,Programme costs,Children's Services and Departmental Strategy Early Years Extended Schools and Special Needs Group,Funding to deliver policies (excluding consultancy) paid to third parties via a service delivery contract,4 CHILDREN EARLY INTERVENTION,4000170676," 103,110.00 "
Department for Education,DEPARTMENT FOR EDUCATION,16/05/2014,Programme costs,Families Group,Funding to deliver policies (excluding consultancy) paid to third parties via a service delivery contract,NETMUMS COM,4000170711," 64,000.00 "
Department for Education,DEPARTMENT FOR EDUCATION,16/05/2014,ICT,Chief Information Officer Group,ICT Services,KELWAY UK LTD,4000170737," 64,000.00 "
Department for Education,DEPARTMENT FOR EDUCATION,16/05/2014,Programme costs,Teachers Group,Funding to deliver policies (excluding consultancy) paid to third parties via a service delivery contract,CAPITA LIFE & PENSIONS SERVICES LTD,4000170746," 132,861.00 "
Department for Education,DEPARTMENT FOR EDUCATION,16/05/2014,Grants,Closing the Gap Group,Grants to third sector organisations / not for profit organisations,CADET VOCATIONAL QUALIFICATIONS ORGANISATION LTD,4000170771," 85,437.00 "
Department for Education,DEPARTMENT FOR EDUCATION,16/05/2014,Programme costs,Families Group,Funding to deliver policies (excluding consultancy) paid to third parties via a service delivery contract,FAMILY RIGHTS GROUP LTD,4000170772," 28,949.00 "
Department for Education,DEPARTMENT FOR EDUCATION,16/05/2014,Grants,Children's Services and Departmental Strategy Early Years Extended Schools and Special Needs Group,Grants to third sector organisations / not for profit organisations,NATIONAL DEAF CHILDRENS SOCIETY,4000170777," 69,146.00 "
Department for Education,DEPARTMENT FOR EDUCATION,16/05/2014,Grants,Children's Services and Departmental Strategy Early Years Extended Schools and Special Needs Group,"Grants paid to organisations including agencies, arms length bodies and educational establishments",INSTITUTE OF WELLBEING LTD,4000170782," 29,951.00 "
Department for Education,DEPARTMENT FOR EDUCATION,16/05/2014,Grants,Children's Services and Departmental Strategy Early Years Extended Schools and Special Needs Group,"Grants paid to organisations including agencies, arms length bodies and educational establishments",INSTITUTE OF EDUCATION U.O.L.,4000170794," 56,458.00 "
Department for Education,DEPARTMENT FOR EDUCATION,16/05/2014,Grants,Supporting Delivery Group,Grants to third sector organisations / not for profit organisations,THE ANNA FREUD CENTRE,4000170810," 92,726.00 "
Department for Education,DEPARTMENT FOR EDUCATION,16/05/2014,ICT,Chief Information Officer Group,ICT Software,SOURCECODE UK LTD,4000170812," 30,318.00 "
Department for Education,DEPARTMENT FOR EDUCATION,19/05/2014,Grants,Academies Delivery Group,"Grants paid to organisations including agencies, arms length bodies and educational establishments",ST MINVER SCHOOL,4000170853," 25,000.00 "
Department for Education,DEPARTMENT FOR EDUCATION,19/05/2014,Grants,Academies Delivery Group,"Grants paid to organisations including agencies, arms length bodies and educational establishments",DALSTON LISTERDALE JUNIOR & INFANT SCHOOL,4000170854," 25,000.00 "
Department for Education,DEPARTMENT FOR EDUCATION,19/05/2014,Grants,Academies Delivery Group,"Grants paid to organisations including agencies, arms length bodies and educational establishments",ANSTON GREENLANDS JUNIOR & INFANT SCHOOL,4000170855," 25,000.00 "
Department for Education,DEPARTMENT FOR EDUCATION,19/05/2014,Grants,Academies Delivery Group,"Grants paid to organisations including agencies, arms length bodies and educational establishments",HAMPTON COLLEGE,4000170857," 25,000.00 "
Department for Education,DEPARTMENT FOR EDUCATION,19/05/2014,Grants,Academies Delivery Group,"Grants paid to organisations including agencies, arms length bodies and educational establishments",WORDSWORTH PRIMARY SCHOOL,4000170858," 25,000.00 "
Department for Education,DEPARTMENT FOR EDUCATION,19/05/2014,Grants,Children's Services and Departmental Strategy Early Years Extended Schools and Special Needs Group,Grants to third sector organisations / not for profit organisations,THE NATIONAL AUTISTIC SOCIETY VCS,4000170859," 85,497.00 "
Department for Education,DEPARTMENT FOR EDUCATION,19/05/2014,Grants,Academies Delivery Group,"Grants paid to organisations including agencies, arms length bodies and educational establishments",RIGHTFORSUCCESS TRUST,4000170865," 140,000.00 "
Department for Education,DEPARTMENT FOR EDUCATION,19/05/2014,Grants,Academies Delivery Group,"Grants paid to organisations including agencies, arms length bodies and educational establishments",ST NICHOLAS CE PRIMARY SCHOOL,4000170866," 25,000.00 "
Department for Education,DEPARTMENT FOR EDUCATION,19/05/2014,Grants,Academies Delivery Group,"Grants paid to organisations including agencies, arms length bodies and educational establishments",HAYDON WICK PRIMARY SCHOOL,4000170867," 25,000.00 "
Department for Education,DEPARTMENT FOR EDUCATION,19/05/2014,Grants,Academies Delivery Group,"Grants paid to organisations including agencies, arms length bodies and educational establishments",MOORGATE COMMUNITY PRIMARY SCHOOL,4000170868," 45,000.00 "
Department for Education,DEPARTMENT FOR EDUCATION,19/05/2014,Grants,Academies Delivery Group,Capital grants paid to a private sector organisation,GUILDFORD EDUCATION PARTNERSHIP,4000170889," 80,000.00 "
Department for Education,DEPARTMENT FOR EDUCATION,19/05/2014,Grants,Academies Delivery Group,"Grants paid to organisations including agencies, arms length bodies and educational establishments",DAVID ROSS EDUCATION TRUST,4000170891," 25,000.00 "
Department for Education,DEPARTMENT FOR EDUCATION,19/05/2014,Grants,Children's Services and Departmental Strategy Early Years Extended Schools and Special Needs Group,Grants to third sector organisations / not for profit organisations,AUTISM WEST MIDLANDS,4000170892," 99,179.00 "
Department for Education,DEPARTMENT FOR EDUCATION,19/05/2014,ICT,Education Strategy Performance Analysis Group,ICT Services,CAPGEMINI UK PLC,4000170896," 26,471.00 "
Department for Education,NATIONAL COLLEGE FOR TEACHING AND LEADERSHIP AGENCY,19/05/2014,Grants,Delivery Directorate,"Grants paid to organisations including agencies, arms length bodies and educational establishments",THE UNIVERSITY OF MANCHESTER,4000170913," 42,000.00 "
Department for Education,DEPARTMENT FOR EDUCATION,19/05/2014,Grants,Children's Services and Departmental Strategy Early Years Extended Schools and Special Needs Group,Grants to third sector organisations / not for profit organisations,SCOPE,4000170941," 147,940.00 "
Department for Education,DEPARTMENT FOR EDUCATION,20/05/2014,Grants,Children's Services and Departmental Strategy Early Years Extended Schools and Special Needs Group,Grants to third sector organisations / not for profit organisations,BRITISH DYSLEXIA ASSOCIATION,4000170953," 37,564.00 "
Department for Education,DEPARTMENT FOR EDUCATION,20/05/2014,Grants,Children's Services and Departmental Strategy Supporting Delivery Group,Grants to third sector organisations / not for profit organisations,THE CHILDRENS PARTNERSHIP,4000170959," 150,000.00 "
Department for Education,STANDARDS AND TESTING AGENCY,20/05/2014,Office Solutions,Test Operation Division,Post and courier services,PARCELFORCE WORLDWIDE,4000170965," 27,764.00 "
Department for Education,DEPARTMENT FOR EDUCATION,20/05/2014,Energy and Fuels,Finance and Commercial Group - Property Asset Management,Electricity supply,EDF ENERGY LTD,4000170975," 109,441.00 "
Department for Education,DEPARTMENT FOR EDUCATION,20/05/2014,Programme costs,Curriculum and General Qualifications Reform Group,Funding to deliver policies (excluding consultancy) paid to third parties via a service delivery contract,MATHEMATICS IN EDUCATION & INDUSTRY,4000170976," 274,000.00 "
Department for Education,DEPARTMENT FOR EDUCATION,20/05/2014,Grants,Academies Delivery Group,"Grants paid to organisations including agencies, arms length bodies and educational establishments",ORMISTON ACADEMIES TRUST,4000170995," 80,000.00 "
Department for Education,DEPARTMENT FOR EDUCATION,20/05/2014,Grants,Academies Delivery Group,"Grants paid to organisations including agencies, arms length bodies and educational establishments",ORMISTON ACADEMIES TRUST,4000170995," 25,000.00 "
Department for Education,DEPARTMENT FOR EDUCATION,20/05/2014,Grants,Academies Delivery Group,"Grants paid to organisations including agencies, arms length bodies and educational establishments",HAGLEY PRIMARY SCHOOL,4000170999," 25,000.00 "
Department for Education,DEPARTMENT FOR EDUCATION,20/05/2014,ICT,Chief Information Officer Group,ICT Services,CAPGEMINI UK PLC,4000171013," 108,219.00 "
Department for Education,DEPARTMENT FOR EDUCATION,20/05/2014,Grants,Academies Delivery Group,"Grants paid to organisations including agencies, arms length bodies and educational establishments",ST ANDREWS CE VA PRIMARY SCHOOL,4000171023," 100,000.00 "
Department for Education,DEPARTMENT FOR EDUCATION,20/05/2014,Grants,Children's Services and Departmental Strategy Safeguarding Group,Grants to third sector organisations / not for profit organisations,BARNARDOS,4000171027," 181,196.00 "
Department for Education,DEPARTMENT FOR EDUCATION,20/05/2014,Grants,Free School Group,"Grants paid to organisations including agencies, arms length bodies and educational establishments",EDDIE DAVIES EDUCATIONAL TRUST SCHOOL,4000171031," 58,200.00 "
Department for Education,DEPARTMENT FOR EDUCATION,20/05/2014,Grants,Academies Delivery Group,"Grants paid to organisations including agencies, arms length bodies and educational establishments",NORTH VIEW SCHOOL,4000171032," 25,000.00 "
Department for Education,DEPARTMENT FOR EDUCATION,20/05/2014,Grants,Academies Delivery Group,"Grants paid to organisations including agencies, arms length bodies and educational establishments",THE KEMNAL ACADEMIES TRUST,4000171037," 70,000.00 "
Department for Education,DEPARTMENT FOR EDUCATION,20/05/2014,Grants,Academies Delivery Group,"Grants paid to organisations including agencies, arms length bodies and educational establishments",ESHER CHURCH SCHOOL,4000171042," 25,000.00 "
Department for Education,DEPARTMENT FOR EDUCATION,20/05/2014,Grants,Academies Delivery Group,"Grants paid to organisations including agencies, arms length bodies and educational establishments",GREATFIELD PARK PRIMARY,4000171043," 25,000.00 "
Department for Education,DEPARTMENT FOR EDUCATION,20/05/2014,Grants,Academies Delivery Group,"Grants paid to organisations including agencies, arms length bodies and educational establishments",CHIPSTEAD VALLEY ACADEMY TRUST,4000171044," 25,000.00 "
Department for Education,DEPARTMENT FOR EDUCATION,20/05/2014,Grants,Children's Services and Departmental Strategy Early Years Extended Schools and Special Needs Group,Grants to third sector organisations / not for profit organisations,FAMILY ACTION,4000171051," 126,638.00 "
Department for Education,DEPARTMENT FOR EDUCATION,21/05/2014,Professional Services Other,Strategic Analysis and Research and Policy Impact Group,Research and evaluation activities,THE UNIVERSITY OF YORK,4000171091," 35,000.00 "
Department for Education,DEPARTMENT FOR EDUCATION,21/05/2014,Grants,Families Group,Grants to local authorities outside AEF/AEG (aggregate external funding/aggregate exchequer grant),TRAFFORD MB COUNCIL,4000171093," 63,070.00 "
Department for Education,DEPARTMENT FOR EDUCATION,21/05/2014,Grants,Families Group,Grants to local authorities outside AEF/AEG (aggregate external funding/aggregate exchequer grant),KNOWSLEY MBC,4000171094," 41,444.00 "
Department for Education,DEPARTMENT FOR EDUCATION,21/05/2014,Grants,Families Group,Grants to local authorities outside AEF/AEG (aggregate external funding/aggregate exchequer grant),GLOUCESTERSHIRE COUNTY COUNCIL,4000171096," 30,000.00 "
Department for Education,DEPARTMENT FOR EDUCATION,21/05/2014,Operational Goods,Children's Services and Departmental Strategy Early Years Extended Schools and Special Needs Group,Learning and Development Materials,THE STATIONERY OFFICE LTD,4000171099, 171.00 
Department for Education,DEPARTMENT FOR EDUCATION,21/05/2014,Operational Goods,Private Office,Learning and Development Materials,THE STATIONERY OFFICE LTD,4000171099, 373.00 
Department for Education,DEPARTMENT FOR EDUCATION,21/05/2014,Operational Goods,Legal Advisers Office,Learning and Development Materials,THE STATIONERY OFFICE LTD,4000171099, 13.00 
Department for Education,STANDARDS AND TESTING AGENCY,21/05/2014,Professional Services Other,Test Operation Division,"Fees / expenses of professionals from the private sector, for example to implement advice or changes",THE STATIONERY OFFICE LTD,4000171099," 39,123.00 "
Department for Education,DEPARTMENT FOR EDUCATION,21/05/2014,Miscellaneous Expenditure,Chief Information Officer Group,Intangible work in progress,ATKINS MANTIX LTD,4000171101," 37,916.00 "
Department for Education,DEPARTMENT FOR EDUCATION,21/05/2014,ICT,Chief Information Officer Group,ICT Services,ATKINS MANTIX LTD,4000171101," 27,811.00 "
Department for Education,DEPARTMENT FOR EDUCATION,21/05/2014,Energy and Fuels,Finance and Commercial Group - Property Asset Management,Electricity supply,EDF ENERGY LTD,4000171104," 117,152.00 "
Department for Education,DEPARTMENT FOR EDUCATION,21/05/2014,Grants,Closing the Gap Group,Grants to third sector organisations / not for profit organisations,PRINCES TRUST VOLUNTEERS PROGRAMME,4000171118," 70,691.00 "
Department for Education,DEPARTMENT FOR EDUCATION,21/05/2014,Grants,Families Group,Grants to local authorities outside AEF/AEG (aggregate external funding/aggregate exchequer grant),CHESHIRE WEST & CHESTER COUNCIL,4000171119," 65,000.00 "
Department for Education,DEPARTMENT FOR EDUCATION,21/05/2014,Grants,Families Group,Grants to local authorities outside AEF/AEG (aggregate external funding/aggregate exchequer grant),BRIGHTON & HOVE CITY COUNCIL,4000171120," 72,526.00 "
Department for Education,DEPARTMENT FOR EDUCATION,21/05/2014,ICT,Education Strategy Performance Analysis Group,ICT Services,SOFTWARE FOR DATA ANALYSIS LTD,4000171121," 83,920.00 "
Department for Education,DEPARTMENT FOR EDUCATION,21/05/2014,Professional Services Consultancy and Contingent Labour,Legal Advisers Office,Legal advisory services from the Treasury Solicitor including the provision of external specialist advice and opinion,TREASURY SOLICITOR TSOL,4000171123," 913,953.00 "
Department for Education,DEPARTMENT FOR EDUCATION,21/05/2014,Grants,Families Group,Grants to local authorities outside AEF/AEG (aggregate external funding/aggregate exchequer grant),STAFFORDSHIRE COUNTY COUNCIL,4000171125," 55,742.00 "
Department for Education,DEPARTMENT FOR EDUCATION,21/05/2014,Grants,Families Group,Grants to local authorities outside AEF/AEG (aggregate external funding/aggregate exchequer grant),THE SOMERSET COUNTY COUNCIL,4000171127," 91,655.00 "
Department for Education,DEPARTMENT FOR EDUCATION,21/05/2014,Facilities,Finance and Commercial Group - Property Asset Management,Annual licence fees for public broadcasting of TV programmes including news channels at Department for Education sites,PPL PHONOGRAPHIC PERFORMANCE LTD,4000171150," 31,943.00 "
Department for Education,DEPARTMENT FOR EDUCATION,21/05/2014,Grants,Curriculum and General Qualifications Reform Group,"Grants paid to organisations including agencies, arms length bodies and educational establishments",IMPERIAL COLLEGE LONDON,4000171155," 27,080.00 "
Department for Education,STANDARDS AND TESTING AGENCY,21/05/2014,Programme costs,Test Development Division,Funding to deliver policies (excluding consultancy) paid to third parties via a service delivery contract,PEARSON PROFESSIONAL ASSESSMENTS,4000171171," 198,660.00 "
Department for Education,DEPARTMENT FOR EDUCATION,21/05/2014,Grants,Families Group,Grants to local authorities outside AEF/AEG (aggregate external funding/aggregate exchequer grant),MANCHESTER CITY COUNCIL,4000171176," 36,622.00 "
Department for Education,DEPARTMENT FOR EDUCATION,21/05/2014,Professional Services Other,Strategic Analysis and Research and Policy Impact Group,Research and evaluation activities,UNIVERSITY OF BRISTOL,4000171179, -   
Department for Education,DEPARTMENT FOR EDUCATION,21/05/2014,Professional Services Other,Strategic Analysis and Research and Policy Impact Group,Research and evaluation activities,UNIVERSITY OF BRISTOL,4000171179," 55,000.00 "
Department for Education,DEPARTMENT FOR EDUCATION,21/05/2014,Grants,Families Group,Grants to local authorities outside AEF/AEG (aggregate external funding/aggregate exchequer grant),BRISTOL CITY COUNCIL,4000171180," 125,073.00 "
Department for Education,DEPARTMENT FOR EDUCATION,21/05/2014,Grants,Children's Services and Departmental Strategy Safeguarding Group,Grants to third sector organisations / not for profit organisations,PACE,4000171183," 38,589.00 "
Department for Education,DEPARTMENT FOR EDUCATION,21/05/2014,Communications,Chief Information Officer Group,Digital media and web production,PROLOG,4000171190," 46,123.00 "
Department for Education,DEPARTMENT FOR EDUCATION,21/05/2014,Travel,Closing the Gap Group,Hosting conferences including programme activity such as conferences for teachers,PROLOG,4000171190," 5,846.00 "
Department for Education,DEPARTMENT FOR EDUCATION,21/05/2014,Office Solutions,Communications Group,Office Supplies,PROLOG,4000171190, 452.00 
Department for Education,DEPARTMENT FOR EDUCATION,21/05/2014,Communications,Communications Group,Marketing services,PROLOG,4000171190," 15,612.00 "
Department for Education,DEPARTMENT FOR EDUCATION,21/05/2014,Communications,Chief Information Officer Group,Digital media and web production,PROLOG,4000171190," 39,350.00 "
Department for Education,DEPARTMENT FOR EDUCATION,21/05/2014,Communications,Chief Information Officer Group,Digital media and web production,PROLOG,4000171190," 50,673.00 "
Department for Education,NATIONAL COLLEGE FOR TEACHING AND LEADERSHIP AGENCY,21/05/2014,Communications,Membership Directorate,Digital media and web production,PROLOG,4000171190, 600.00 
Department for Education,STANDARDS AND TESTING AGENCY,21/05/2014,Programme costs,Test Development Division,Funding to deliver policies (excluding consultancy) paid to third parties via a service delivery contract,PROLOG,4000171190," 30,307.00 "
Department for Education,STANDARDS AND TESTING AGENCY,21/05/2014,Print and Print Management,Test Operation Division,Secure printing,PROLOG,4000171190," 291,320.00 "
Department for Education,DEPARTMENT FOR EDUCATION,21/05/2014,Grants,Families Group,Grants to local authorities outside AEF/AEG (aggregate external funding/aggregate exchequer grant),COVENTRY CITY COUNCIL,4000171191," 31,286.00 "
Department for Education,DEPARTMENT FOR EDUCATION,21/05/2014,Grants,Families Group,Grants to local authorities outside AEF/AEG (aggregate external funding/aggregate exchequer grant),DUDLEY MBC,4000171192," 41,574.00 "
Department for Education,NATIONAL COLLEGE FOR TEACHING AND LEADERSHIP AGENCY,21/05/2014,Programme costs,School Business Management and Efficiency,Funding to deliver policies (excluding consultancy) paid to third parties via a service delivery contract,SERCO LTD,4000171197," 47,046.00 "
Department for Education,NATIONAL COLLEGE FOR TEACHING AND LEADERSHIP AGENCY,21/05/2014,Programme costs,School Business Management and Efficiency,Funding to deliver policies (excluding consultancy) paid to third parties via a service delivery contract,SERCO LTD,4000171197," 139,758.00 "
Department for Education,DEPARTMENT FOR EDUCATION,21/05/2014,Grants,Families Group,Grants to local authorities outside AEF/AEG (aggregate external funding/aggregate exchequer grant),LONDON BOROUGH OF GREENWICH,4000171201," 85,703.00 "
Department for Education,DEPARTMENT FOR EDUCATION,21/05/2014,Facilities,Finance and Commercial Group - Property Asset Management,Business Rates,GVA GRIMLEY LTD,4000171208," 595,646.00 "
Department for Education,DEPARTMENT FOR EDUCATION,21/05/2014,Programme costs,Families Group,Funding to deliver policies (excluding consultancy) paid to third parties via a service delivery contract,CORAM,4000171210," 53,690.00 "
Department for Education,DEPARTMENT FOR EDUCATION,22/05/2014,Facilities,Finance and Commercial Group - Property Asset Management,Property Management,JOHNSONS MOVING SERVICES LTD,4000171223," 26,646.00 "
Department for Education,DEPARTMENT FOR EDUCATION,22/05/2014,Grants,Children's Services and Departmental Strategy Early Years Extended Schools and Special Needs Group,Grants to third sector organisations / not for profit organisations,THE ACE CENTRE NORTH,4000171242," 68,323.00 "
Department for Education,DEPARTMENT FOR EDUCATION,22/05/2014,Professional Services Other,Strategic Analysis and Research and Policy Impact Group,Research and evaluation activities,NFER TRADING LIMITED INV T,4000171245," 50,000.00 "
Department for Education,DEPARTMENT FOR EDUCATION,22/05/2014,Grants,Children's Services and Departmental Strategy Safeguarding Group,Grants to third sector organisations / not for profit organisations,BEATBULLYING,4000171250," 156,456.00 "
Department for Education,DEPARTMENT FOR EDUCATION,22/05/2014,Grants,Families Group,"Grants paid to organisations including agencies, arms length bodies and educational establishments",THE SHARE FOUNDATION 3RD PARTY TRUST,4000171267," 56,200.00 "
Department for Education,DEPARTMENT FOR EDUCATION,22/05/2014,Operational Goods,Families Group,Learning and Development Materials,CAPGEMINI UK PLC,4000171268," 26,664.00 "
Department for Education,DEPARTMENT FOR EDUCATION,22/05/2014,ICT,Chief Information Officer Group,ICT Services,CAPGEMINI UK PLC,4000171268," 2,976.00 "
Department for Education,DEPARTMENT FOR EDUCATION,22/05/2014,ICT,Chief Information Officer Group,ICT Hardware,CAPGEMINI UK PLC,4000171268," 57,024.00 "
Department for Education,DEPARTMENT FOR EDUCATION,22/05/2014,ICT,Education Funding Group,ICT Services,CAPGEMINI UK PLC,4000171268," 3,081.00 "
Department for Education,DEPARTMENT FOR EDUCATION,22/05/2014,Programme costs,Education Strategy Performance Analysis Group,Funding to deliver policies (excluding consultancy) paid to third parties via a service delivery contract,ATKINS LTD,4000171296," 154,633.00 "
Department for Education,DEPARTMENT FOR EDUCATION,22/05/2014,Professional Services Consultancy and Contingent Labour,Children's Services and Departmental Strategy Supporting Delivery Group,"Fees / expenses of professionals from the private sector such as auditors, accountants, lawyers, etc. engaged to provide advice or opinion on how to affect something",BURGES SALMON,4000171309," 28,313.00 "
Department for Education,DEPARTMENT FOR EDUCATION,23/05/2014,Grants,Families Group,Grants to third sector organisations / not for profit organisations,ADOPTERS FOR ADOPTION LTD,4000171321," 441,926.00 "
Department for Education,NATIONAL COLLEGE FOR TEACHING AND LEADERSHIP AGENCY,23/05/2014,Grants,Operations Directorate,"Grants paid to organisations including agencies, arms length bodies and educational establishments",EDGE HILL UNIVERSITY,4000171322," 30,905.00 "
Department for Education,DEPARTMENT FOR EDUCATION,23/05/2014,Grants,Children's Services and Departmental Strategy Early Years Extended Schools and Special Needs Group,"Grants paid to organisations including agencies, arms length bodies and educational establishments",PEN GREEN RESEARCH,4000171334," 191,639.00 "
Department for Education,STANDARDS AND TESTING AGENCY,23/05/2014,ICT,Test Support Division,Telecoms Facilities and Services,BSS,4000171336," 63,692.00 "
Department for Education,NATIONAL COLLEGE FOR TEACHING AND LEADERSHIP AGENCY,23/05/2014,Grants,Operations Directorate,"Grants paid to organisations including agencies, arms length bodies and educational establishments",CANTERBURY CHRIST CHURCH UNIVERSITY,4000171340," 85,970.00 "
Department for Education,DEPARTMENT FOR EDUCATION,23/05/2014,Grants,Closing the Gap Group,"Grants paid to organisations including agencies, arms length bodies and educational establishments",COMMANDO JOES,4000171341," 132,151.00 "
Department for Education,NATIONAL COLLEGE FOR TEACHING AND LEADERSHIP AGENCY,23/05/2014,Grants,Operations Directorate,"Grants paid to organisations including agencies, arms length bodies and educational establishments",HIBERNIA COLLEGE UK,4000171344," 50,810.00 "
Department for Education,NATIONAL COLLEGE FOR TEACHING AND LEADERSHIP AGENCY,23/05/2014,Grants,Operations Directorate,"Grants paid to organisations including agencies, arms length bodies and educational establishments",NEWMAN COLLEGE,4000171398," 30,895.00 "
Department for Education,DEPARTMENT FOR EDUCATION,23/05/2014,Grants,Children's Services and Departmental Strategy Safeguarding Group,Grants to third sector organisations / not for profit organisations,SOCIAL CARE INSTITUTE FOR EXCELLENCE,4000171401," 106,774.00 "
Department for Education,DEPARTMENT FOR EDUCATION,23/05/2014,Professional Services Consultancy and Contingent Labour,Chief Information Officer Group,Costs related to temporary workers,RUSSAM GMS LTD,4000171429," 6,864.00 "
Department for Education,DEPARTMENT FOR EDUCATION,23/05/2014,Professional Services Consultancy and Contingent Labour,Chief Information Officer Group,Costs related to temporary workers,RUSSAM GMS LTD,4000171429," 11,707.00 "
Department for Education,DEPARTMENT FOR EDUCATION,23/05/2014,Professional Services Consultancy and Contingent Labour,Chief Information Officer Group,Costs related to temporary workers,RUSSAM GMS LTD,4000171429," 14,979.00 "
Department for Education,DEPARTMENT FOR EDUCATION,23/05/2014,Professional Services Consultancy and Contingent Labour,Chief Information Officer Group,Costs related to temporary workers,RUSSAM GMS LTD,4000171429," 7,560.00 "
Department for Education,DEPARTMENT FOR EDUCATION,23/05/2014,Grants,Children's Services and Departmental Strategy Early Years Extended Schools and Special Needs Group,Grants to third sector organisations / not for profit organisations,HOME START UK,4000171440," 113,546.00 "
Department for Education,DEPARTMENT FOR EDUCATION,23/05/2014,Grants,Children's Services and Departmental Strategy Early Years Extended Schools and Special Needs Group,Grants to third sector organisations / not for profit organisations,KIDS,4000171441," 45,299.00 "
Department for Education,NATIONAL COLLEGE FOR TEACHING AND LEADERSHIP AGENCY,23/05/2014,Operational Goods,Operations Directorate,Learning and Development Materials,TEXUNA TECHNOLOGIES,4000171444," 28,080.00 "
Department for Education,NATIONAL COLLEGE FOR TEACHING AND LEADERSHIP AGENCY,23/05/2014,Grants,Operations Directorate,"Grants paid to organisations including agencies, arms length bodies and educational establishments",UNIVERSITY OF GREENWICH,4000171463," 42,150.00 "
Department for Education,DEPARTMENT FOR EDUCATION,27/05/2014,Grants,Academies Delivery Group,"Grants paid to organisations including agencies, arms length bodies and educational establishments",ST AMBROSES CATHOLIC PRIMARY SCHOOL,4000171473," 25,000.00 "
Department for Education,DEPARTMENT FOR EDUCATION,27/05/2014,Grants,Academies Delivery Group,"Grants paid to organisations including agencies, arms length bodies and educational establishments",ST WULSTANS CATHOLIC PRIMARY SCHOOL,4000171474," 25,000.00 "
Department for Education,DEPARTMENT FOR EDUCATION,27/05/2014,Grants,Academies Delivery Group,"Grants paid to organisations including agencies, arms length bodies and educational establishments",ST JOSEPHS PRIMARY SCHOOL,4000171475," 25,000.00 "
Department for Education,DEPARTMENT FOR EDUCATION,27/05/2014,Grants,Academies Delivery Group,"Grants paid to organisations including agencies, arms length bodies and educational establishments",OUR LADY OF FATIMA SCHOOL,4000171476," 25,000.00 "
Department for Education,DEPARTMENT FOR EDUCATION,27/05/2014,Grants,Academies Delivery Group,"Grants paid to organisations including agencies, arms length bodies and educational establishments",THREE LANE ENDS COMMUNITY PRIMARY SCHOOL,4000171477," 25,000.00 "
Department for Education,DEPARTMENT FOR EDUCATION,27/05/2014,Grants,Academies Delivery Group,"Grants paid to organisations including agencies, arms length bodies and educational establishments",TRURO & PENWITH ACADEMY TRUST,4000171481," 70,000.00 "
Department for Education,DEPARTMENT FOR EDUCATION,27/05/2014,Grants,Academies Delivery Group,"Grants paid to organisations including agencies, arms length bodies and educational establishments",ENQUIRE LEARNING TRUST,4000171492," 25,000.00 "
Department for Education,DEPARTMENT FOR EDUCATION,27/05/2014,Grants,Academies Delivery Group,"Grants paid to organisations including agencies, arms length bodies and educational establishments",EDUCATION CENTRAL MULTI ACADEMY TRUST,4000171502," 80,000.00 "
Department for Education,DEPARTMENT FOR EDUCATION,27/05/2014,Facilities,Finance and Commercial Group - Property Asset Management,"Building maintenance and repair, including repainting, replacing flooring, etc.",SODEXO LTD,4000171512," 116,201.00 "
Department for Education,DEPARTMENT FOR EDUCATION,27/05/2014,Travel,Children's Services and Departmental Strategy Directorate Support,"Staff business travel including air, coach, ferry, rail and taxi",REDFERN TRAVEL LTD,4000171521, 171.00 
Department for Education,DEPARTMENT FOR EDUCATION,27/05/2014,Travel,Families Group,"Staff business travel including air, coach, ferry, rail and taxi",REDFERN TRAVEL LTD,4000171521, 228.00 
Department for Education,DEPARTMENT FOR EDUCATION,27/05/2014,Travel,Families Group,"Staff business travel including air, coach, ferry, rail and taxi",REDFERN TRAVEL LTD,4000171521, 959.00 
Department for Education,DEPARTMENT FOR EDUCATION,27/05/2014,Travel,Families Group,"Staff business travel including air, coach, ferry, rail and taxi",REDFERN TRAVEL LTD,4000171521, 372.00 
Department for Education,DEPARTMENT FOR EDUCATION,27/05/2014,Travel,Families Group,"Staff business travel including air, coach, ferry, rail and taxi",REDFERN TRAVEL LTD,4000171521, 175.00 
Department for Education,DEPARTMENT FOR EDUCATION,27/05/2014,Travel,Families Group,"Staff business travel including air, coach, ferry, rail and taxi",REDFERN TRAVEL LTD,4000171521," 1,168.00 "
Department for Education,DEPARTMENT FOR EDUCATION,27/05/2014,Travel,Children's Services and Departmental Strategy Supporting Delivery Group,"Staff business travel including air, coach, ferry, rail and taxi",REDFERN TRAVEL LTD,4000171521, 299.00 
Department for Education,DEPARTMENT FOR EDUCATION,27/05/2014,Travel,Children's Services and Departmental Strategy Supporting Delivery Group,"Staff business travel including air, coach, ferry, rail and taxi",REDFERN TRAVEL LTD,4000171521," 1,799.00 "
Department for Education,DEPARTMENT FOR EDUCATION,27/05/2014,Travel,Families Group,"Staff business travel including air, coach, ferry, rail and taxi",REDFERN TRAVEL LTD,4000171521, 135.00 
Department for Education,DEPARTMENT FOR EDUCATION,27/05/2014,Travel,Supporting Delivery Group,"Staff business travel including air, coach, ferry, rail and taxi",REDFERN TRAVEL LTD,4000171521,-3.00 
Department for Education,DEPARTMENT FOR EDUCATION,27/05/2014,Travel,Children's Services and Departmental Strategy Safeguarding Group,"Staff business travel including air, coach, ferry, rail and taxi",REDFERN TRAVEL LTD,4000171521, 84.00 
Department for Education,DEPARTMENT FOR EDUCATION,27/05/2014,Travel,Children's Services and Departmental Strategy Safeguarding Group,"Staff business travel including air, coach, ferry, rail and taxi",REDFERN TRAVEL LTD,4000171521," 12,063.00 "
Department for Education,DEPARTMENT FOR EDUCATION,27/05/2014,Travel,Children's Services and Departmental Strategy Early Years Extended Schools and Special Needs Group,"Staff business travel including air, coach, ferry, rail and taxi",REDFERN TRAVEL LTD,4000171521, 194.00 
Department for Education,DEPARTMENT FOR EDUCATION,27/05/2014,Travel,Children's Services and Departmental Strategy Early Years Extended Schools and Special Needs Group,"Staff business travel including air, coach, ferry, rail and taxi",REDFERN TRAVEL LTD,4000171521, 156.00 
Department for Education,DEPARTMENT FOR EDUCATION,27/05/2014,Travel,Children's Services and Departmental Strategy Early Years Extended Schools and Special Needs Group,"Staff business travel including air, coach, ferry, rail and taxi",REDFERN TRAVEL LTD,4000171521, 175.00 
Department for Education,DEPARTMENT FOR EDUCATION,27/05/2014,Travel,Children's Services and Departmental Strategy Early Years Extended Schools and Special Needs Group,"Staff business travel including air, coach, ferry, rail and taxi",REDFERN TRAVEL LTD,4000171521," 8,241.00 "
Department for Education,DEPARTMENT FOR EDUCATION,27/05/2014,Travel,Children's Services and Departmental Strategy Early Years Extended Schools and Special Needs Group,"Staff business travel including air, coach, ferry, rail and taxi",REDFERN TRAVEL LTD,4000171521, 93.00 
Department for Education,DEPARTMENT FOR EDUCATION,27/05/2014,Travel,Families Group,"Staff business travel including air, coach, ferry, rail and taxi",REDFERN TRAVEL LTD,4000171521, 75.00 
Department for Education,DEPARTMENT FOR EDUCATION,27/05/2014,Travel,Chief Information Officer Group,"Staff business travel including air, coach, ferry, rail and taxi",REDFERN TRAVEL LTD,4000171521," 5,110.00 "
Department for Education,DEPARTMENT FOR EDUCATION,27/05/2014,Travel,Chief Information Officer Group,"Staff business travel including air, coach, ferry, rail and taxi",REDFERN TRAVEL LTD,4000171521," 2,307.00 "
Department for Education,DEPARTMENT FOR EDUCATION,27/05/2014,Travel,Chief Information Officer Group,"Staff business travel including air, coach, ferry, rail and taxi",REDFERN TRAVEL LTD,4000171521," 1,315.00 "
Department for Education,DEPARTMENT FOR EDUCATION,27/05/2014,Travel,Chief Information Officer Group,"Staff business travel including air, coach, ferry, rail and taxi",REDFERN TRAVEL LTD,4000171521," 1,446.00 "
Department for Education,DEPARTMENT FOR EDUCATION,27/05/2014,Travel,Chief Information Officer Group,"Staff business travel including air, coach, ferry, rail and taxi",REDFERN TRAVEL LTD,4000171521," 5,286.00 "
Department for Education,DEPARTMENT FOR EDUCATION,27/05/2014,Travel,Chief Information Officer Group,"Staff business travel including air, coach, ferry, rail and taxi",REDFERN TRAVEL LTD,4000171521," 3,597.00 "
Department for Education,DEPARTMENT FOR EDUCATION,27/05/2014,Travel,Chief Information Officer Group,"Staff business travel including air, coach, ferry, rail and taxi",REDFERN TRAVEL LTD,4000171521," 1,823.00 "
Department for Education,DEPARTMENT FOR EDUCATION,27/05/2014,Travel,Chief Information Officer Group,"Staff business travel including air, coach, ferry, rail and taxi",REDFERN TRAVEL LTD,4000171521," 2,114.00 "
Department for Education,DEPARTMENT FOR EDUCATION,27/05/2014,Travel,Chief Information Officer Group,"Staff business travel including air, coach, ferry, rail and taxi",REDFERN TRAVEL LTD,4000171521," 1,887.00 "
Department for Education,DEPARTMENT FOR EDUCATION,27/05/2014,Travel,Chief Information Officer Group,"Staff business travel including air, coach, ferry, rail and taxi",REDFERN TRAVEL LTD,4000171521," 2,797.00 "
Department for Education,DEPARTMENT FOR EDUCATION,27/05/2014,Travel,Chief Information Officer Group,"Staff business travel including air, coach, ferry, rail and taxi to attend training events",REDFERN TRAVEL LTD,4000171521, -   
Department for Education,DEPARTMENT FOR EDUCATION,27/05/2014,Travel,Chief Information Officer Group,"Staff business travel including air, coach, ferry, rail and taxi",REDFERN TRAVEL LTD,4000171521, 649.00 
Department for Education,DEPARTMENT FOR EDUCATION,27/05/2014,Travel,Chief Information Officer Group,"Staff business travel including air, coach, ferry, rail and taxi",REDFERN TRAVEL LTD,4000171521, 840.00 
Department for Education,DEPARTMENT FOR EDUCATION,27/05/2014,Travel,Chief Information Officer Group,"Staff business travel including air, coach, ferry, rail and taxi",REDFERN TRAVEL LTD,4000171521, 702.00 
Department for Education,DEPARTMENT FOR EDUCATION,27/05/2014,Travel,Chief Information Officer Group,"Staff business travel including air, coach, ferry, rail and taxi",REDFERN TRAVEL LTD,4000171521," 3,191.00 "
Department for Education,DEPARTMENT FOR EDUCATION,27/05/2014,Travel,Finance and Commercial Group,"Staff business travel including air, coach, ferry, rail and taxi",REDFERN TRAVEL LTD,4000171521," 7,507.00 "
Department for Education,DEPARTMENT FOR EDUCATION,27/05/2014,Travel,Finance and Commercial Group - Property Asset Management,"Staff business travel including air, coach, ferry, rail and taxi",REDFERN TRAVEL LTD,4000171521," 6,957.00 "
Department for Education,DEPARTMENT FOR EDUCATION,27/05/2014,Travel,Strategic Analysis and Research and Policy Impact Group,"Staff business travel including air, coach, ferry, rail and taxi",REDFERN TRAVEL LTD,4000171521, 341.00 
Department for Education,DEPARTMENT FOR EDUCATION,27/05/2014,Travel,Strategic Analysis and Research and Policy Impact Group,"Staff business travel including air, coach, ferry, rail and taxi",REDFERN TRAVEL LTD,4000171521," 3,911.00 "
Department for Education,DEPARTMENT FOR EDUCATION,27/05/2014,Travel,Education Strategy Performance Analysis Group,"Staff business travel including air, coach, ferry, rail and taxi",REDFERN TRAVEL LTD,4000171521," 1,226.00 "
Department for Education,DEPARTMENT FOR EDUCATION,27/05/2014,Travel,Finance and Commercial Group,"Staff business travel including air, coach, ferry, rail and taxi",REDFERN TRAVEL LTD,4000171521,-70.00 
Department for Education,DEPARTMENT FOR EDUCATION,27/05/2014,Travel,Finance and Commercial Group,"Staff business travel including air, coach, ferry, rail and taxi",REDFERN TRAVEL LTD,4000171521," 24,089.00 "
Department for Education,DEPARTMENT FOR EDUCATION,27/05/2014,Travel,People and Change,"Staff business travel including air, coach, ferry, rail and taxi",REDFERN TRAVEL LTD,4000171521," 7,974.00 "
Department for Education,DEPARTMENT FOR EDUCATION,27/05/2014,Travel,People and Change,"Staff business travel including air, coach, ferry, rail and taxi to attend training events",REDFERN TRAVEL LTD,4000171521, 1.00 
Department for Education,DEPARTMENT FOR EDUCATION,27/05/2014,Travel,People and Change,"Staff business travel including air, coach, ferry, rail and taxi",REDFERN TRAVEL LTD,4000171521, 154.00 
Department for Education,DEPARTMENT FOR EDUCATION,27/05/2014,Travel,People and Change,"Staff business travel including air, coach, ferry, rail and taxi",REDFERN TRAVEL LTD,4000171521, 501.00 
Department for Education,DEPARTMENT FOR EDUCATION,27/05/2014,Travel,Chief Information Officer Group,"Staff business travel including air, coach, ferry, rail and taxi",REDFERN TRAVEL LTD,4000171521, 166.00 
Department for Education,DEPARTMENT FOR EDUCATION,27/05/2014,Travel,Chief Information Officer Group,"Staff business travel including air, coach, ferry, rail and taxi",REDFERN TRAVEL LTD,4000171521, 115.00 
Department for Education,DEPARTMENT FOR EDUCATION,27/05/2014,Travel,Chief Information Officer Group,"Staff business travel including air, coach, ferry, rail and taxi",REDFERN TRAVEL LTD,4000171521, 79.00 
Department for Education,DEPARTMENT FOR EDUCATION,27/05/2014,Travel,ALB Reform Group,"Staff business travel including air, coach, ferry, rail and taxi",REDFERN TRAVEL LTD,4000171521," 4,771.00 "
Department for Education,DEPARTMENT FOR EDUCATION,27/05/2014,Travel,Free School Group,"Staff business travel including air, coach, ferry, rail and taxi",REDFERN TRAVEL LTD,4000171521," 16,702.00 "
Department for Education,DEPARTMENT FOR EDUCATION,27/05/2014,Travel,Education Standards Directorate,"Staff business travel including air, coach, ferry, rail and taxi",REDFERN TRAVEL LTD,4000171521," 2,786.00 "
Department for Education,DEPARTMENT FOR EDUCATION,27/05/2014,Travel,System Reform Group,"Staff business travel including air, coach, ferry, rail and taxi",REDFERN TRAVEL LTD,4000171521," 10,055.00 "
Department for Education,DEPARTMENT FOR EDUCATION,27/05/2014,Travel,System Reform Group,"Staff business travel including air, coach, ferry, rail and taxi",REDFERN TRAVEL LTD,4000171521,-19.00 
Department for Education,DEPARTMENT FOR EDUCATION,27/05/2014,Travel,Education Funding Group,"Staff business travel including air, coach, ferry, rail and taxi",REDFERN TRAVEL LTD,4000171521, 583.00 
Department for Education,DEPARTMENT FOR EDUCATION,27/05/2014,Travel,System Reform Group,"Staff business travel including air, coach, ferry, rail and taxi",REDFERN TRAVEL LTD,4000171521, 619.00 
Department for Education,DEPARTMENT FOR EDUCATION,27/05/2014,Travel,System Reform Group,"Staff business travel including air, coach, ferry, rail and taxi",REDFERN TRAVEL LTD,4000171521,-284.00 
Department for Education,DEPARTMENT FOR EDUCATION,27/05/2014,Travel,System Reform Group,"Staff business travel including air, coach, ferry, rail and taxi",REDFERN TRAVEL LTD,4000171521," 1,707.00 "
Department for Education,DEPARTMENT FOR EDUCATION,27/05/2014,Travel,System Reform Group,"Staff business travel including air, coach, ferry, rail and taxi",REDFERN TRAVEL LTD,4000171521, 621.00 
Department for Education,DEPARTMENT FOR EDUCATION,27/05/2014,Travel,Education Funding Group,"Staff business travel including air, coach, ferry, rail and taxi",REDFERN TRAVEL LTD,4000171521," 6,534.00 "
Department for Education,DEPARTMENT FOR EDUCATION,27/05/2014,Travel,Education Funding Group,"Staff business travel including air, coach, ferry, rail and taxi to attend training events",REDFERN TRAVEL LTD,4000171521, 3.00 
Department for Education,DEPARTMENT FOR EDUCATION,27/05/2014,Travel,Education Funding Group,"Staff business travel including air, coach, ferry, rail and taxi",REDFERN TRAVEL LTD,4000171521, 11.00 
Department for Education,DEPARTMENT FOR EDUCATION,27/05/2014,Travel,Education Funding Group,"Staff business travel including air, coach, ferry, rail and taxi",REDFERN TRAVEL LTD,4000171521, 358.00 
Department for Education,DEPARTMENT FOR EDUCATION,27/05/2014,Travel,Curriculum and General Qualifications Reform Group,"Staff business travel including air, coach, ferry, rail and taxi",REDFERN TRAVEL LTD,4000171521, 138.00 
Department for Education,DEPARTMENT FOR EDUCATION,27/05/2014,Travel,Curriculum and General Qualifications Reform Group,"Staff business travel including air, coach, ferry, rail and taxi",REDFERN TRAVEL LTD,4000171521," 8,941.00 "
Department for Education,DEPARTMENT FOR EDUCATION,27/05/2014,Travel,School Standards Group,"Staff business travel including air, coach, ferry, rail and taxi",REDFERN TRAVEL LTD,4000171521," 5,655.00 "
Department for Education,DEPARTMENT FOR EDUCATION,27/05/2014,Travel,School Standards Group,Staff travel expenses for travel overseas on official duty,REDFERN TRAVEL LTD,4000171521, 5.00 
Department for Education,DEPARTMENT FOR EDUCATION,27/05/2014,Travel,Education Strategy Performance Analysis Group,"Staff business travel including air, coach, ferry, rail and taxi",REDFERN TRAVEL LTD,4000171521," 18,939.00 "
Department for Education,DEPARTMENT FOR EDUCATION,27/05/2014,Travel,Curriculum and General Qualifications Reform Group,"Staff business travel including air, coach, ferry, rail and taxi",REDFERN TRAVEL LTD,4000171521, 143.00 
Department for Education,DEPARTMENT FOR EDUCATION,27/05/2014,Travel,Curriculum and General Qualifications Reform Group,Non-contractor's travel expenses,REDFERN TRAVEL LTD,4000171521, 1.00 
Department for Education,DEPARTMENT FOR EDUCATION,27/05/2014,Travel,Infrastructure and Funding Directorate Support,"Staff business travel including air, coach, ferry, rail and taxi",REDFERN TRAVEL LTD,4000171521," 1,334.00 "
Department for Education,DEPARTMENT FOR EDUCATION,27/05/2014,Travel,Education Funding Group,"Staff business travel including air, coach, ferry, rail and taxi",REDFERN TRAVEL LTD,4000171521," 5,865.00 "
Department for Education,DEPARTMENT FOR EDUCATION,27/05/2014,Travel,Education Funding Group,"Staff business travel including air, coach, ferry, rail and taxi to attend training events",REDFERN TRAVEL LTD,4000171521, 2.00 
Department for Education,DEPARTMENT FOR EDUCATION,27/05/2014,Travel,Free School Group,"Staff business travel including air, coach, ferry, rail and taxi",REDFERN TRAVEL LTD,4000171521," 1,029.00 "
Department for Education,DEPARTMENT FOR EDUCATION,27/05/2014,Travel,Curriculum and General Qualifications Reform Group,"Staff business travel including air, coach, ferry, rail and taxi",REDFERN TRAVEL LTD,4000171521,-161.00 
Department for Education,DEPARTMENT FOR EDUCATION,27/05/2014,Travel,Closing the Gap Group,"Staff business travel including air, coach, ferry, rail and taxi",REDFERN TRAVEL LTD,4000171521," 7,680.00 "
Department for Education,DEPARTMENT FOR EDUCATION,27/05/2014,Travel,Closing the Gap Group,"Staff business travel including air, coach, ferry, rail and taxi",REDFERN TRAVEL LTD,4000171521, 50.00 
Department for Education,DEPARTMENT FOR EDUCATION,27/05/2014,Travel,Teachers Group,"Staff business travel including air, coach, ferry, rail and taxi",REDFERN TRAVEL LTD,4000171521," 10,008.00 "
Department for Education,DEPARTMENT FOR EDUCATION,27/05/2014,Travel,Teachers Group,"Staff business travel including air, coach, ferry, rail and taxi",REDFERN TRAVEL LTD,4000171521, 306.00 
Department for Education,DEPARTMENT FOR EDUCATION,27/05/2014,Travel,Academies Delivery Group,"Staff business travel including air, coach, ferry, rail and taxi",REDFERN TRAVEL LTD,4000171521," 1,442.00 "
Department for Education,DEPARTMENT FOR EDUCATION,27/05/2014,Travel,Office of the Schools Commissioner Group,"Staff business travel including air, coach, ferry, rail and taxi",REDFERN TRAVEL LTD,4000171521, 345.00 
Department for Education,DEPARTMENT FOR EDUCATION,27/05/2014,Travel,Office of the Schools Commissioner Group,"Staff business travel including air, coach, ferry, rail and taxi to attend training events",REDFERN TRAVEL LTD,4000171521, 1.00 
Department for Education,DEPARTMENT FOR EDUCATION,27/05/2014,Travel,Academies Delivery Group,"Staff business travel including air, coach, ferry, rail and taxi",REDFERN TRAVEL LTD,4000171521," 12,481.00 "
Department for Education,DEPARTMENT FOR EDUCATION,27/05/2014,Travel,Academies Delivery Group,"Staff business travel including air, coach, ferry, rail and taxi to attend training events",REDFERN TRAVEL LTD,4000171521, -   
Department for Education,DEPARTMENT FOR EDUCATION,27/05/2014,Travel,Academies Delivery Group,"Staff business travel including air, coach, ferry, rail and taxi",REDFERN TRAVEL LTD,4000171521," 2,252.00 "
Department for Education,DEPARTMENT FOR EDUCATION,27/05/2014,Travel,Academies Delivery Group,"Staff business travel including air, coach, ferry, rail and taxi to attend training events",REDFERN TRAVEL LTD,4000171521, -   
Department for Education,DEPARTMENT FOR EDUCATION,27/05/2014,Travel,Academies Delivery Group,"Staff business travel including air, coach, ferry, rail and taxi",REDFERN TRAVEL LTD,4000171521, 229.00 
Department for Education,DEPARTMENT FOR EDUCATION,27/05/2014,Travel,Academies Delivery Group,"Staff business travel including air, coach, ferry, rail and taxi",REDFERN TRAVEL LTD,4000171521," 2,660.00 "
Department for Education,DEPARTMENT FOR EDUCATION,27/05/2014,Travel,Office of the Schools Commissioner Group,"Staff business travel including air, coach, ferry, rail and taxi",REDFERN TRAVEL LTD,4000171521, 34.00 
Department for Education,DEPARTMENT FOR EDUCATION,27/05/2014,Travel,Free School Group,"Staff business travel including air, coach, ferry, rail and taxi",REDFERN TRAVEL LTD,4000171521, 21.00 
Department for Education,DEPARTMENT FOR EDUCATION,27/05/2014,Travel,Free School Group,"Staff business travel including air, coach, ferry, rail and taxi",REDFERN TRAVEL LTD,4000171521, 93.00 
Department for Education,DEPARTMENT FOR EDUCATION,27/05/2014,Travel,Free School Group,"Staff business travel including air, coach, ferry, rail and taxi",REDFERN TRAVEL LTD,4000171521, 134.00 
Department for Education,DEPARTMENT FOR EDUCATION,27/05/2014,Travel,Office of the Schools Commissioner Group,"Staff business travel including air, coach, ferry, rail and taxi",REDFERN TRAVEL LTD,4000171521,-864.00 
Department for Education,DEPARTMENT FOR EDUCATION,27/05/2014,Travel,Private Office,"Staff business travel including air, coach, ferry, rail and taxi",REDFERN TRAVEL LTD,4000171521, 276.00 
Department for Education,DEPARTMENT FOR EDUCATION,27/05/2014,Travel,Private Office,"Staff business travel including air, coach, ferry, rail and taxi to attend training events",REDFERN TRAVEL LTD,4000171521, 1.00 
Department for Education,DEPARTMENT FOR EDUCATION,27/05/2014,Travel,Private Office,"Staff business travel including air, coach, ferry, rail and taxi",REDFERN TRAVEL LTD,4000171521," 1,604.00 "
Department for Education,DEPARTMENT FOR EDUCATION,27/05/2014,Travel,Private Office,"Staff business travel including air, coach, ferry, rail and taxi",REDFERN TRAVEL LTD,4000171521, 490.00 
Department for Education,DEPARTMENT FOR EDUCATION,27/05/2014,Travel,Private Office,"Staff business travel including air, coach, ferry, rail and taxi",REDFERN TRAVEL LTD,4000171521, 74.00 
Department for Education,DEPARTMENT FOR EDUCATION,27/05/2014,Travel,Legal Advisers Office,"Staff business travel including air, coach, ferry, rail and taxi",REDFERN TRAVEL LTD,4000171521, 728.00 
Department for Education,DEPARTMENT FOR EDUCATION,27/05/2014,Travel,Finance and Commercial Group,"Staff business travel including air, coach, ferry, rail and taxi",REDFERN TRAVEL LTD,4000171521," 4,292.00 "
Department for Education,DEPARTMENT FOR EDUCATION,27/05/2014,Travel,Communications Group,"Staff business travel including air, coach, ferry, rail and taxi",REDFERN TRAVEL LTD,4000171521," 2,628.00 "
Department for Education,DEPARTMENT FOR EDUCATION,27/05/2014,Travel,Communications Group,"Staff business travel including air, coach, ferry, rail and taxi to attend training events",REDFERN TRAVEL LTD,4000171521, 1.00 
Department for Education,DEPARTMENT FOR EDUCATION,27/05/2014,Travel,Communications Group,"Staff business travel including air, coach, ferry, rail and taxi",REDFERN TRAVEL LTD,4000171521," 11,093.00 "
Department for Education,DEPARTMENT FOR EDUCATION,27/05/2014,Travel,Communications Group,"Staff business travel including air, coach, ferry, rail and taxi to attend training events",REDFERN TRAVEL LTD,4000171521, 2.00 
Department for Education,DEPARTMENT FOR EDUCATION,27/05/2014,Travel,Communications Group,"Staff business travel including air, coach, ferry, rail and taxi",REDFERN TRAVEL LTD,4000171521, 614.00 
Department for Education,EDUCATION FUNDING AGENCY,27/05/2014,Travel,Academies Group,"Staff business travel including air, coach, ferry, rail and taxi",REDFERN TRAVEL LTD,4000171521, 12.00 
Department for Education,EDUCATION FUNDING AGENCY,27/05/2014,Travel,Academies Group,"Staff business travel including air, coach, ferry, rail and taxi",REDFERN TRAVEL LTD,4000171521, 223.00 
Department for Education,NATIONAL COLLEGE FOR TEACHING AND LEADERSHIP AGENCY,27/05/2014,Travel,Performance and Evaluation Directorate,"Staff business travel including air, coach, ferry, rail and taxi",REDFERN TRAVEL LTD,4000171521, 171.00 
Department for Education,NATIONAL COLLEGE FOR TEACHING AND LEADERSHIP AGENCY,27/05/2014,Travel,Membership Directorate,"Staff business travel including air, coach, ferry, rail and taxi",REDFERN TRAVEL LTD,4000171521, 40.00 
Department for Education,NATIONAL COLLEGE FOR TEACHING AND LEADERSHIP AGENCY,27/05/2014,Travel,International Business Unit,"Staff business travel including air, coach, ferry, rail and taxi",REDFERN TRAVEL LTD,4000171521," 3,635.00 "
Department for Education,NATIONAL COLLEGE FOR TEACHING AND LEADERSHIP AGENCY,27/05/2014,Travel,Early Years,"Staff business travel including air, coach, ferry, rail and taxi",REDFERN TRAVEL LTD,4000171521, 206.00 
Department for Education,NATIONAL COLLEGE FOR TEACHING AND LEADERSHIP AGENCY,27/05/2014,Professional Services Consultancy and Contingent Labour,Early Years,"Fees / expenses of professionals from the private sector such as auditors, accountants, lawyers, etc. engaged to provide advice or opinion on how to affect something",REDFERN TRAVEL LTD,4000171521, 1.00 
Department for Education,NATIONAL COLLEGE FOR TEACHING AND LEADERSHIP AGENCY,27/05/2014,Travel,Supply Directorate,"Staff business travel including air, coach, ferry, rail and taxi",REDFERN TRAVEL LTD,4000171521, 831.00 
Department for Education,NATIONAL COLLEGE FOR TEACHING AND LEADERSHIP AGENCY,27/05/2014,Travel,Supply Directorate,"Staff business travel including air, coach, ferry, rail and taxi",REDFERN TRAVEL LTD,4000171521, 34.00 
Department for Education,NATIONAL COLLEGE FOR TEACHING AND LEADERSHIP AGENCY,27/05/2014,Professional Services Consultancy and Contingent Labour,Supply Directorate,"Fees / expenses of professionals from the private sector such as auditors, accountants, lawyers, etc. engaged to provide advice or opinion on how to affect something",REDFERN TRAVEL LTD,4000171521, -   
Department for Education,NATIONAL COLLEGE FOR TEACHING AND LEADERSHIP AGENCY,27/05/2014,Travel,School Improvement Directorate,"Staff business travel including air, coach, ferry, rail and taxi",REDFERN TRAVEL LTD,4000171521,-75.00 
Department for Education,NATIONAL COLLEGE FOR TEACHING AND LEADERSHIP AGENCY,27/05/2014,Travel,School Improvement Directorate,"Staff business travel including air, coach, ferry, rail and taxi",REDFERN TRAVEL LTD,4000171521, 51.00 
Department for Education,NATIONAL COLLEGE FOR TEACHING AND LEADERSHIP AGENCY,27/05/2014,Travel,System Leadership Directorate,"Staff business travel including air, coach, ferry, rail and taxi",REDFERN TRAVEL LTD,4000171521, 100.00 
Department for Education,NATIONAL COLLEGE FOR TEACHING AND LEADERSHIP AGENCY,27/05/2014,Travel,Operations Directorate,"Staff business travel including air, coach, ferry, rail and taxi",REDFERN TRAVEL LTD,4000171521," 12,947.00 "
Department for Education,NATIONAL COLLEGE FOR TEACHING AND LEADERSHIP AGENCY,27/05/2014,Travel,Operations Directorate,Non-contractor's travel expenses,REDFERN TRAVEL LTD,4000171521, -   
Department for Education,NATIONAL COLLEGE FOR TEACHING AND LEADERSHIP AGENCY,27/05/2014,Travel,Operations Directorate,"Staff business travel including air, coach, ferry, rail and taxi",REDFERN TRAVEL LTD,4000171521," 1,122.00 "
Department for Education,NATIONAL COLLEGE FOR TEACHING AND LEADERSHIP AGENCY,27/05/2014,Travel,Operations Directorate,"Staff business travel including air, coach, ferry, rail and taxi",REDFERN TRAVEL LTD,4000171521, 14.00 
Department for Education,NATIONAL COLLEGE FOR TEACHING AND LEADERSHIP AGENCY,27/05/2014,Travel,Operations Directorate,"Staff business travel including air, coach, ferry, rail and taxi",REDFERN TRAVEL LTD,4000171521," 4,965.00 "
Department for Education,NATIONAL COLLEGE FOR TEACHING AND LEADERSHIP AGENCY,27/05/2014,Travel,Operations Directorate,Non-contractor's travel expenses,REDFERN TRAVEL LTD,4000171521, 30.00 
Department for Education,NATIONAL COLLEGE FOR TEACHING AND LEADERSHIP AGENCY,27/05/2014,Travel,Delivery Directorate,"Staff business travel including air, coach, ferry, rail and taxi",REDFERN TRAVEL LTD,4000171521," 25,040.00 "
Department for Education,NATIONAL COLLEGE FOR TEACHING AND LEADERSHIP AGENCY,27/05/2014,Professional Services Consultancy and Contingent Labour,Delivery Directorate,"Fees / expenses of professionals from the private sector such as auditors, accountants, lawyers, etc. engaged to provide advice or opinion on how to affect something",REDFERN TRAVEL LTD,4000171521, 1.00 
Department for Education,NATIONAL COLLEGE FOR TEACHING AND LEADERSHIP AGENCY,27/05/2014,Travel,Operations Directorate,"Staff business travel including air, coach, ferry, rail and taxi",REDFERN TRAVEL LTD,4000171521,-15.00 
Department for Education,NATIONAL COLLEGE FOR TEACHING AND LEADERSHIP AGENCY,27/05/2014,Travel,Delivery Directorate,"Staff business travel including air, coach, ferry, rail and taxi",REDFERN TRAVEL LTD,4000171521, 54.00 
Department for Education,NATIONAL COLLEGE FOR TEACHING AND LEADERSHIP AGENCY,27/05/2014,Professional Services Consultancy and Contingent Labour,Delivery Directorate,"Fees / expenses of professionals from the private sector such as auditors, accountants, lawyers, etc. engaged to provide advice or opinion on how to affect something",REDFERN TRAVEL LTD,4000171521, -   
Department for Education,NATIONAL COLLEGE FOR TEACHING AND LEADERSHIP AGENCY,27/05/2014,Travel,Delivery Directorate,"Staff business travel including air, coach, ferry, rail and taxi",REDFERN TRAVEL LTD,4000171521, 549.00 
Department for Education,NATIONAL COLLEGE FOR TEACHING AND LEADERSHIP AGENCY,27/05/2014,Travel,Delivery Directorate,"Staff business travel including air, coach, ferry, rail and taxi",REDFERN TRAVEL LTD,4000171521,-43.00 
Department for Education,STANDARDS AND TESTING AGENCY,27/05/2014,Travel,Standards and Testing Agency Admin,"Staff business travel including air, coach, ferry, rail and taxi",REDFERN TRAVEL LTD,4000171521, 911.00 
Department for Education,STANDARDS AND TESTING AGENCY,27/05/2014,Travel,Standards and Testing Agency Admin,"Staff business travel including air, coach, ferry, rail and taxi to attend training events",REDFERN TRAVEL LTD,4000171521, -   
Department for Education,STANDARDS AND TESTING AGENCY,27/05/2014,Travel,Test Development Division,"Staff business travel including air, coach, ferry, rail and taxi",REDFERN TRAVEL LTD,4000171521," 5,194.00 "
Department for Education,STANDARDS AND TESTING AGENCY,27/05/2014,Travel,Test Development Division,"Staff business travel including air, coach, ferry, rail and taxi to attend training events",REDFERN TRAVEL LTD,4000171521, -   
Department for Education,STANDARDS AND TESTING AGENCY,27/05/2014,Travel,Test Support Division,"Staff business travel including air, coach, ferry, rail and taxi",REDFERN TRAVEL LTD,4000171521,-148.00 
Department for Education,STANDARDS AND TESTING AGENCY,27/05/2014,Travel,Test Operation Division,"Staff business travel including air, coach, ferry, rail and taxi",REDFERN TRAVEL LTD,4000171521," 7,243.00 "
Department for Education,STANDARDS AND TESTING AGENCY,27/05/2014,Travel,Test Operation Division,"Staff business travel including air, coach, ferry, rail and taxi to attend training events",REDFERN TRAVEL LTD,4000171521, -   
Department for Education,STANDARDS AND TESTING AGENCY,27/05/2014,Travel,Test Development Division,"Staff business travel including air, coach, ferry, rail and taxi",REDFERN TRAVEL LTD,4000171521, 721.00 
Department for Education,STANDARDS AND TESTING AGENCY,27/05/2014,Travel,Test Development Division,"Staff business travel including air, coach, ferry, rail and taxi",REDFERN TRAVEL LTD,4000171521, 412.00 
Department for Education,STANDARDS AND TESTING AGENCY,27/05/2014,Travel,Test Support Division,"Staff business travel including air, coach, ferry, rail and taxi",REDFERN TRAVEL LTD,4000171521, 2.00 
Department for Education,STANDARDS AND TESTING AGENCY,27/05/2014,ICT,Test Support Division,Telecoms Facilities and Services,BSS,4000171533," 43,790.00 "
Department for Education,EDUCATION FUNDING AGENCY,27/05/2014,Travel,Young People Group,"Staff business travel including air, coach, ferry, rail and taxi",EXPOTEL HOTEL RESERVATIONS LTD,4000171534, 422.00 
Department for Education,NATIONAL COLLEGE FOR TEACHING AND LEADERSHIP AGENCY,27/05/2014,Travel,System Leadership Directorate,"Staff business travel including air, coach, ferry, rail and taxi",EXPOTEL HOTEL RESERVATIONS LTD,4000171534," 42,325.00 "
Department for Education,NATIONAL COLLEGE FOR TEACHING AND LEADERSHIP AGENCY,27/05/2014,Travel,Operations Directorate,"Staff business travel including air, coach, ferry, rail and taxi",EXPOTEL HOTEL RESERVATIONS LTD,4000171534," 5,661.00 "
Department for Education,DEPARTMENT FOR EDUCATION,27/05/2014,Grants,Academies Delivery Group,"Grants paid to organisations including agencies, arms length bodies and educational establishments",THE REDHILL ACADEMY,4000171541," 150,000.00 "
Department for Education,DEPARTMENT FOR EDUCATION,27/05/2014,Grants,Academies Delivery Group,Capital grants paid to a private sector organisation,THE REDHILL ACADEMY,4000171541," 80,000.00 "
Department for Education,DEPARTMENT FOR EDUCATION,28/05/2014,Grants,Academies Delivery Group,"Grants paid to organisations including agencies, arms length bodies and educational establishments",LEICESTER ACADEMIES CHARITABLE TRUST,4000171569," 70,000.00 "
Department for Education,DEPARTMENT FOR EDUCATION,28/05/2014,Grants,Academies Delivery Group,"Grants paid to organisations including agencies, arms length bodies and educational establishments",ST JOHNS PRIMARY SCHOOL,4000171570," 25,000.00 "
Department for Education,DEPARTMENT FOR EDUCATION,28/05/2014,Grants,Children's Services and Departmental Strategy Safeguarding Group,Grants to local authorities within AEF/AEG (aggregate external funding/aggregate exchequer grant),STOKE ON TRENT CITY COUNCIL,4000171574," 67,661.00 "
Department for Education,DEPARTMENT FOR EDUCATION,28/05/2014,Grants,Children's Services and Departmental Strategy Safeguarding Group,Grants to local authorities within AEF/AEG (aggregate external funding/aggregate exchequer grant),DERBY CITY COUNCIL,4000171576," 31,648.00 "
Department for Education,NATIONAL COLLEGE FOR TEACHING AND LEADERSHIP AGENCY,28/05/2014,Communications,Operations Directorate, Marketing services,M4C,4000171583," 25,550.00 "
Department for Education,DEPARTMENT FOR EDUCATION,28/05/2014,Professional Services Other,Academies Delivery Group,"Fees / expenses of professionals from the private sector, for example to implement advice or changes",ANN CONNOR,4000171585," 33,238.00 "
Department for Education,DEPARTMENT FOR EDUCATION,28/05/2014,Grants,Academies Delivery Group,"Grants paid to organisations including agencies, arms length bodies and educational establishments",UNIVERSITY ENGINEERING ACADEMY SOUTH BANK,4000171592," 34,209.00 "
Department for Education,DEPARTMENT FOR EDUCATION,28/05/2014,Grants,Academies Delivery Group,"Grants paid to organisations including agencies, arms length bodies and educational establishments",CIDARI EDUCATION LTD,4000171594," 70,000.00 "
Department for Education,DEPARTMENT FOR EDUCATION,28/05/2014,Grants,Academies Delivery Group,"Grants paid to organisations including agencies, arms length bodies and educational establishments",THE MARCHES SCHOOL & TECHNOLOGY COLLEGE,4000171600," 125,000.00 "
Department for Education,DEPARTMENT FOR EDUCATION,28/05/2014,Grants,Children's Services and Departmental Strategy Early Years Extended Schools and Special Needs Group,Grants to local authorities within AEF/AEG (aggregate external funding/aggregate exchequer grant),EAST SUSSEX COUNTY COUNCIL,4000171607," 139,890.00 "
Department for Education,DEPARTMENT FOR EDUCATION,28/05/2014,Grants,Families Group,Grants to local authorities outside AEF/AEG (aggregate external funding/aggregate exchequer grant),EAST SUSSEX COUNTY COUNCIL,4000171607," 100,048.00 "
Department for Education,DEPARTMENT FOR EDUCATION,28/05/2014,Programme costs,Families Group,Funding to deliver policies (excluding consultancy) paid to third parties via a service delivery contract,CONTACT A FAMILY,4000171633," 38,704.00 "
Department for Education,DEPARTMENT FOR EDUCATION,28/05/2014,Grants,Academies Delivery Group,"Grants paid to organisations including agencies, arms length bodies and educational establishments",KENT CATHOLIC SCHOOLS PARTNERSHIP,4000171640," 75,000.00 "
Department for Education,NATIONAL COLLEGE FOR TEACHING AND LEADERSHIP AGENCY,28/05/2014,Office Solutions,Operations Directorate,Post and courier services,PARCELFORCE WORLDWIDE,4000171650," 36,505.00 "
Department for Education,STANDARDS AND TESTING AGENCY,28/05/2014,Office Solutions,Test Operation Division,Document Storage,PARCELFORCE WORLDWIDE,4000171650,"-63,478.00 "
Department for Education,STANDARDS AND TESTING AGENCY,28/05/2014,Office Solutions,Test Operation Division,Post and courier services,PARCELFORCE WORLDWIDE,4000171650," 100,251.00 "
Department for Education,NATIONAL COLLEGE FOR TEACHING AND LEADERSHIP AGENCY,28/05/2014,Office Solutions,Exam Officers Support,Post and courier services,PARCELFORCE WORLDWIDE,4000171650,"-5,000.00 "
Department for Education,DEPARTMENT FOR EDUCATION,28/05/2014,Grants,Free School Group,"Grants paid to organisations including agencies, arms length bodies and educational establishments",MICHAELA COMMUNITY SCHOOL,4000171651," 30,000.00 "
Department for Education,DEPARTMENT FOR EDUCATION,28/05/2014,Professional Services Other,Children's Services and Departmental Strategy Early Years Extended Schools and Special Needs Group,Research and evaluation activities,NCB,4000171660," 33,408.00 "
Department for Education,DEPARTMENT FOR EDUCATION,28/05/2014,Grants,Children's Services and Departmental Strategy Safeguarding Group,Grants to local authorities within AEF/AEG (aggregate external funding/aggregate exchequer grant),SALFORD CITY COUNCIL,4000171662," 41,470.00 "
Department for Education,DEPARTMENT FOR EDUCATION,28/05/2014,Grants,Academies Delivery Group,Capital grants paid to a private sector organisation,EXCELSIOR ACADEMY,4000171663," 142,946.00 "
Department for Education,DEPARTMENT FOR EDUCATION,28/05/2014,Grants,Children's Services and Departmental Strategy Safeguarding Group,Grants to local authorities within AEF/AEG (aggregate external funding/aggregate exchequer grant),LONDON BOROUGH OF BROMLEY COUNCIL,4000171664," 34,922.00 "
Department for Education,DEPARTMENT FOR EDUCATION,28/05/2014,Grants,Children's Services and Departmental Strategy Safeguarding Group,Grants to local authorities within AEF/AEG (aggregate external funding/aggregate exchequer grant),SHEFFIELD CITY COUNCIL,4000171672," 50,200.00 "
Department for Education,DEPARTMENT FOR EDUCATION,28/05/2014,Grants,Children's Services and Departmental Strategy Safeguarding Group,Grants to local authorities within AEF/AEG (aggregate external funding/aggregate exchequer grant),METROPOLITAN BOROUGH OF WIRRAL,4000171675," 28,374.00 "
Department for Education,DEPARTMENT FOR EDUCATION,28/05/2014,Grants,Children's Services and Departmental Strategy Safeguarding Group,Grants to local authorities within AEF/AEG (aggregate external funding/aggregate exchequer grant),LONDON BOROUGH OF HAMMERSMITH & FULHAM COUNCIL,4000171684," 36,013.00 "
Department for Education,NATIONAL COLLEGE FOR TEACHING AND LEADERSHIP AGENCY,28/05/2014,Programme costs,Delivery Directorate,Funding to deliver policies (excluding consultancy) paid to third parties via a service delivery contract,BEST PRACTICE NETWORK LTD,4000171697," 71,400.00 "
Department for Education,DEPARTMENT FOR EDUCATION,28/05/2014,Programme costs,Children's Services and Departmental Strategy Early Years Extended Schools and Special Needs Group,Funding to deliver policies (excluding consultancy) paid to third parties via a service delivery contract,NATIONAL CHILDRENS BUREAU,4000171719," 636,944.00 "
Department for Education,DEPARTMENT FOR EDUCATION,28/05/2014,ICT,Chief Information Officer Group,ICT Services,OPTEVIA LTD,4000171726," 25,075.00 "
Department for Education,DEPARTMENT FOR EDUCATION,28/05/2014,ICT,Chief Information Officer Group,ICT Software,OPTEVIA LTD,4000171726," 5,100.00 "
Department for Education,DEPARTMENT FOR EDUCATION,29/05/2014,Grants,Children's Services and Departmental Strategy Early Years Extended Schools and Special Needs Group,Grants to local authorities within AEF/AEG (aggregate external funding/aggregate exchequer grant),LONDON BOROUGH OF ISLINGTON COUNCIL,4000171739," 84,815.00 "
Department for Education,DEPARTMENT FOR EDUCATION,29/05/2014,Grants,Families Group,Grants to local authorities outside AEF/AEG (aggregate external funding/aggregate exchequer grant),LONDON BOROUGH OF ISLINGTON COUNCIL,4000171739," 60,658.00 "
Department for Education,DEPARTMENT FOR EDUCATION,29/05/2014,Grants,Children's Services and Departmental Strategy Early Years Extended Schools and Special Needs Group,Grants to local authorities within AEF/AEG (aggregate external funding/aggregate exchequer grant),LONDON BOROUGH OF CAMDEN,4000171740," 82,588.00 "
Department for Education,DEPARTMENT FOR EDUCATION,29/05/2014,Grants,Families Group,Grants to local authorities outside AEF/AEG (aggregate external funding/aggregate exchequer grant),LONDON BOROUGH OF CAMDEN,4000171740," 59,065.00 "
Department for Education,DEPARTMENT FOR EDUCATION,29/05/2014,Grants,Children's Services and Departmental Strategy Early Years Extended Schools and Special Needs Group,Grants to local authorities within AEF/AEG (aggregate external funding/aggregate exchequer grant),LONDON BOROUGH OF WANDSWORTH COUNCIL,4000171741," 134,438.00 "
Department for Education,DEPARTMENT FOR EDUCATION,29/05/2014,Grants,Families Group,Grants to local authorities outside AEF/AEG (aggregate external funding/aggregate exchequer grant),LONDON BOROUGH OF WANDSWORTH COUNCIL,4000171741," 96,148.00 "
Department for Education,DEPARTMENT FOR EDUCATION,29/05/2014,Grants,Children's Services and Departmental Strategy Early Years Extended Schools and Special Needs Group,Grants to local authorities within AEF/AEG (aggregate external funding/aggregate exchequer grant),LONDON BOROUGH OF GREENWICH,4000171742," 136,013.00 "
Department for Education,DEPARTMENT FOR EDUCATION,29/05/2014,Grants,Families Group,Grants to local authorities outside AEF/AEG (aggregate external funding/aggregate exchequer grant),LONDON BOROUGH OF GREENWICH,4000171742," 97,274.00 "
Department for Education,DEPARTMENT FOR EDUCATION,29/05/2014,Grants,Children's Services and Departmental Strategy Early Years Extended Schools and Special Needs Group,Grants to local authorities within AEF/AEG (aggregate external funding/aggregate exchequer grant),DERBYSHIRE COUNTY COUNCIL,4000171743," 211,268.00 "
Department for Education,DEPARTMENT FOR EDUCATION,29/05/2014,Grants,Families Group,Grants to local authorities outside AEF/AEG (aggregate external funding/aggregate exchequer grant),DERBYSHIRE COUNTY COUNCIL,4000171743," 151,098.00 "
Department for Education,DEPARTMENT FOR EDUCATION,29/05/2014,Grants,Children's Services and Departmental Strategy Early Years Extended Schools and Special Needs Group,Grants to local authorities within AEF/AEG (aggregate external funding/aggregate exchequer grant),MILTON KEYNES COUNCIL,4000171744," 106,206.00 "
Department for Education,DEPARTMENT FOR EDUCATION,29/05/2014,Grants,Families Group,Grants to local authorities outside AEF/AEG (aggregate external funding/aggregate exchequer grant),MILTON KEYNES COUNCIL,4000171744," 75,957.00 "
Department for Education,DEPARTMENT FOR EDUCATION,29/05/2014,Grants,Children's Services and Departmental Strategy Early Years Extended Schools and Special Needs Group,Grants to local authorities within AEF/AEG (aggregate external funding/aggregate exchequer grant),BUCKINGHAMSHIRE COUNTY COUNCIL,4000171745," 157,602.00 "
Department for Education,DEPARTMENT FOR EDUCATION,29/05/2014,Grants,Families Group,Grants to local authorities outside AEF/AEG (aggregate external funding/aggregate exchequer grant),BUCKINGHAMSHIRE COUNTY COUNCIL,4000171745," 112,716.00 "
Department for Education,DEPARTMENT FOR EDUCATION,29/05/2014,Grants,Children's Services and Departmental Strategy Early Years Extended Schools and Special Needs Group,Grants to local authorities within AEF/AEG (aggregate external funding/aggregate exchequer grant),LUTON BOROUGH COUNCIL,4000171746," 92,581.00 "
Department for Education,DEPARTMENT FOR EDUCATION,29/05/2014,Grants,Families Group,Grants to local authorities outside AEF/AEG (aggregate external funding/aggregate exchequer grant),LUTON BOROUGH COUNCIL,4000171746," 66,212.00 "
Department for Education,DEPARTMENT FOR EDUCATION,29/05/2014,Grants,Children's Services and Departmental Strategy Early Years Extended Schools and Special Needs Group,Grants to local authorities within AEF/AEG (aggregate external funding/aggregate exchequer grant),LONDON BOROUGH OF HAMMERSMITH & FULHAM COUNCIL,4000171747," 77,394.00 "
Department for Education,DEPARTMENT FOR EDUCATION,29/05/2014,Grants,Families Group,Grants to local authorities outside AEF/AEG (aggregate external funding/aggregate exchequer grant),LONDON BOROUGH OF HAMMERSMITH & FULHAM COUNCIL,4000171747," 55,351.00 "
Department for Education,DEPARTMENT FOR EDUCATION,29/05/2014,Grants,Children's Services and Departmental Strategy Early Years Extended Schools and Special Needs Group,Grants to local authorities within AEF/AEG (aggregate external funding/aggregate exchequer grant),LONDON BOROUGH OF SOUTHWARK COUNCIL,4000171748," 144,253.00 "
Department for Education,DEPARTMENT FOR EDUCATION,29/05/2014,Grants,Families Group,Grants to local authorities outside AEF/AEG (aggregate external funding/aggregate exchequer grant),LONDON BOROUGH OF SOUTHWARK COUNCIL,4000171748," 103,167.00 "
Department for Education,DEPARTMENT FOR EDUCATION,29/05/2014,Grants,Children's Services and Departmental Strategy Early Years Extended Schools and Special Needs Group,Grants to local authorities within AEF/AEG (aggregate external funding/aggregate exchequer grant),THE ROYAL BOROUGH OF KENSINGTON & CHELSEA COUNCIL,4000171749," 59,458.00 "
Department for Education,DEPARTMENT FOR EDUCATION,29/05/2014,Grants,Families Group,Grants to local authorities outside AEF/AEG (aggregate external funding/aggregate exchequer grant),THE ROYAL BOROUGH OF KENSINGTON & CHELSEA COUNCIL,4000171749," 42,523.00 "
Department for Education,DEPARTMENT FOR EDUCATION,29/05/2014,Grants,Children's Services and Departmental Strategy Early Years Extended Schools and Special Needs Group,Grants to local authorities within AEF/AEG (aggregate external funding/aggregate exchequer grant),LONDON BOROUGH OF LAMBETH COUNCIL,4000171750," 139,472.00 "
Department for Education,DEPARTMENT FOR EDUCATION,29/05/2014,Grants,Families Group,Grants to local authorities outside AEF/AEG (aggregate external funding/aggregate exchequer grant),LONDON BOROUGH OF LAMBETH COUNCIL,4000171750," 99,748.00 "
Department for Education,DEPARTMENT FOR EDUCATION,29/05/2014,Grants,Children's Services and Departmental Strategy Early Years Extended Schools and Special Needs Group,Grants to local authorities within AEF/AEG (aggregate external funding/aggregate exchequer grant),BEDFORD BOROUGH COUNCIL,4000171751," 50,119.00 "
Department for Education,DEPARTMENT FOR EDUCATION,29/05/2014,Grants,Families Group,Grants to local authorities outside AEF/AEG (aggregate external funding/aggregate exchequer grant),BEDFORD BOROUGH COUNCIL,4000171751," 35,845.00 "
Department for Education,DEPARTMENT FOR EDUCATION,29/05/2014,Grants,Children's Services and Departmental Strategy Early Years Extended Schools and Special Needs Group,Grants to local authorities within AEF/AEG (aggregate external funding/aggregate exchequer grant),YORK CITY COUNCIL,4000171752," 47,986.00 "
Department for Education,DEPARTMENT FOR EDUCATION,29/05/2014,Grants,Families Group,Grants to local authorities outside AEF/AEG (aggregate external funding/aggregate exchequer grant),YORK CITY COUNCIL,4000171752," 34,319.00 "
Department for Education,DEPARTMENT FOR EDUCATION,29/05/2014,Grants,Children's Services and Departmental Strategy Early Years Extended Schools and Special Needs Group,Grants to local authorities within AEF/AEG (aggregate external funding/aggregate exchequer grant),NORTH YORKSHIRE COUNTY COUNCIL,4000171753," 179,482.00 "
Department for Education,DEPARTMENT FOR EDUCATION,29/05/2014,Grants,Families Group,Grants to local authorities outside AEF/AEG (aggregate external funding/aggregate exchequer grant),NORTH YORKSHIRE COUNTY COUNCIL,4000171753," 128,369.00 "
Department for Education,DEPARTMENT FOR EDUCATION,29/05/2014,Grants,Children's Services and Departmental Strategy Early Years Extended Schools and Special Needs Group,Grants to local authorities within AEF/AEG (aggregate external funding/aggregate exchequer grant),NORTH LINCOLNSHIRE COUNCIL,4000171754," 53,802.00 "
Department for Education,DEPARTMENT FOR EDUCATION,29/05/2014,Grants,Families Group,Grants to local authorities outside AEF/AEG (aggregate external funding/aggregate exchequer grant),NORTH LINCOLNSHIRE COUNCIL,4000171754," 38,479.00 "
Department for Education,DEPARTMENT FOR EDUCATION,29/05/2014,Grants,Children's Services and Departmental Strategy Early Years Extended Schools and Special Needs Group,Grants to local authorities within AEF/AEG (aggregate external funding/aggregate exchequer grant),NORTH EAST LINCOLNSHIRE COUNCIL,4000171755," 50,454.00 "
Department for Education,DEPARTMENT FOR EDUCATION,29/05/2014,Grants,Families Group,Grants to local authorities outside AEF/AEG (aggregate external funding/aggregate exchequer grant),NORTH EAST LINCOLNSHIRE COUNCIL,4000171755," 36,084.00 "
Department for Education,DEPARTMENT FOR EDUCATION,29/05/2014,Grants,Children's Services and Departmental Strategy Early Years Extended Schools and Special Needs Group,Grants to local authorities within AEF/AEG (aggregate external funding/aggregate exchequer grant),WEST SUSSEX COUNTY COUNCIL,4000171756," 222,648.00 "
Department for Education,DEPARTMENT FOR EDUCATION,29/05/2014,Grants,Families Group,Grants to local authorities outside AEF/AEG (aggregate external funding/aggregate exchequer grant),WEST SUSSEX COUNTY COUNCIL,4000171756," 159,236.00 "
Department for Education,DEPARTMENT FOR EDUCATION,29/05/2014,Grants,Children's Services and Departmental Strategy Early Years Extended Schools and Special Needs Group,Grants to local authorities within AEF/AEG (aggregate external funding/aggregate exchequer grant),WARWICKSHIRE COUNTY COUNCIL,4000171757," 156,470.00 "
Department for Education,DEPARTMENT FOR EDUCATION,29/05/2014,Grants,Families Group,Grants to local authorities outside AEF/AEG (aggregate external funding/aggregate exchequer grant),WARWICKSHIRE COUNTY COUNCIL,4000171757," 111,907.00 "
Department for Education,DEPARTMENT FOR EDUCATION,29/05/2014,Grants,Children's Services and Departmental Strategy Early Years Extended Schools and Special Needs Group,Grants to local authorities within AEF/AEG (aggregate external funding/aggregate exchequer grant),SURREY COUNTY COUNCIL,4000171758," 343,602.00 "
Department for Education,DEPARTMENT FOR EDUCATION,29/05/2014,Grants,Families Group,Grants to local authorities outside AEF/AEG (aggregate external funding/aggregate exchequer grant),SURREY COUNTY COUNCIL,4000171758," 245,740.00 "
Department for Education,DEPARTMENT FOR EDUCATION,29/05/2014,Grants,Children's Services and Departmental Strategy Early Years Extended Schools and Special Needs Group,Grants to local authorities within AEF/AEG (aggregate external funding/aggregate exchequer grant),BOLTON MBC,4000171759," 97,836.00 "
Department for Education,DEPARTMENT FOR EDUCATION,29/05/2014,Grants,Families Group,Grants to local authorities outside AEF/AEG (aggregate external funding/aggregate exchequer grant),BOLTON MBC,4000171759," 69,971.00 "
Department for Education,DEPARTMENT FOR EDUCATION,29/05/2014,Grants,Children's Services and Departmental Strategy Early Years Extended Schools and Special Needs Group,Grants to local authorities within AEF/AEG (aggregate external funding/aggregate exchequer grant),EAST RIDING OF YORKSHIRE,4000171760," 87,026.00 "
Department for Education,DEPARTMENT FOR EDUCATION,29/05/2014,Grants,Families Group,Grants to local authorities outside AEF/AEG (aggregate external funding/aggregate exchequer grant),EAST RIDING OF YORKSHIRE,4000171760," 62,242.00 "
Department for Education,DEPARTMENT FOR EDUCATION,29/05/2014,Grants,Children's Services and Departmental Strategy Early Years Extended Schools and Special Needs Group,Grants to local authorities within AEF/AEG (aggregate external funding/aggregate exchequer grant),KINGSTON UPON HULL COUNCIL,4000171761," 86,273.00 "
Department for Education,DEPARTMENT FOR EDUCATION,29/05/2014,Grants,Families Group,Grants to local authorities outside AEF/AEG (aggregate external funding/aggregate exchequer grant),KINGSTON UPON HULL COUNCIL,4000171761," 61,701.00 "
Department for Education,DEPARTMENT FOR EDUCATION,29/05/2014,Grants,Children's Services and Departmental Strategy Early Years Extended Schools and Special Needs Group,Grants to local authorities within AEF/AEG (aggregate external funding/aggregate exchequer grant),STOCKTON ON TEES,4000171762," 60,540.00 "
Department for Education,DEPARTMENT FOR EDUCATION,29/05/2014,Grants,Families Group,Grants to local authorities outside AEF/AEG (aggregate external funding/aggregate exchequer grant),STOCKTON ON TEES,4000171762," 43,297.00 "
Department for Education,DEPARTMENT FOR EDUCATION,29/05/2014,Grants,Children's Services and Departmental Strategy Early Years Extended Schools and Special Needs Group,Grants to local authorities within AEF/AEG (aggregate external funding/aggregate exchequer grant),REDCAR & CLEVELAND BOROUGH COUNCIL,4000171763," 39,101.00 "
Department for Education,DEPARTMENT FOR EDUCATION,29/05/2014,Grants,Families Group,Grants to local authorities outside AEF/AEG (aggregate external funding/aggregate exchequer grant),REDCAR & CLEVELAND BOROUGH COUNCIL,4000171763," 27,965.00 "
Department for Education,DEPARTMENT FOR EDUCATION,29/05/2014,Grants,Children's Services and Departmental Strategy Early Years Extended Schools and Special Needs Group,Grants to local authorities within AEF/AEG (aggregate external funding/aggregate exchequer grant),LONDON BOROUGH OF HACKNEY,4000171764," 143,024.00 "
Department for Education,DEPARTMENT FOR EDUCATION,29/05/2014,Grants,Families Group,Grants to local authorities outside AEF/AEG (aggregate external funding/aggregate exchequer grant),LONDON BOROUGH OF HACKNEY,4000171764," 102,288.00 "
Department for Education,DEPARTMENT FOR EDUCATION,29/05/2014,Grants,Children's Services and Departmental Strategy Early Years Extended Schools and Special Needs Group,Grants to local authorities within AEF/AEG (aggregate external funding/aggregate exchequer grant),HERTFORDSHIRE COUNTY COUNCIL,4000171765," 378,256.00 "
Department for Education,DEPARTMENT FOR EDUCATION,29/05/2014,Grants,Families Group,Grants to local authorities outside AEF/AEG (aggregate external funding/aggregate exchequer grant),HERTFORDSHIRE COUNTY COUNCIL,4000171765," 257,874.00 "
Department for Education,DEPARTMENT FOR EDUCATION,29/05/2014,Grants,Children's Services and Departmental Strategy Early Years Extended Schools and Special Needs Group,Grants to local authorities within AEF/AEG (aggregate external funding/aggregate exchequer grant),NORFOLK COUNTY COUNCIL,4000171766," 261,722.00 "
Department for Education,DEPARTMENT FOR EDUCATION,29/05/2014,Grants,Families Group,Grants to local authorities outside AEF/AEG (aggregate external funding/aggregate exchequer grant),NORFOLK COUNTY COUNCIL,4000171766," 187,185.00 "
Department for Education,DEPARTMENT FOR EDUCATION,29/05/2014,Grants,Children's Services and Departmental Strategy Early Years Extended Schools and Special Needs Group,Grants to local authorities within AEF/AEG (aggregate external funding/aggregate exchequer grant),SOLIHULL MBC,4000171767," 53,345.00 "
Department for Education,DEPARTMENT FOR EDUCATION,29/05/2014,Grants,Families Group,Grants to local authorities outside AEF/AEG (aggregate external funding/aggregate exchequer grant),SOLIHULL MBC,4000171767," 38,151.00 "
Department for Education,DEPARTMENT FOR EDUCATION,29/05/2014,Grants,Children's Services and Departmental Strategy Early Years Extended Schools and Special Needs Group,Grants to local authorities within AEF/AEG (aggregate external funding/aggregate exchequer grant),SOMERSET COUNTY COUNCIL,4000171768," 157,461.00 "
Department for Education,DEPARTMENT FOR EDUCATION,29/05/2014,Grants,Families Group,Grants to local authorities outside AEF/AEG (aggregate external funding/aggregate exchequer grant),SOMERSET COUNTY COUNCIL,4000171768," 112,617.00 "
Department for Education,DEPARTMENT FOR EDUCATION,29/05/2014,Grants,Children's Services and Departmental Strategy Early Years Extended Schools and Special Needs Group,Grants to local authorities within AEF/AEG (aggregate external funding/aggregate exchequer grant),OXFORDSHIRE COUNTY COUNCIL,4000171769," 208,656.00 "
Department for Education,DEPARTMENT FOR EDUCATION,29/05/2014,Grants,Families Group,Grants to local authorities outside AEF/AEG (aggregate external funding/aggregate exchequer grant),OXFORDSHIRE COUNTY COUNCIL,4000171769," 149,230.00 "
Department for Education,DEPARTMENT FOR EDUCATION,29/05/2014,Grants,Children's Services and Departmental Strategy Early Years Extended Schools and Special Needs Group,Grants to local authorities within AEF/AEG (aggregate external funding/aggregate exchequer grant),NORTHUMBERLAND COUNTY COUNCIL,4000171770," 88,195.00 "
Department for Education,DEPARTMENT FOR EDUCATION,29/05/2014,Grants,Families Group,Grants to local authorities outside AEF/AEG (aggregate external funding/aggregate exchequer grant),NORTHUMBERLAND COUNTY COUNCIL,4000171770," 63,078.00 "
Department for Education,DEPARTMENT FOR EDUCATION,29/05/2014,Grants,Children's Services and Departmental Strategy Early Years Extended Schools and Special Needs Group,Grants to local authorities within AEF/AEG (aggregate external funding/aggregate exchequer grant),MIDDLESBROUGH COUNCIL,4000171771," 48,754.00 "
Department for Education,DEPARTMENT FOR EDUCATION,29/05/2014,Grants,Families Group,Grants to local authorities outside AEF/AEG (aggregate external funding/aggregate exchequer grant),MIDDLESBROUGH COUNCIL,4000171771," 34,868.00 "
Department for Education,DEPARTMENT FOR EDUCATION,29/05/2014,Grants,Children's Services and Departmental Strategy Early Years Extended Schools and Special Needs Group,Grants to local authorities within AEF/AEG (aggregate external funding/aggregate exchequer grant),HARTLEPOOL BOROUGH COUNCIL,4000171772," 37,500.00 "
Department for Education,DEPARTMENT FOR EDUCATION,29/05/2014,Grants,Families Group,Grants to local authorities outside AEF/AEG (aggregate external funding/aggregate exchequer grant),HARTLEPOOL BOROUGH COUNCIL,4000171772," 25,000.00 "
Department for Education,DEPARTMENT FOR EDUCATION,29/05/2014,Grants,Children's Services and Departmental Strategy Early Years Extended Schools and Special Needs Group,Grants to local authorities within AEF/AEG (aggregate external funding/aggregate exchequer grant),SOUTH GLOUCEST,4000171773," 73,082.00 "
Department for Education,DEPARTMENT FOR EDUCATION,29/05/2014,Grants,Families Group,Grants to local authorities outside AEF/AEG (aggregate external funding/aggregate exchequer grant),SOUTH GLOUCEST,4000171773," 52,267.00 "
Department for Education,DEPARTMENT FOR EDUCATION,29/05/2014,Grants,Children's Services and Departmental Strategy Early Years Extended Schools and Special Needs Group,Grants to local authorities within AEF/AEG (aggregate external funding/aggregate exchequer grant),NORTH SOMERSET COUNCIL,4000171774," 59,988.00 "
Department for Education,DEPARTMENT FOR EDUCATION,29/05/2014,Grants,Families Group,Grants to local authorities outside AEF/AEG (aggregate external funding/aggregate exchequer grant),NORTH SOMERSET COUNCIL,4000171774," 42,903.00 "
Department for Education,DEPARTMENT FOR EDUCATION,29/05/2014,Grants,Children's Services and Departmental Strategy Early Years Extended Schools and Special Needs Group,Grants to local authorities within AEF/AEG (aggregate external funding/aggregate exchequer grant),BRISTOL CITY COUNCIL,4000171775," 143,825.00 "
Department for Education,DEPARTMENT FOR EDUCATION,29/05/2014,Grants,Families Group,Grants to local authorities outside AEF/AEG (aggregate external funding/aggregate exchequer grant),BRISTOL CITY COUNCIL,4000171775," 102,861.00 "
Department for Education,DEPARTMENT FOR EDUCATION,29/05/2014,Grants,Children's Services and Departmental Strategy Early Years Extended Schools and Special Needs Group,Grants to local authorities within AEF/AEG (aggregate external funding/aggregate exchequer grant),NORTH TYNESIDE,4000171776," 56,009.00 "
Department for Education,DEPARTMENT FOR EDUCATION,29/05/2014,Grants,Families Group,Grants to local authorities outside AEF/AEG (aggregate external funding/aggregate exchequer grant),NORTH TYNESIDE,4000171776," 40,057.00 "
Department for Education,DEPARTMENT FOR EDUCATION,29/05/2014,Grants,Children's Services and Departmental Strategy Early Years Extended Schools and Special Needs Group,Grants to local authorities within AEF/AEG (aggregate external funding/aggregate exchequer grant),NEWCASTLE CITY COUNCIL,4000171777," 83,630.00 "
Department for Education,DEPARTMENT FOR EDUCATION,29/05/2014,Grants,Families Group,Grants to local authorities outside AEF/AEG (aggregate external funding/aggregate exchequer grant),NEWCASTLE CITY COUNCIL,4000171777," 59,810.00 "
Department for Education,DEPARTMENT FOR EDUCATION,29/05/2014,Grants,Children's Services and Departmental Strategy Early Years Extended Schools and Special Needs Group,Grants to local authorities within AEF/AEG (aggregate external funding/aggregate exchequer grant),GATESHEAD MBC,4000171778," 58,023.00 "
Department for Education,DEPARTMENT FOR EDUCATION,29/05/2014,Grants,Families Group,Grants to local authorities outside AEF/AEG (aggregate external funding/aggregate exchequer grant),GATESHEAD MBC,4000171778," 41,497.00 "
Department for Education,DEPARTMENT FOR EDUCATION,29/05/2014,Grants,Children's Services and Departmental Strategy Early Years Extended Schools and Special Needs Group,Grants to local authorities within AEF/AEG (aggregate external funding/aggregate exchequer grant),WAKEFIELD MDC,4000171779," 95,457.00 "
Department for Education,DEPARTMENT FOR EDUCATION,29/05/2014,Grants,Families Group,Grants to local authorities outside AEF/AEG (aggregate external funding/aggregate exchequer grant),WAKEFIELD MDC,4000171779," 68,269.00 "
Department for Education,DEPARTMENT FOR EDUCATION,29/05/2014,Grants,Children's Services and Departmental Strategy Early Years Extended Schools and Special Needs Group,Grants to local authorities within AEF/AEG (aggregate external funding/aggregate exchequer grant),KIRKLEES COUNCIL,4000171780," 144,209.00 "
Department for Education,DEPARTMENT FOR EDUCATION,29/05/2014,Grants,Families Group,Grants to local authorities outside AEF/AEG (aggregate external funding/aggregate exchequer grant),KIRKLEES COUNCIL,4000171780," 103,136.00 "
Department for Education,DEPARTMENT FOR EDUCATION,29/05/2014,Grants,Children's Services and Departmental Strategy Early Years Extended Schools and Special Needs Group,Grants to local authorities within AEF/AEG (aggregate external funding/aggregate exchequer grant),NORTHAMPTONSHIRE COUNTY COUNCIL,4000171781," 233,327.00 "
Department for Education,DEPARTMENT FOR EDUCATION,29/05/2014,Grants,Families Group,Grants to local authorities outside AEF/AEG (aggregate external funding/aggregate exchequer grant),NORTHAMPTONSHIRE COUNTY COUNCIL,4000171781," 166,874.00 "
Department for Education,DEPARTMENT FOR EDUCATION,29/05/2014,Grants,Children's Services and Departmental Strategy Early Years Extended Schools and Special Needs Group,Grants to local authorities within AEF/AEG (aggregate external funding/aggregate exchequer grant),LINCOLNSHIRE COUNTY COUNCIL,4000171782," 225,208.00 "
Department for Education,DEPARTMENT FOR EDUCATION,29/05/2014,Grants,Families Group,Grants to local authorities outside AEF/AEG (aggregate external funding/aggregate exchequer grant),LINCOLNSHIRE COUNTY COUNCIL,4000171782," 161,071.00 "
Department for Education,DEPARTMENT FOR EDUCATION,29/05/2014,Grants,Children's Services and Departmental Strategy Early Years Extended Schools and Special Needs Group,Grants to local authorities within AEF/AEG (aggregate external funding/aggregate exchequer grant),ISLE OF WIGHT COUNCIL,4000171783," 37,500.00 "
Department for Education,DEPARTMENT FOR EDUCATION,29/05/2014,Grants,Families Group,Grants to local authorities outside AEF/AEG (aggregate external funding/aggregate exchequer grant),ISLE OF WIGHT COUNCIL,4000171783," 25,643.00 "
Department for Education,DEPARTMENT FOR EDUCATION,29/05/2014,Grants,Children's Services and Departmental Strategy Early Years Extended Schools and Special Needs Group,Grants to local authorities within AEF/AEG (aggregate external funding/aggregate exchequer grant),GLOUCESTERSHIRE COUNTY COUNCIL,4000171784," 174,378.00 "
Department for Education,DEPARTMENT FOR EDUCATION,29/05/2014,Grants,Families Group,Grants to local authorities outside AEF/AEG (aggregate external funding/aggregate exchequer grant),GLOUCESTERSHIRE COUNTY COUNCIL,4000171784," 124,715.00 "
Department for Education,DEPARTMENT FOR EDUCATION,29/05/2014,Grants,Children's Services and Departmental Strategy Early Years Extended Schools and Special Needs Group,Grants to local authorities within AEF/AEG (aggregate external funding/aggregate exchequer grant),BATH & NORTH EAST SOMERSET COUNCIL,4000171785," 43,098.00 "
Department for Education,DEPARTMENT FOR EDUCATION,29/05/2014,Grants,Families Group,Grants to local authorities outside AEF/AEG (aggregate external funding/aggregate exchequer grant),BATH & NORTH EAST SOMERSET COUNCIL,4000171785," 30,823.00 "
Department for Education,DEPARTMENT FOR EDUCATION,29/05/2014,Grants,Children's Services and Departmental Strategy Early Years Extended Schools and Special Needs Group,Grants to local authorities within AEF/AEG (aggregate external funding/aggregate exchequer grant),SOUTH TYNESIDE,4000171787," 40,250.00 "
Department for Education,DEPARTMENT FOR EDUCATION,29/05/2014,Grants,Families Group,Grants to local authorities outside AEF/AEG (aggregate external funding/aggregate exchequer grant),SOUTH TYNESIDE,4000171787," 28,786.00 "
Department for Education,DEPARTMENT FOR EDUCATION,29/05/2014,Grants,Children's Services and Departmental Strategy Early Years Extended Schools and Special Needs Group,Grants to local authorities within AEF/AEG (aggregate external funding/aggregate exchequer grant),CENTRAL BEDFORDSHIRE COUNCIL,4000171788," 80,367.00 "
Department for Education,DEPARTMENT FOR EDUCATION,29/05/2014,Grants,Families Group,Grants to local authorities outside AEF/AEG (aggregate external funding/aggregate exchequer grant),CENTRAL BEDFORDSHIRE COUNCIL,4000171788," 57,478.00 "
Department for Education,DEPARTMENT FOR EDUCATION,29/05/2014,Grants,Children's Services and Departmental Strategy Early Years Extended Schools and Special Needs Group,Grants to local authorities within AEF/AEG (aggregate external funding/aggregate exchequer grant),CALDERDALE MBC,4000171789," 83,579.00 "
Department for Education,DEPARTMENT FOR EDUCATION,29/05/2014,Grants,Families Group,Grants to local authorities outside AEF/AEG (aggregate external funding/aggregate exchequer grant),CALDERDALE MBC,4000171789," 47,895.00 "
Department for Education,DEPARTMENT FOR EDUCATION,29/05/2014,Grants,Children's Services and Departmental Strategy Early Years Extended Schools and Special Needs Group,Grants to local authorities within AEF/AEG (aggregate external funding/aggregate exchequer grant),CITY OF BRADFORD METROPOLITAN DISTRICT COUNCIL,4000171790," 219,110.00 "
Department for Education,DEPARTMENT FOR EDUCATION,29/05/2014,Grants,Families Group,Grants to local authorities outside AEF/AEG (aggregate external funding/aggregate exchequer grant),CITY OF BRADFORD METROPOLITAN DISTRICT COUNCIL,4000171790," 156,704.00 "
Department for Education,DEPARTMENT FOR EDUCATION,29/05/2014,Grants,Children's Services and Departmental Strategy Early Years Extended Schools and Special Needs Group,Grants to local authorities within AEF/AEG (aggregate external funding/aggregate exchequer grant),ROTHERHAM MBC,4000171791," 78,016.00 "
Department for Education,DEPARTMENT FOR EDUCATION,29/05/2014,Grants,Families Group,Grants to local authorities outside AEF/AEG (aggregate external funding/aggregate exchequer grant),ROTHERHAM MBC,4000171791," 55,796.00 "
Department for Education,DEPARTMENT FOR EDUCATION,29/05/2014,Grants,Children's Services and Departmental Strategy Early Years Extended Schools and Special Needs Group,Grants to local authorities within AEF/AEG (aggregate external funding/aggregate exchequer grant),BARNSLEY MBC,4000171792," 71,939.00 "
Department for Education,DEPARTMENT FOR EDUCATION,29/05/2014,Grants,Families Group,Grants to local authorities outside AEF/AEG (aggregate external funding/aggregate exchequer grant),BARNSLEY MBC,4000171792," 51,450.00 "
Department for Education,DEPARTMENT FOR EDUCATION,29/05/2014,Grants,Children's Services and Departmental Strategy Early Years Extended Schools and Special Needs Group,Grants to local authorities within AEF/AEG (aggregate external funding/aggregate exchequer grant),WIGAN MBC,4000171793," 117,734.00 "
Department for Education,DEPARTMENT FOR EDUCATION,29/05/2014,Grants,Families Group,Grants to local authorities outside AEF/AEG (aggregate external funding/aggregate exchequer grant),WIGAN MBC,4000171793," 67,003.00 "
Department for Education,DEPARTMENT FOR EDUCATION,29/05/2014,Grants,Children's Services and Departmental Strategy Early Years Extended Schools and Special Needs Group,Grants to local authorities within AEF/AEG (aggregate external funding/aggregate exchequer grant),CUMBRIA COUNTY COUNCIL,4000171794," 141,099.00 "
Department for Education,DEPARTMENT FOR EDUCATION,29/05/2014,Grants,Families Group,Grants to local authorities outside AEF/AEG (aggregate external funding/aggregate exchequer grant),CUMBRIA COUNTY COUNCIL,4000171794," 100,915.00 "
Department for Education,DEPARTMENT FOR EDUCATION,29/05/2014,Grants,Children's Services and Departmental Strategy Early Years Extended Schools and Special Needs Group,Grants to local authorities within AEF/AEG (aggregate external funding/aggregate exchequer grant),CORNWALL COUNCIL,4000171795," 161,870.00 "
Department for Education,DEPARTMENT FOR EDUCATION,29/05/2014,Grants,Families Group,Grants to local authorities outside AEF/AEG (aggregate external funding/aggregate exchequer grant),CORNWALL COUNCIL,4000171795," 115,770.00 "
Department for Education,DEPARTMENT FOR EDUCATION,29/05/2014,Grants,Children's Services and Departmental Strategy Early Years Extended Schools and Special Needs Group,Grants to local authorities within AEF/AEG (aggregate external funding/aggregate exchequer grant),TELFORD & WREKIN COUNCIL,4000171796," 55,818.00 "
Department for Education,DEPARTMENT FOR EDUCATION,29/05/2014,Grants,Families Group,Grants to local authorities outside AEF/AEG (aggregate external funding/aggregate exchequer grant),TELFORD & WREKIN COUNCIL,4000171796," 39,920.00 "
Department for Education,DEPARTMENT FOR EDUCATION,29/05/2014,Grants,Children's Services and Departmental Strategy Early Years Extended Schools and Special Needs Group,Grants to local authorities within AEF/AEG (aggregate external funding/aggregate exchequer grant),SHROPSHIRE COUNCIL,4000171797," 91,864.00 "
Department for Education,DEPARTMENT FOR EDUCATION,29/05/2014,Grants,Families Group,Grants to local authorities outside AEF/AEG (aggregate external funding/aggregate exchequer grant),SHROPSHIRE COUNCIL,4000171797," 65,702.00 "
Department for Education,DEPARTMENT FOR EDUCATION,29/05/2014,Grants,Children's Services and Departmental Strategy Early Years Extended Schools and Special Needs Group,Grants to local authorities within AEF/AEG (aggregate external funding/aggregate exchequer grant),COVENTRY CITY COUNCIL,4000171798," 112,209.00 "
Department for Education,DEPARTMENT FOR EDUCATION,29/05/2014,Grants,Families Group,Grants to local authorities outside AEF/AEG (aggregate external funding/aggregate exchequer grant),COVENTRY CITY COUNCIL,4000171798," 80,250.00 "
Department for Education,DEPARTMENT FOR EDUCATION,29/05/2014,Grants,Children's Services and Departmental Strategy Early Years Extended Schools and Special Needs Group,Grants to local authorities within AEF/AEG (aggregate external funding/aggregate exchequer grant),TRAFFORD MB COUNCIL,4000171799," 68,842.00 "
Department for Education,DEPARTMENT FOR EDUCATION,29/05/2014,Grants,Families Group,Grants to local authorities outside AEF/AEG (aggregate external funding/aggregate exchequer grant),TRAFFORD MB COUNCIL,4000171799," 49,234.00 "
Department for Education,DEPARTMENT FOR EDUCATION,29/05/2014,Grants,Children's Services and Departmental Strategy Early Years Extended Schools and Special Needs Group,Grants to local authorities within AEF/AEG (aggregate external funding/aggregate exchequer grant),TAMESIDE MBC,4000171800," 74,502.00 "
Department for Education,DEPARTMENT FOR EDUCATION,29/05/2014,Grants,Families Group,Grants to local authorities outside AEF/AEG (aggregate external funding/aggregate exchequer grant),TAMESIDE MBC,4000171800," 53,282.00 "
Department for Education,DEPARTMENT FOR EDUCATION,29/05/2014,Grants,Children's Services and Departmental Strategy Early Years Extended Schools and Special Needs Group,Grants to local authorities within AEF/AEG (aggregate external funding/aggregate exchequer grant),STOCKPORT MBC,4000171801," 76,823.00 "
Department for Education,DEPARTMENT FOR EDUCATION,29/05/2014,Grants,Families Group,Grants to local authorities outside AEF/AEG (aggregate external funding/aggregate exchequer grant),STOCKPORT MBC,4000171801," 54,942.00 "
Department for Education,DEPARTMENT FOR EDUCATION,29/05/2014,Grants,Children's Services and Departmental Strategy Early Years Extended Schools and Special Needs Group,Grants to local authorities within AEF/AEG (aggregate external funding/aggregate exchequer grant),SALFORD CITY COUNCIL,4000171802," 85,045.00 "
Department for Education,DEPARTMENT FOR EDUCATION,29/05/2014,Grants,Families Group,Grants to local authorities outside AEF/AEG (aggregate external funding/aggregate exchequer grant),SALFORD CITY COUNCIL,4000171802," 60,823.00 "
Department for Education,DEPARTMENT FOR EDUCATION,29/05/2014,Grants,Children's Services and Departmental Strategy Early Years Extended Schools and Special Needs Group,Grants to local authorities within AEF/AEG (aggregate external funding/aggregate exchequer grant),ROCHDALE MBC,4000171803," 80,395.00 "
Department for Education,DEPARTMENT FOR EDUCATION,29/05/2014,Grants,Families Group,Grants to local authorities outside AEF/AEG (aggregate external funding/aggregate exchequer grant),ROCHDALE MBC,4000171803," 57,497.00 "
Department for Education,DEPARTMENT FOR EDUCATION,29/05/2014,Grants,Children's Services and Departmental Strategy Early Years Extended Schools and Special Needs Group,Grants to local authorities within AEF/AEG (aggregate external funding/aggregate exchequer grant),NOTTINGHAM CITY COUNCIL,4000171804," 102,609.00 "
Department for Education,DEPARTMENT FOR EDUCATION,29/05/2014,Grants,Families Group,Grants to local authorities outside AEF/AEG (aggregate external funding/aggregate exchequer grant),NOTTINGHAM CITY COUNCIL,4000171804," 73,384.00 "
Department for Education,DEPARTMENT FOR EDUCATION,29/05/2014,Grants,Children's Services and Departmental Strategy Early Years Extended Schools and Special Needs Group,Grants to local authorities within AEF/AEG (aggregate external funding/aggregate exchequer grant),NOTTINGHAMSHIRE COUNTY COUNCIL,4000171805," 222,065.00 "
Department for Education,DEPARTMENT FOR EDUCATION,29/05/2014,Grants,Families Group,Grants to local authorities outside AEF/AEG (aggregate external funding/aggregate exchequer grant),NOTTINGHAMSHIRE COUNTY COUNCIL,4000171805," 158,819.00 "
Department for Education,DEPARTMENT FOR EDUCATION,29/05/2014,Grants,Children's Services and Departmental Strategy Early Years Extended Schools and Special Needs Group,Grants to local authorities within AEF/AEG (aggregate external funding/aggregate exchequer grant),BLACKPOOL BOROUGH COUNCIL,4000171806," 42,843.00 "
Department for Education,DEPARTMENT FOR EDUCATION,29/05/2014,Grants,Families Group,Grants to local authorities outside AEF/AEG (aggregate external funding/aggregate exchequer grant),BLACKPOOL BOROUGH COUNCIL,4000171806," 30,641.00 "
Department for Education,DEPARTMENT FOR EDUCATION,29/05/2014,Grants,Children's Services and Departmental Strategy Early Years Extended Schools and Special Needs Group,Grants to local authorities within AEF/AEG (aggregate external funding/aggregate exchequer grant),BLACKBURN WITH DARWEN BOROUGH COUNCIL,4000171807," 60,826.00 "
Department for Education,DEPARTMENT FOR EDUCATION,29/05/2014,Grants,Families Group,Grants to local authorities outside AEF/AEG (aggregate external funding/aggregate exchequer grant),BLACKBURN WITH DARWEN BOROUGH COUNCIL,4000171807," 43,501.00 "
Department for Education,DEPARTMENT FOR EDUCATION,29/05/2014,Grants,Children's Services and Departmental Strategy Early Years Extended Schools and Special Needs Group,Grants to local authorities within AEF/AEG (aggregate external funding/aggregate exchequer grant),OLDHAM MBC,4000171808," 87,435.00 "
Department for Education,DEPARTMENT FOR EDUCATION,29/05/2014,Grants,Families Group,Grants to local authorities outside AEF/AEG (aggregate external funding/aggregate exchequer grant),OLDHAM MBC,4000171808," 62,532.00 "
Department for Education,DEPARTMENT FOR EDUCATION,29/05/2014,Grants,Children's Services and Departmental Strategy Early Years Extended Schools and Special Needs Group,Grants to local authorities within AEF/AEG (aggregate external funding/aggregate exchequer grant),MANCHESTER CITY COUNCIL,4000171809," 215,310.00 "
Department for Education,DEPARTMENT FOR EDUCATION,29/05/2014,Grants,Families Group,Grants to local authorities outside AEF/AEG (aggregate external funding/aggregate exchequer grant),MANCHESTER CITY COUNCIL,4000171809," 149,963.00 "
Department for Education,DEPARTMENT FOR EDUCATION,29/05/2014,Grants,Children's Services and Departmental Strategy Early Years Extended Schools and Special Needs Group,Grants to local authorities within AEF/AEG (aggregate external funding/aggregate exchequer grant),BURY MBC,4000171810," 59,555.00 "
Department for Education,DEPARTMENT FOR EDUCATION,29/05/2014,Grants,Families Group,Grants to local authorities outside AEF/AEG (aggregate external funding/aggregate exchequer grant),BURY MBC,4000171810," 42,593.00 "
Department for Education,DEPARTMENT FOR EDUCATION,29/05/2014,Grants,Children's Services and Departmental Strategy Early Years Extended Schools and Special Needs Group,Grants to local authorities within AEF/AEG (aggregate external funding/aggregate exchequer grant),SEFTON COUNCIL,4000171811," 68,197.00 "
Department for Education,DEPARTMENT FOR EDUCATION,29/05/2014,Grants,Families Group,Grants to local authorities outside AEF/AEG (aggregate external funding/aggregate exchequer grant),SEFTON COUNCIL,4000171811," 48,773.00 "
Department for Education,DEPARTMENT FOR EDUCATION,29/05/2014,Grants,Children's Services and Departmental Strategy Early Years Extended Schools and Special Needs Group,Grants to local authorities within AEF/AEG (aggregate external funding/aggregate exchequer grant),ST HELENS MBC,4000171812," 49,553.00 "
Department for Education,DEPARTMENT FOR EDUCATION,29/05/2014,Grants,Families Group,Grants to local authorities outside AEF/AEG (aggregate external funding/aggregate exchequer grant),ST HELENS MBC,4000171812," 35,439.00 "
Department for Education,DEPARTMENT FOR EDUCATION,29/05/2014,Grants,Children's Services and Departmental Strategy Early Years Extended Schools and Special Needs Group,Grants to local authorities within AEF/AEG (aggregate external funding/aggregate exchequer grant),LANCASHIRE COUNTY COUNCIL,4000171813," 341,215.00 "
Department for Education,DEPARTMENT FOR EDUCATION,29/05/2014,Grants,Families Group,Grants to local authorities outside AEF/AEG (aggregate external funding/aggregate exchequer grant),LANCASHIRE COUNTY COUNCIL,4000171813," 244,033.00 "
Department for Education,DEPARTMENT FOR EDUCATION,29/05/2014,Grants,Children's Services and Departmental Strategy Early Years Extended Schools and Special Needs Group,Grants to local authorities within AEF/AEG (aggregate external funding/aggregate exchequer grant),MEDWAY COUNCIL,4000171814," 82,859.00 "
Department for Education,DEPARTMENT FOR EDUCATION,29/05/2014,Grants,Families Group,Grants to local authorities outside AEF/AEG (aggregate external funding/aggregate exchequer grant),MEDWAY COUNCIL,4000171814," 59,260.00 "
Department for Education,DEPARTMENT FOR EDUCATION,29/05/2014,Grants,Children's Services and Departmental Strategy Early Years Extended Schools and Special Needs Group,Grants to local authorities within AEF/AEG (aggregate external funding/aggregate exchequer grant),KENT COUNTY COUNCIL,4000171815," 439,665.00 "
Department for Education,DEPARTMENT FOR EDUCATION,29/05/2014,Grants,Families Group,Grants to local authorities outside AEF/AEG (aggregate external funding/aggregate exchequer grant),KENT COUNTY COUNCIL,4000171815," 314,445.00 "
Department for Education,DEPARTMENT FOR EDUCATION,29/05/2014,Grants,Children's Services and Departmental Strategy Early Years Extended Schools and Special Needs Group,Grants to local authorities within AEF/AEG (aggregate external funding/aggregate exchequer grant),WORCESTERSHIRE COUNTY COUNCIL,4000171816," 152,826.00 "
Department for Education,DEPARTMENT FOR EDUCATION,29/05/2014,Grants,Families Group,Grants to local authorities outside AEF/AEG (aggregate external funding/aggregate exchequer grant),WORCESTERSHIRE COUNTY COUNCIL,4000171816," 109,300.00 "
Department for Education,DEPARTMENT FOR EDUCATION,29/05/2014,Grants,Children's Services and Departmental Strategy Early Years Extended Schools and Special Needs Group,Grants to local authorities within AEF/AEG (aggregate external funding/aggregate exchequer grant),HEREFORDSHIRE COUNCIL,4000171817," 58,985.00 "
Department for Education,DEPARTMENT FOR EDUCATION,29/05/2014,Grants,Families Group,Grants to local authorities outside AEF/AEG (aggregate external funding/aggregate exchequer grant),HEREFORDSHIRE COUNCIL,4000171817," 42,188.00 "
Department for Education,DEPARTMENT FOR EDUCATION,29/05/2014,Grants,Children's Services and Departmental Strategy Early Years Extended Schools and Special Needs Group,Grants to local authorities within AEF/AEG (aggregate external funding/aggregate exchequer grant),LIVERPOOL CITY COUNCIL,4000171818," 139,461.00 "
Department for Education,DEPARTMENT FOR EDUCATION,29/05/2014,Grants,Families Group,Grants to local authorities outside AEF/AEG (aggregate external funding/aggregate exchequer grant),LIVERPOOL CITY COUNCIL,4000171818," 99,740.00 "
Department for Education,DEPARTMENT FOR EDUCATION,29/05/2014,Grants,Children's Services and Departmental Strategy Early Years Extended Schools and Special Needs Group,Grants to local authorities within AEF/AEG (aggregate external funding/aggregate exchequer grant),KNOWSLEY MBC,4000171819," 48,847.00 "
Department for Education,DEPARTMENT FOR EDUCATION,29/05/2014,Grants,Families Group,Grants to local authorities outside AEF/AEG (aggregate external funding/aggregate exchequer grant),KNOWSLEY MBC,4000171819," 34,934.00 "
Department for Education,DEPARTMENT FOR EDUCATION,29/05/2014,Grants,Children's Services and Departmental Strategy Early Years Extended Schools and Special Needs Group,Grants to local authorities within AEF/AEG (aggregate external funding/aggregate exchequer grant),SANDWELL MBC,4000171820," 121,896.00 "
Department for Education,DEPARTMENT FOR EDUCATION,29/05/2014,Grants,Families Group,Grants to local authorities outside AEF/AEG (aggregate external funding/aggregate exchequer grant),SANDWELL MBC,4000171820," 87,178.00 "
Department for Education,DEPARTMENT FOR EDUCATION,29/05/2014,Grants,Children's Services and Departmental Strategy Early Years Extended Schools and Special Needs Group,Grants to local authorities within AEF/AEG (aggregate external funding/aggregate exchequer grant),DUDLEY MBC,4000171821," 90,196.00 "
Department for Education,DEPARTMENT FOR EDUCATION,29/05/2014,Grants,Families Group,Grants to local authorities outside AEF/AEG (aggregate external funding/aggregate exchequer grant),DUDLEY MBC,4000171821," 64,506.00 "
Department for Education,DEPARTMENT FOR EDUCATION,29/05/2014,Grants,Children's Services and Departmental Strategy Early Years Extended Schools and Special Needs Group,Grants to local authorities within AEF/AEG (aggregate external funding/aggregate exchequer grant),BIRMINGHAM CITY COUNCIL,4000171822," 442,733.00 "
Department for Education,DEPARTMENT FOR EDUCATION,29/05/2014,Grants,Families Group,Grants to local authorities outside AEF/AEG (aggregate external funding/aggregate exchequer grant),BIRMINGHAM CITY COUNCIL,4000171822," 316,634.00 "
Department for Education,DEPARTMENT FOR EDUCATION,29/05/2014,Grants,Children's Services and Departmental Strategy Early Years Extended Schools and Special Needs Group,Grants to local authorities within AEF/AEG (aggregate external funding/aggregate exchequer grant),THURROCK COUNCIL,4000171823," 58,150.00 "
Department for Education,DEPARTMENT FOR EDUCATION,29/05/2014,Grants,Families Group,Grants to local authorities outside AEF/AEG (aggregate external funding/aggregate exchequer grant),THURROCK COUNCIL,4000171823," 41,588.00 "
Department for Education,DEPARTMENT FOR EDUCATION,29/05/2014,Grants,Children's Services and Departmental Strategy Early Years Extended Schools and Special Needs Group,Grants to local authorities within AEF/AEG (aggregate external funding/aggregate exchequer grant),SOUTHEND ON SEA BOROUGH COUNCIL,4000171824," 55,143.00 "
Department for Education,DEPARTMENT FOR EDUCATION,29/05/2014,Grants,Families Group,Grants to local authorities outside AEF/AEG (aggregate external funding/aggregate exchequer grant),SOUTHEND ON SEA BOROUGH COUNCIL,4000171824," 39,437.00 "
Department for Education,DEPARTMENT FOR EDUCATION,29/05/2014,Grants,Children's Services and Departmental Strategy Early Years Extended Schools and Special Needs Group,Grants to local authorities within AEF/AEG (aggregate external funding/aggregate exchequer grant),ESSEX COUNTY COUNCIL,4000171825," 403,371.00 "
Department for Education,DEPARTMENT FOR EDUCATION,29/05/2014,Grants,Families Group,Grants to local authorities outside AEF/AEG (aggregate external funding/aggregate exchequer grant),ESSEX COUNTY COUNCIL,4000171825," 288,488.00 "
Department for Education,DEPARTMENT FOR EDUCATION,29/05/2014,Grants,Children's Services and Departmental Strategy Early Years Extended Schools and Special Needs Group,Grants to local authorities within AEF/AEG (aggregate external funding/aggregate exchequer grant),TORBAY COUNCIL,4000171826," 37,500.00 "
Department for Education,DEPARTMENT FOR EDUCATION,29/05/2014,Grants,Families Group,Grants to local authorities outside AEF/AEG (aggregate external funding/aggregate exchequer grant),TORBAY COUNCIL,4000171826," 25,159.00 "
Department for Education,DEPARTMENT FOR EDUCATION,29/05/2014,Grants,Children's Services and Departmental Strategy Early Years Extended Schools and Special Needs Group,Grants to local authorities within AEF/AEG (aggregate external funding/aggregate exchequer grant),PLYMOUTH CITY COUNCIL,4000171827," 76,128.00 "
